Workbook

Sheet Conceitos Norteadores (hidden)
A3: Tecnologia Social (TS) | B3: Conjunto de técnicas, metodologias transformadoras, desenvolvidas e/ou aplicadas na interação com a população e apropriadas por ela, que representam soluções para inclusão social e melhoria das condições de vida” (ITS BRASIL. Caderno de Debate – Tecnologia Social no Brasil. São Paulo: ITS. 2004: 26)
A4: Ciência, Tecnologia e Inovação (CT&I) | B4: O conceito de Ciência, Tecnologia e Inovação parte do pressuposto de que a produção científica e tecnológica é fruto de relações sociais, econômicas e culturais – e, portanto, não é neutra, a construção de conhecimento deve estar comprometida com a transformação do território de Boa Vista, no sentido da promoção da justiça social e que é necessário democratizar o saber e ampliar o acesso ao conhecimento científico, suas formas e tipos de destinações de recursos financeiros
A5: Inovação | B5: Para negócios: De acordo com Rogers (1995) uma inovação pode ser definida como uma ideia, prática ou um bem material que é percebido como novo e de relevante aplicação. O Manual de Oslo define a inovação como a implementação de um produto (bem ou serviço) novo ou significativamente melhorado, ou um processo, ou um novo método de marketing ou um novo método organizacional nas práticas de negócios, na organização do local de trabalho ou nas relações externas. Para a tecnologia social (projeto): A inovação ocorre a partir da participação, gerando processos de aprendizagem que por sua vez geram processos de inovação.
A6: Integração Socioeconômica | B6: Socioeconômico é um adjetivo atribuído a toda prática que relaciona situações, circunstâncias e aspectos que afetem tanto a ordem social como a economia de um local ou região.Portanto, integração social, cultural e econômica dos povos de um território implica a aceitação e inclusão do importante contributo que este grupo, tão diversificado, traz, aos mais diversos níveis, à sociedade onde é acolhido.
A7: Empreendedorismo | B7: O empreendedorismo é caracterizado como um fenômeno social, que por meio de suas ações, gera transformação, melhoria e crescimento sustentável para organizações, indivíduos e sociedades (SARKAR, 2008). Ele é considerado elemento fundamental no processo de desenvolvimento econômico (SHANE e VENKATARAMAN, 2000), tendo papel fundamental na geração de riqueza, de trabalho e de renda (REYNOLDS et al., 1999). Nyström (2009) apoia ess ideia, mas ressalva que o empreendedorismo é uma condição necessária, mas não suficiente, para o desenvolvimento econômico, visto que os impactos variam no espaço e no tempo.
A8: Etnicidade | B8: A etnicidade é uma forma de identidade, que se distingue das outras características identitárias por ser mais globalizante, abrangente, dela fazendo parte características étnicas, raciais, religiosas e culturais. As mesmas marcas étnicas, características físicas, práticas culturais ou crenças religiosas, podem ser virtualmente ignoradas numa sociedade enquanto que consideradas extremamente significantes numa outra. A etnicidade, mais da qualquer outra forma de identidade, tem o potencial de ser totalizante, quer dizer, de se substituir ou de marginalizar as outras formas de lealdade e obrigações – de se transformar numa base central de identidade. Por causa desta sua capacidade de deter a supremacia sobre os outros tipos de lealdade do grupo, a etnicidade pode transformar-se numa profunda forma emocional de mobilização.
A9: Migrantes | B9: “Migração” é comumente compreendida implicando um processo voluntário; por exemplo, alguém que cruza uma fronteira em busca de melhores oportunidades econômicas. Este não é o caso de refugiados, que não podem retornar às suas casas em segurança e, consequentemente, têm direito a proteções específicas no escopo do direito internacional. As razões pelas quais um migrante pode deixar seu país são muitas vezes convincentes e encontrar meios de atender suas necessidades, e proteger seus direitos humanos, é importante. Migrantes são protegidos pela lei internacional dos direitos humanos. Essa proteção deriva de sua dignidade fundamental enquanto seres humanos.
A10: Refugiados | B10: Refugiados são especificamente definidos e protegidos no direito internacional. São pessoas que estão fora de seus países de origem por fundados temores de perseguição, conflito, violência ou outras circunstâncias que perturbam seriamente a ordem pública e que, como resultado, necessitam de “proteção internacional”. O Artigo 14 da Declaração Universal dos Direitos Humanos afirma o direito de toda e qualquer pessoa procurar e se beneficiar de refúgio. No entanto, nenhum conteúdo claro foi dado à noção de refúgio em nível internacional até que a Convenção de 1951 Relativa ao Estatuto dos Refugiados [a “Convenção de 1951”] foi adotada, e o ACNUR foi incumbido de supervisar sua implementação. A Convenção da ONU de 1951 e seu Protocolo de 1967, assim como instrumentos legais regionais, como a Convenção de 1969 da Organização de Unidade Africana (UOA) que rege os aspectos específicos dos problemas dos refugiados na África, são os pilares do regime de proteção de refugiados moderno. Eles estabelecem uma definição universal de refugiado e incorporam os direitos e deveres básicos dos mesmos.
A11: Empreendedores | B11: Chiavenato (2005), expressa que o empreendedor é a pessoa que inicia e/ou opera um negócio para realizar uma ideia ou projeto pessoal, assumindo riscos e responsabilidades e inovando continuamente. Nessa perspectiva, empreender significa fazer algo novo, diferente, mudar a situação atual e buscar, de forma incessante, novas oportunidades de negócio, tendo como foco a inovação e a criação de valor (DORNELAS, 2003). Para o CIEDS, empreendedores são agentes de mudança, indivíduos ou grupos que buscam novas soluções, mais eficazes, mais eficientes e sustentáveis do que as soluções existentes, a partir da criação coletiva de novas práticas produtivas, comerciais, organizacionais e sociais, que contribuam para o desenvolvimento econômico e social das pessoas e comunidades, gerando valor para a sociedade.
A12: Ecossistema Empreendedor | B12: De acordo com Adner (2006) e Adner e Kapoor (2010) o construto do ecossistema é uma forma de tornar mais evidente a interdependência entre atores no processo de criação e captura de valor. Enfoca o entendimento de como ocorre a coordenação entre parceiros, uma rede de trocas, caracterizada ao mesmo tempo por cooperação e competição (ADNER E KAPOOR, 2010) Para o CIEDS, é o ambiente formado por diversos atores do empreendedorismo, no qual há interlocução com redução de hierarquia e dinamismo, bem como dotadas de iniciativas de apoio ao empreendedorismo baseadas em redes.
A13: Economia Criativa | B13: O conceito de Economia Criativa é relativamente novo, portanto, não há uma definição “pronta” e única sobre o termo. O que podemos afirmar é que a ideia da Economia Criativa, como o próprio nome diz, é unir economia com criatividade, possuindo como matéria-prima o capital intelectual, isto é, carregado por valores simbólicos. A Conferência das Nações Unidas sobre Comércio e Desenvolvimento (UNCTAD) elaborou um modelo que classifica as indústrias criativas em quatro eixos, que são: patrimônio, artes, mídia e criações funcionais, sendo que juntas se desmembram em nove setores. Desse modo, o eixo do Patrimônio inclui: expressões culturais tradicionais e sítios culturais. O eixo das Artes engloba: artes visuais e artes dramáticas. O eixo da Mídia: audiovisual, publicidade e mídia impressa. E, o eixo das Criações Funcionais abrange design, novas mídias e serviços criativos. Assim, todos os empregos e ocupações que se relacionam a esses setores são considerados como ocupações criativas.
A14: Economia Solidária | B14: A Economia Solidária pode ser definida em três dimensões: 1. Economicamente é um jeito de fazer a atividade econômica de produção, oferta de serviços, comercialização, finanças ou consumo baseado na democracia e na cooperação, o que chamamos de autogestão. 2.Culturalmente é também um jeito de estar no mundo e de consumir (em casa, em eventos ou no trabalho) produtos locais, saudáveis, da Economia Solidária, que não afetem o meio-ambiente, que não tenham transgênicos e nem beneficiem grandes empresas. Neste aspecto, também simbólico e de valores, estamos falando de mudar o paradigma da competição para o da cooperação e da inteligência coletiva, livre e partilhada. 3. Politicamente é um movimento social, que luta pela mudança da sociedade, por uma forma diferente de desenvolvimento, que não seja baseado nas grandes empresas nem nos latifúndios com seus proprietários e acionistas, mas sim um desenvolvimento para as pessoas e construída pela população a partir dos valores da solidariedade, da democracia, da cooperação, da preservação ambiental e dos direitos humanos.
A15: Economia Compartilhada | B15: Modelo em que a experiência vale mais do que a posse, deslocando o enfoque para o poder do consumidor. Modelo social e econômico fundamentado no compartilhamento de recursos humanos, físicos ou intelectuais. Além do engajamento e da colaboração da comunidade, a tecnologia possui um papel fundamental para o bom funcionamento dos projetos da Economia Compartilhada. Em resumo, é um novo sistema econômico, baseado na troca, reutilização, compartilhamento, e acesso a produtos, serviços e conhecimento. Tudo isso por meio de plataformas digitais e sociais.
A16: Competências | B16: Mobilização intencional de diversos recursos próprios ao desenvolvimento humano: processos psicológicos, comportamentos, conhecimentos, afetos, crenças, habilidades, escolhas éticas e estéticas, que devem ser mobilizados pelo sujeito. Atendem às necessidades de constituição de um repertório individual, social e cultural, mas também à necessidade de aplicá-lo em situações e contextos concretos, fazendo-se valer de instrumentos que operem essa transposição de conhecimento para geração de algum produto ou resultado.
A17: Desenvolvimento de Capital Humano | B17: Processos que permitam o desenvolvimento e/ou aumento da capacidade de criação, inovação e aprendizagem, a partir da qual a valorização da dimensão humana é vista como variável condicionante para o desenvolvimento de uma sociedade (econômica e socioambientalmente e não apenas das organizações).
A18: Reaplicação | B18: REPLICAÇÃO X REAPLICAÇÃO É importante compreender que as tecnologias sociais são de bem comum, ou seja, não são patenteadas por empresas ou produzidas em grande escala, já que seu caráter é que nasçam da criatividade das pessoas que conhecem seus problemas e realidades e possam ser difundidas para situações semelhantes por pessoas interessadas em contribuir para um mundo mais sustentável. Assim uma Tecnologia Social quando desenvolvida em outra região, terá a mesma função e princípios, mas utilizará de algum conhecimento local ou material diferente no sentido de ser aprimorada e envolvida naquela realidade, pelas pessoas daquele lugar. Desta forma, não se fala em replicação (reprodução) de Tecnologias Sociais e sim reaplicação (fazer novamente de outra forma).
A19: Identidade | B19: A identidade é o que permite ao indivíduo definir-se a si próprio socialmente. Um indivíduo como ser social pode ter várias identidades: família, comunidade, classe, nação, origem geográfica, ocupação, etnia, religião, etc. A identidade não conota com idêntico, mas sim a pertença graças ao qual o indivíduo se define. A identidade funda a comunidade. Com a identidade, nós saímos do domínio dos objectivos e dos desafios da acção para entrarmos no domínio da representação, que é mais difícil a observar mas cujos resultados são perfeitamente visíveis.

Sheet Capa

Sheet Sumário Executivo
C74: *Para acesso rápido, clique em cima dos botões azuis ao lado.
I80: *As formações podem ser consultadas nas abas abaixo, ou nos botões do "menu" no ínicio da página
M123: =VLOOKUP(C129,'Conceitos Norteadores'!A3:B19,2,FALSE) -> O empreendedorismo é caracterizado como um fenômeno social, que por meio de suas ações, gera transformação, melhoria e crescimento sustentável para organizações, indivíduos e sociedades (SARKAR, 2008). Ele é considerado elemento fundamental no processo de desenvolvimento econômico (SHANE e VENKATARAMAN, 2000), tendo papel fundamental na geração de riqueza, de trabalho e de renda (REYNOLDS et al., 1999). Nyström (2009) apoia ess ideia, mas ressalva que o empreendedorismo é uma condição necessária, mas não suficiente, para o desenvolvimento econômico, visto que os impactos variam no espaço e no tempo.
C129: Empreendedorismo

Sheet Dashboard Projeto
B6: *Meta: 200 pessoas | I6: *Meta: 10 Organizações Sociais | O6: *Meta: 8 empreendedoras
B7: Pessoas
B34: Matriz Aitudinal
B36: PeMassoas
B37: Pessoas
B63: Geração de Renda e Impacto Social
B94: Construção de capacidade
B131: Parceria: | D131: PNUD - Programa das Nações Unidas para o Desenvolvimento
B132: Resumo:
B133: Por meio de um Memorando de Entendimento (MoU) firmado entre CIEDS e PNUD, a agência da ONU chancelou articulação do CIEDS com atores locais, públicos e privados, em espaços de escuta social e de proposição de soluções. Ao longo do programa Redes de Integração Socioeconômica, as duas instituições compartilharam dados sobre migrações, realizaram pesquisa com dados primários, organizaram o primeiro evento aberto e gratuito de empreendedorismo e inovação, o Inspira Boa Vista, e produziram o conteúdo do curso Direitos, Cultura e Habilidades para Vida, aplicado por formadores locais selecionados, contratados e treinados pelo CIEDS. Além disso, mobilizaram a sociedade civil local e desenvolveram o workshop do Jogo Desenvolve!, como parte da metodologia do PNUD de desenvolvimento local em contexto de fluxo migratório, do qual o CIEDS é co-autor.
B142: Parceria: | D142: ACNUR - Alto Comissariado das Nações Unidas para os Refugiados
B143: Resumo:
B144: O Memorando de Entendimento (MoU) firmado entre o CIEDS e o ACNUR chancelou o programa junto a outras organizações atuantes em Roraima na ajuda humanitária e na provisão de meios de vida a migrantes e refugiados. O CIEDS teve autorização para entrada nos abrigos, cujas entidades gestoras respondem ao ACNUR, para escuta social e aplicação do Jogo Se Vira, que é parte do Pense Grande, iniciativa da Fundação Telefônica Vivo com execução do CIEDS. O ACNUR apoiou ainda o curso Direitos, Cultura e Habilidades para Vida, foi parceiro na organização do Inspira Boa Vista e introduziu o CIEDS na plataforma interagencial R4V - Response for Venezuelans. Na etapa de aceleração dos negócios, o ACNUR possibilitou a seleção das empreendimentos apoiados pelo CIEDS para o curso online de empreendedorismo da Agência Besouro, que também criou a identidade visual dos negócios. Na plataforma Refugiados empreendedores, do ACNUR, o CIEDS emplacou a visibilização de uma de suas empreendedoras.
B153: Parceria: | D153: IFRR - Instituto Federal de Roraima
B154: Resumo:
B155: O CIEDS, em sua plataforma progamática de fomento ao empreendedorismo com construção de capacidades locais, provocou e acelerou o processo de criação da incubadora tecnológica de empresas do IFRR. Assim, a equipe do CIEDS qualificada no modelo CERNE de implementação e gestão de incubadoras prestou assessoria ao Núcleo de Inovação Tecnológica (NIT) para a criação da Koneka. Em contrapartida, os professores de empreendedorismo do IFRR participaram como instrutores e avaliadores das bancas de seleção promovidas pelo CIEDS nos eventos e cursos de formação empreendedora, além da cessão de espaço para realização das aulas. A partir do Acordo de Cooperação Técnica firmado, o CIEDS apoiará remotamente, pelo período de um ano, a Koneka com a sua primeira turma de empresas incubadas, das quais poderão participar as empreendedoras aceleradas pelo CIEDS. Por conta do contexto da pandemia o acordo deverá passar por alguns ajustes.

Sheet Dashboard Institucional
B7: BSC CIEDS | J7: Ano | N7: Ciclo | Q7: BSC CIEDS | Y7: Ciclo
J8: 2019 | L8: 2020 | N8: 2019 - 2020 | Y8: 2019 - 2020
B9: % de projetos com matriz de monitoramento e avaliação implementados | J9: ='Indicadores BSC'!B5 -> 1 | L9: ='Indicadores BSC'!C5 -> 1 | Q9: N° de horas voluntárias captadas e empregadas nos projetos e na consecução dos objetivos institucionais | Y9: ='Indicadores BSC'!D7 -> 1714
B10: % de projetos com promoção do voluntariado | J10: ='Indicadores BSC'!B6 -> 1 | L10: ='Indicadores BSC'!C6 -> 1 | Q10: Nº de empregos gerados por negócios criados, incubados, acelerados e/ou assessorados | Y10: 0
B11: % de projetos que apoiam e fortalecem organizações de base comunitária | J11: ='Indicadores BSC'!B7 -> 1623 | L11: ='Indicadores BSC'!C7 -> 91 | Q11: Nº de organizações de base comunitária inscritas na COMPARTIR | Y11: ='Indicadores BSC'!D13 -> 45
B12: % de projetos que se desdobram em novos projetos e/ou novos serviços e produtos | Q12: Nº de parcerias institucionais formalizadas com outras organizações | Y12: ='Indicadores BSC'!D14 -> 2
B13: Nº de inovações sociais e tecnológicas incorporadas nos projetos e áreas | J13: ='Indicadores BSC'!B11 -> 0 | L13: ='Indicadores BSC'!C11 -> 0 | Q13: Nº total de beneficiados diretos pelos nossos projetos | Y13: ='Indicadores BSC'!D17 -> 246
B14: Nº de participações em seminários, congressos, etc (na qualidade de expositor) | J14: ='Indicadores BSC'!B15 -> 2 | L14: ='Indicadores BSC'!C14 -> 0 | Q14: Índice de satisfação dos públicos | Y14: ='Input de Indicadores'!B24 -> 0.8572420531
B15: Nº de práticas com sistematizações elaboradas | J15: ='Indicadores BSC'!B16 -> 0 | L15: ='Indicadores BSC'!C16 -> 1
B18: Recursos não-monetários
B21: ='BSC Não-Monetário'!F14 -> 304025.7944

Sheet Framework (hidden)
B2: Trazer a matriz tipológica; Os que já existem mantém;
B4: Framework | C4: REPORT RIS
C5: 2019 | D5: 2020
B6: # Total de atores consultados | G6: LEGENDA:
B7: # Total de atores consultados estratificados segundo perfil e setor de atuação | G7: Indicadores que ainda são possíveis de se obter
B8: % de pessoas que classificam a iniciativa como necessária | G8: Indicadores que existem mas cujos dados precisam ser tratados
B9: % de pessoas que classificam a iniciativa como necessária segundo estratificação do perfil.
B10: Percentual de itens do instrumento censitário/diagnóstico elegidos a partir de consulta prévia
B11: # de ações planejadas segundo perfil e potencial de atendimento dos públicos (definir escala de potencial)
B12: Percentual de pessoas que classifcam como pertinente (adequada) a estratégia da iniciativa frente aos impactos do fluxo migratório (medição base zero e final de cada ciclo)
B13: # de redes de apoio levantadas no primeiro ciclo da TS
B14: # de pessoas atendidas pelas redes de apoio antes do segundo ciclo da TS
B15: # de migrantes e refugiados/as inseridos em redes de apoio em decorrência da TS
B16: Grau de reversibilidade de impactos negativos (definir escala)
B17: % de pessoas que declaram ter confiança o futuro
B18: % de pessoas que declaram ter confiança o futuro segundo estratificação do perfil. Obs.: Realizar levantamento T0 através do diagnóstico
B19: percentual de ideias / soluções propostas pelos públicos que levam em consideração elementos de etnicidade
B20: # de organizações (públicas, privadas e sociais) e/ou atores de influência com adesão à iniciativa (TS) | E20: *Gráfico de parcerias
B21: % de representantes segundo estratificação presente no colegiado.
B22: % de soluções propostas no Ideathon advindas de duplas / grupos que mesclam brasileiros e migrantes/refugiados garantindo a proporção dos públicos. (definir parâmetro)
B23: % de ideias por setor econômico
B24: % de negócios propostos no Ideathon advindos de por duplas / grupos que mesclam migrantes e brasileiros garantindo a proporção dos públicos. (definir parâmetro)
B25: % de participantes do Ideathon provenientes de instituições de ensino superior e/ou P&D em relação aos demais setores convidados
B26: percentual de negócios/soluções implementados que atendem parâmetros de sustentabilidade (definir parâmetros)
B27: percentual de organizações fortalecidas que atendem parâmetros de sustentabilidade (definir parâmetros)
B28: # Total de atores participantes das atividades previstas x esperados
B29: # Total de atores participantes das atividades previstas estratificados segundo perfil e setor de atuação
B30: Taxa de continuidade dos participantes nas atividades
B31: Proporção de jovens concluintes nas formações gerais
B32: Taxa de continuidade dos jovens nas formações.
B33: Índice de satisfação (jovens) PS.: caso seja pertinente a mensuração do impacto das formações, desdobrar métricas para a analise de impacto.
B34: Proporção de mulheres concluintes nas formações gerais
B35: Taxa de continuidade das mulheres nas formações.
B36: Índice de satisfação (mulheres) PS.: caso seja pertinente a mensuração do impacto das formações, desdobrar métricas para a analise de impacto.
B37: # Total de pessoas concluintes dos processos formativos gerais
B38: Percentual de pessoas que desenvolveram/reconhecem novas competências (escala likert - base zero e saída)
B39: Percentual de pessoas que se inscreveram em cursos online na Compartir após o treinamento geral
B40: # Total de inscritos por vaga disponibilizada | E40: *Taxa de participação
B41: % de inscritos segundo estratificação
B42: # % de inscritos na Compartir, a plataforma do CIEDS para organizações de base | E42: *Compartir
B43: Proporção de ações da TS que utilizam tecnologias digitais não substituíveis no mercado
B44: % de soluções/negócios que contam o suporte de instituições de ensino superior e/ou P&D
B45: # de novos negócios criados e incubados pela incubadora do Instituto Federal de Roraima
B46: Taxa de inclusão produtiva dos concluintes das formações gerais
B47: Taxa de inclusão produtiva dos concluintes das formações específicas
B48: # Total de renda gerada decorrente da iniciativa
B49: # Total de arrecadação gerada decorrente da iniciativa Obs.: Realizar levantamento T0 através do diagnóstico
B50: # de iniciantes na formação geral segundo perfil etário | E50: *CPF único
B51: % de jovens concluintes nas formações específicas
B52: Taxa de continuidade dos jovens nas formações. | E52: *Participantes/concluintes
B53: Índice de satisfação PS.: caso seja pertinente a mensuração do impacto das formações, desdobrar métricas para a analise de impacto.
B54: # de iniciantes na formação geral segundo gênero | E54: *CPF único
B55: % de mulheres concluintes nas formações específicas
B56: Taxa de continuidade das mulheres nas formações. | E56: *CPF único
B57: Índice de satisfação PS.: caso seja pertinente a mensuração do impacto das formações, desdobrar métricas para a analise de impacto. | E57: *Indice de satisfação geral (Dash projeto)
B58: # de processos-chave mapeados e implantados como parte do acordo de cooperação com a incubadora
B59: % de sucesso (resultado) dos processos implantados (definir parâmetros)
B60: # de iniciantes na formação específica | E60: *CPF único
B61: # Total de pessoas concluintes dos processos formativos específicos | E61: *Concluintes nas formações
B62: Taxa de continuidade dos participantes nas formações | E62: *Participantes/concluintes
B63: % de pessoas que desenvolveram/reconhecem novas competências (escala likert - base zero e saída)
B64: % de pessoas que se inscreveram em cursos online na Compartir após treinamento específico | E64: *Aba compartir
B65: Matriz tipológica de aprendizagens geradas
B66: Grau de inovação da tecnologia social (definir parâmetros)
B67: Grau de flexibilidade metodológica (definir parâmetros)
B68: Custo per capita bruto da TS
B69: Taxa de retorno social do investimento realizado
B70: Diversidade de produtos de comunicação para disseminicação da iniciativa
B71: # Número de "embaixadores"da iniciativa segundo o perfil
B72: % de atores locais declarando apropriação da metodologia para reaplicação local

Sheet Perfil

Sheet Input de Indicadores (hidden)
A3: Dimensão Pessoas | E3: Dimesão Capacidades Locais | I3: Dimensão Geração de Renda e Impacto Social | N3: DELTAS
A4: Beneficiários Diretos | E4: Formações | I4: Investimento | N4: Empreendedora | O4: Régua de Maturidade | U4: Faturamento (médio) | Y4: # Funcionários | AC4: Legalização
A5: Número de beneficiários diretos | B5: ='CPF único'!E2160 -> 252 | E5: CH PG | F5: 2 dias | G5: 16 horas | I5: Renda gerada ao público selecionado (Migrantes venezuelanos (as) e brasileiros (as) de baixa renda) | J5: ='Indicadores BSC'!B29 -> 40450 | O5: V0 | Q5: V1 | S5: Delta
A6: Número de beneficiários diretos (CPF único) | B6: ='CPF único'!F2161 -> 213 | C6: *Manual | E6: CH FDHV | F6: 8 dias | G6: 60 horas | I6: Capital investido nos negócios selecionados para aceleração | J6: 40000 | N6: Nome | O6: Estágio | P6: Nota | Q6: Estágio | R6: Nota | S6: Avanço de estágio | T6: Performance (%) | U6: V0 | V6: V1 | W6: Delta | X6: Performance (%) | Y6: V0 | Z6: V1 | AA6: Delta | AB6: Performance (%) | AC6: V0 | AD6: V1 | AE6: Performance (%)
A7: Empreendedores selecionados para aceleração | B7: 8 | E7: Formadores | I7: Resultado financeiro do investimento | J7: =L7*M7 -> 64000 | K7: fat dos negócios / capital investido | L7: 4 | M7: 16000 | N7: Ruth del Carmen Aragon de Viloria | O7: 2 | P7: 28 | Q7: 2 | R7: 52 | S7: =Q7-O7 -> 0 | T7: =(R7-P7)/R7 -> 0.4615384615 | U7: =((3000+6000)/2) -> 4500 | V7: 8000 | W7: =V7-U7 -> 3500 | X7: =(V7-U7)/V7 -> 0.4375 | Y7: 10 | Z7: 8 | AA7: =Z7-Y7 -> -2 | AB7: =(Z7-Y7)/Z7 -> -0.25 | AC7: Sim | AD7: Sim
A8: Beneficiários Indiretos | E8: Mediadores | F8: 13 | I8: Renda | N8: Yulbis Coromoto Figuera | O8: 2 | P8: 28 | Q8: 2 | R8: 54 | S8: =Q8-O8 -> 0 | T8: =(R8-P8)/R8 -> 0.4814814815 | U8: 2510 | V8: 4400 | W8: =V8-U8 -> 1890 | X8: =(V8-U8)/V8 -> 0.4295454545 | Y8: 0 | Z8: 1 | AA8: =Z8-Y8 -> 1 | AB8: =(Z8-Y8)/Z8 -> 1 | AC8: Não | AD8: Sim
A9: Beneficiários indiretos | B9: ='Apoio Indicadores'!H13 -> 3200 | C9: =SUM(B10:B12,B26) -> 3200 | E9: Voluntários | F9: 18 | G9: TOTAL | I9: Volume de impostos gerados (R$) | J9: N/A | K9: Valor do MEI * 8 | L9: 57.25 | N9: Karina Campos | O9: 1 | P9: 24 | Q9: 2 | R9: 42 | S9: 1 | T9: 0.4285714286 | U9: =(700+900)/2 -> 800 | V9: 1500 | W9: 700 | X9: 0.4666666667 | Y9: 0 | Z9: 1 | AA9: 1 | AB9: 1 | AC9: Não | AD9: Não
A10: Visitantes no Inspira Boa Vista | B10: ='Apoio Indicadores'!H9 -> 1100 | E10: Formadores | F10: 16 | G10: =SUM(F8:F10) -> 47 | I10: # de oportunidades de renda (empregos formais e informais) criadas | J10: ? | L10: Planilha Sistematização de Negócios | N10: Aron Ribeiro | O10: 2 | P10: 20 | S10: -2 | U10: 0 | V10: 4000 | W10: 4000 | X10: 1 | Y10: 2 | Z10: 2 | AA10: 0 | AB10: 0 | AC10: Sim | AD10: Sim
A11: Formadores (migrantes e brasileiros/as baixa renda) | B11: =SUM('Apoio Indicadores'!H6:H7) -> 38 | E11: Mediadores PG Mulheres | F11: ='bd_Mediadores e Voluntários PG'!F35 -> 0.5161290323 | I11: Negócios | N11: Carmen Dell Valle | O11: 1 | P11: 24 | Q11: 2 | R11: 52 | S11: 1 | T11: 0.5384615385 | U11: 175 | V11: 1400 | W11: 1225 | X11: 0.875 | Y11: 2 | Z11: 2 | AA11: 0 | AB11: 0 | AC11: Não | AD11: Não
A12: Voluntários | B12: ='Apoio Indicadores'!H5 -> 138 | E12: Formadoras Mulheres | F12: =' bd_Formadores DCHV'!H19 -> 0.7333333333 | H12: 2104 | I12: Total de negócios formalizados | J12: 5 | K12: CNPJ | N12: Karina Hernández | O12: 1 | P12: 24 | Q12: 2 | R12: 50 | S12: 1 | T12: 0.52 | U12: 0 | V12: 0 | W12: 0 | Y12: 0 | Z12: 0 | AA12: 0 | AC12: Não | AD12: Não
A13: Carga Horária Voluntários (formações, bancas de avaliação e produção de evento) | B13: ='Indicadores BSC'!D7 -> 1714 | E13: Mediadores PG refugiados | F13: N/A | I13: Volume de faturamento dos negócios (R$) | J13: ? | K13: Somar fat de cada negócio | N13: Maria Gabriela | O13: 1 | P13: 19 | S13: -1 | U13: 600 | V13: 0 | W13: -600 | Y13: 0 | Z13: 0 | AA13: 0 | AC13: Não | AD13: Sim
A14: Jornada do Usuário | E14: Formadoroes Refugiados | F14: =' bd_Formadores DCHV'!E19 -> 0.5333333333 | I14: Avanço do grau de maturidade dos negócios | J14: ? | K14: T0 e T1 grau de maturidade | N14: Jacqueline | O14: 2 | P14: 28 | S14: -2 | U14: 2000 | V14: 4500 | W14: 2500 | X14: 0.5555555556 | Y14: 0 | Z14: 2 | AA14: 2 | AB14: 1 | AC14: Sim | AD14: Sim
A15: Pessoas atendidas mais de 1 vez pelo projeto | B15: ='CPF único'!E2159 -> 48 | C15: =B15/B5 -> 0.1904761905 | E15: Total mulheres | F15: =AVERAGE(F11:F12) -> 0.6247311828 | I15: % de negocios que são sustentáveis | J15: ? | L15: Parametros da Tese de Investimento | N15: Média | S15: =AVERAGE(S7:S14) -> -0.25 | U15: =AVERAGE(U7:U14) -> 1323.125 | V15: =AVERAGE(V7:V14) -> 2975 | W15: 1651.875 | X15: 0.5552521008 | Y15: =AVERAGE(Y7:Y14) -> 1.75 | Z15: =AVERAGE(Z7:Z14) -> 2 | AA15: 0.25 | AB15: 0.125
A16: Taxa de participação minima | B16: =SMALL('CPF único'!G2146:K2146,1) -> 0.34 | E16: Total refugiados | F16: =F14 -> 0.5333333333 | I16: % de negocios por setor economico | N16: Total | U16: =SUM(U7:U14) -> 10585 | V16: =SUM(V7:V14) -> 23800 | W16: 13215 | X16: 0.5552521008 | Y16: =SUM(Y7:Y14) -> 14 | Z16: =SUM(Z7:Z14) -> 16 | AA16: 2 | AB16: 0.125 | AC16: =COUNTIF(AC7:AC14,"Sim") -> 3 | AD16: =COUNTIF(AD7:AD14,"Sim") -> 5 | AE16: =(AD16-AC16)/AD16 -> 0.4
A17: Taxa de participação máxima | B17: =LARGE('CPF único'!G2146:K2146,1) -> 0.8 | E17: Fortalecimento da sociedade civil | I17: Gastronomia | J17: 3 | K17: =J17/$J$22 -> 0.375 | L17: Origem dados: Planilha inscrição Idethon - Selecionados | P17: 1
A18: Taxa de engajamento médio (sem PG) - Entre etapas* (Adicionar a dash) | B18: ='CPF único'!O2148 -> 0.3138888889 | E18: Organizações sociais capacitadas | F18: 9 | I18: Saúde e Bem Estar | J18: 1 | K18: =J18/$J$22 -> 0.125 | L18: *Entende-se por diversos: saúde humana, serviço social e serviços domésticos. | P18: 2
A19: Total de pessoas mobilizadas por meio das etapas de formação e de sensibilização (Pense Grande) | B19: ='CPF único'!E2151 -> 2140 | E19: CH de formações online | F19: ? | I19: Educação | J19: 1 | K19: =J19/$J$22 -> 0.125 | P19: 1
A20: Total de participantes nas etapas formativas | B20: ='CPF único'!G2144+'CPF único'!H2144+'CPF único'!J2144+'CPF único'!K2144 -> 252 | E20: Organizações sociais mentoradas pelo CIEDS | F20: 1 | I20: Bens de Consumo | J20: 2 | K20: =J20/$J$22 -> 0.25
A21: Índice de Satisfação | E21: % de migrantes | F21: 0 | I21: Comunicação | J21: 1 | K21: =J21/$J$22 -> 0.125
A22: índice de Satisfação dos públicos (2020) | B22: =AVERAGE(J47,R57) -> 0.7955357143 | I22: Total | J22: 8
A23: índice de Satisfação dos públicos (2019) | B23: =AVERAGE(B48,F50) -> 0.9189483918 | E23: Parcerias | I23: Deltas
A24: Média | B24: =AVERAGE(B22:B23) -> 0.8572420531
A25: Pense Grande | E25: Inovação e Criatividade | F25: 0.07142857143 | G25: 3 | I25: Planilha ao lado
A26: Beneficiários mobilizados | B26: ='CPF único'!B2168 -> 1924 | E26: Desenvolvimento de Novos Négocios | F26: 0.09523809524 | G26: 4
A27: Taxa de participação | B27: ='CPF único'!C2167 -> 0.5580918184 | E27: Economia Colaborativa | F27: 0.2380952381 | G27: 10
A28: Taxa de engajamento médio | B28: ='CPF único'!O2147 -> 0.2572429907 | E28: Economia Digital | F28: 0.09523809524 | G28: 4
A29: *Entende-se por engajamento médio o beneficiário que participou da mobilização Pense Grande e outras formações do projeto. | E29: Lazer e Recreação | F29: 0.1666666667 | G29: 7
E30: Finanças | F30: 0.07142857143 | G30: 3
E31: Serviços ao Público | F31: 0.1666666667 | G31: 7
E32: Trabalho e Emprego | F32: 0.09523809524 | G32: 4
E33: Total de parcerias | F33: =Parcerias!H12 -> 42
E34: Qualitativo: destaque para relação com PNUD (desdobramento para Desenvolve!) e IFRR e incidência na agenda; articulação com outros atores; Inspira Boa Vista; sistematizaçã da experiência com a Tecnologia Social e disseminação da experiência e dos resultados
A38: [conjunto de indicadores apresentados pela Matriz Atitudinal]
A41: Participantes | E41: Participantes | I41: Participantes | M41: Participantes | Q41: Participantes
A42: Participantes | B42: 140 | E42: Vagas | F42: 200 | I42: Negócios aprovados | J42: 60 | M42: 1º dia de oficina | N42: 109 | Q42: Mobilizados | R42: 577
A43: Vagas | B43: 250 | E43: Participantes | F43: ='CPF único'!H2144 -> 70 | I43: Concluintes | J43: 24 | M43: 2º dia de oficina | N43: 74 | Q43: Cadastrados | R43: 45 | S43: 0.08
A44: Inscritos | B44: 608 | E44: Inscrições | F44: 144 | I44: Evasão | J44: 0.68 | M44: Evasão | N44: 0.321 | Q44: Inscritos | R44: 15 | S44: 0.33
A45: Concluintes | B45: 93 | E45: Avaliados pela banca | F45: 70 | I45: Taxa de engajamento | J45: 0.57 | M45: Convidados | N45: 180 | Q45: Iniciantes | R45: 9 | S45: 0.6
A46: Taxa de engajamento | B46: 0.36 | E46: Aprovados pela banca | F46: 60 | I46: Taxa de participação | J46: ='CPF único'!J2146 -> 0.34 | M46: Estimativa de Convidados | N46: 155 | Q46: Concluintes | R46: 4 | S46: 0.444
A47: Taxa de participação | B47: ='CPF único'!G2146 -> 0.56 | E47: Taxa de engajamento | F47: 0.5 | I47: Satisfação | J47: ='Índice de Satisfação'!X280 -> 0.9910714286 | M47: Construção de Capacidades | Q47: Boa Vista | R47: 72
A48: Taxa de Satisfação | B48: ='Índice de Satisfação'!X277 -> 0.8414179104 | E48: Taxa de participação | F48: ='CPF único'!H2146 -> 0.35 | I48: Vagas | J48: 100 | M48: Indiretos | N48: 76 | Q48: Pacaraíma | R48: 1
A49: Construção de Capacidades | E49: Taxa de satisfação Banca | F49: =Controle_Formações!L53 -> 1 | M49: Diretos | N49: 27 | Q49: Caracaraí | R49: 2
A50: Formadores | B50: 16 | E50: Taxa de satisfação participantes | F50: =Controle_Formações!L54 -> 0.9964788732 | I50: Construção de Capacidades | M50: Diretos únicos | N50: 25 | Q50: Construção de Capacidades
A51: Formação de formadores | B51: 8 dias | C51: 60 horas | I51: Carga horária formativa | J51: 120h | M51: Total participantes | N51: =SUM(N48:N49) -> 103 | Q51: Mentores Voluntários | R51: 5
A52: Formação dos participantes | B52: 60 | E52: Geração de Renda e Impacto Social | M52: Geração de Renda e Impacto Social | Q52: Concluintes mentorados | R52: 1
A53: Geração de Renda e Impacto Social | I53: Geração de Renda e Impacto Social | Q53: Cursos Realizados | R53: 8
A54: Geração de renda aos formadores | B54: R$: 27.440,00 | E54: Funil DCHV | F54: ='CPF único'!G2144 -> 140 | Q54: Média de cursos por participantes | R54: 2
B55: R$ 1.960 por pessoa. | E55: Funil IDT | F55: ='CPF único'!F2154 -> 35 | I55: Funil DCHV | J55: ='CPF único'!G2144 -> 140 | Q55: Total de Horas cursadas | R55: 27h30
A56: Funil | B56: ='CPF único'!G2144 -> 140 | I56: Funil IDT | J56: ='CPF único'!F2154 -> 35
I57: Funil FEM | J57: ='CPF único'!F2157 -> 13 | Q57: Taxa de satisfação mentoria | R57: 0.6
I58: Funil ACE | J58: 8

Sheet DCHV
T83: •

Sheet IDT
M110: Estágio 1 - Estou no começo da minha trajetória empreendedora. É o momento de explorar para ter mais certeza sobre minha ideia de negócio.
M112: Estágio 2 - Já tenho clareza sobre minha ideia de negócio, mas preciso entender como vou colocá-la em prática.
M114: Estágio 3 - Meu negócio já existe, está operando e já realizei as primeiras vendas.
M115: Estágio 4 - Meu negócio está estruturado e preparado para crescer.

Sheet Índice de Satisfação (hidden)
A3: Carimbo de data/hora | B3: Nome do formador 1 | C3: Nome do formador 2 | D3: Nome do módulo | E3: Período da oficina | F3: Local da Oficina | G3: Data da oficina | H3: Horário | I3: Número de participantes previsto | J3: Número de participantes presentes | K3: Agora insira aqui a lista de presença da sua turma | L3: Informe se a carga horária foi suficiente para o cumprimento do conteúdo | M3: Se não foi suficiente, nos diga por quê. | N3: A quantidade de material foi suficiente? | O3: Breve relato da oficina | P3: Pontos positivos | Q3: Pontos de atenção | R3: O que nós podemos melhorar para a próxima oficina? | S3: O que você pode melhorar para próxima oficina? | T3: Como foi a aceitação do grupo com relação ao tema oferecido? | U3: Categoria de Análise | V3: Que nota você dá para esta oficina? | W3: Insira aqui a planilha de controle de frequência | X3: Nota Satisfação
A4: 2019-08-26T23:03:57.823 | B4: Elisa | C4: Jose | D4: Direito e cultura | E4: Noite | F4: Cch | G4: 2019-08-24 | H4: 08:00:00 | I4: 30 | J4: 5 | K4: https://drive.google.com/open?id=16mWzbXUHYKlSoRTaXQ9at5IdMLOVyMZu | L4: Foi suficiente | N4: Não | O4: Foi aceita, o tema dos direitos foi muito bem recebido pelos estudantes | P4: Interés das péssoas em participar e conhecer | Q4: Falta de material, falta de logística, desorganização, confusão nós horários. | R4: Logística e organização | S4: Fechar melhor a participação dos formadores | T4: Os participantes gostaram do módulo tinham muito interesse tiraram dúvida e ficaram algumas pendente | U4: Indiferente | V4: 4 | X4: =IF(U4=[1]base!$C$3,[1]base!$D$3,IF('[1]Respostas ao formulário 1'!U2=[1]base!$C$4,[1]base!$D$4,IF('[1]Respostas ao formulário 1'!U2=[1]base!$C$5,[1]base!$D$5,IF('[1]Respostas ao formulário 1'!U2=[1]base!$C$6,[1]base!$D$6,IF('[1]Respostas ao formulário 1'!U2=[1]base!$C$7,[1]base!$D$7))))) -> 0.5 | Z4: FORMADORES DCHV
A5: 2019-08-26T23:12:55.290 | B5: Adriana Duarte | C5: Jaidan Dos Santos | D5: Direitos, Cultura e Habilidades para a Vida Modulo I até IV | E5: Manhã | F5: UFRR CCLA 142 | G5: 2019-08-24 | H5: 08:00:00 | I5: 11 | J5: 10 | K5: https://drive.google.com/open?id=1IWqlxF8QeUvIetRllIFOfMJxFVWpzL1W | L5: Não foi suficiente | M5: A aula demorou para começar. A atividade do módulo 4, de rotação pelas estaçãos demorou mais que o esperado. Tivemos que passar por alguns conteúdo muito rapidamente mais conseguimos terminar os 4 módulos. Em consenso com o grupo, só demos uma hora de almoço e terminamos 30 minutos depois do esperado | N5: Sim | O5: Trabalhamos com 10 pessoas do Brasão Rondon III, dois homens, duas trans e as demais mulheres. Foi uma turma muito aberta e receptiva e gostavam das atividades. Demos a aula em português e conseguimos gerar interesse e também incorporar várias dinâmicas. A metodologia funcionou perfeitamente mais o tempo sempre foi rápido. | P5: Eles passaram todos os testes e quiz de um jeito ótimo. Eles saíram sorrindo querendo a participação dos outros companheiros do Rondon III que não conseguiram se mobilizar a pé. | Q5: A assistência é ameaçada pela capacidade dos migrantes de garantir comida e transporte, o tempo quente e chuvoso pode afetar nossas oficínas porque eles se deslocam a pé pelo menos 40 minutos | R5: Pontualidade e tentar ter mapas para localizar os participantes nos espaços com informações claras de onde deveriam estar e a que horas, antes de se dispersar a turma. Muitos não têm telefone e a comunicação não é fácil. | S5: Compreender melhor como funcionam as instâncias de suporte e as instituições de Boa Vista. Felizmente, na minha turma, Jaidan me acompanhou e ele sabia exatamente aonde as pessoas deveriam ir e quais sites procurar em casos específicos. | T5: O ponto mais controverso na aula foi o direito à saúde, porque eles sentem mais fortemente a xenofobia a esse respeito. Eles acham que ninguém respeita a lei neste aspecto | U5: Insatisfeito | V5: 5 | X5: =IF(U5=[1]base!$C$3,[1]base!$D$3,IF('[1]Respostas ao formulário 1'!U3=[1]base!$C$4,[1]base!$D$4,IF('[1]Respostas ao formulário 1'!U3=[1]base!$C$5,[1]base!$D$5,IF('[1]Respostas ao formulário 1'!U3=[1]base!$C$6,[1]base!$D$6,IF('[1]Respostas ao formulário 1'!U3=[1]base!$C$7,[1]base!$D$7))))) -> 0.25 | Z5: Muito Satisfeito | AA5: =COUNTIF(U4:U137,"Muito satisfeito") -> 70 | AB5: =AA5/133 -> 0.5263157895
A6: 2019-08-27T09:01:07.504 | B6: Celeste Guadarrama | C6: Elsie Silva | D6: Assistência e Mundo de Trabalho | E6: Manhã | F6: CCH Sala 3 | G6: 2019-08-24 | H6: 08:00:00 | I6: 10 | J6: 8 | K6: https://drive.google.com/open?id=1et8WHumJda55rhjXJb-ZvuNrlJ18QrBR | L6: Não foi suficiente | M6: Varios cursistas demoraram em achar a sala, e outros casos de equivoco com os horario. Surgiram muitas duvidas e comentarios e a gestão do tempo num primeiro contato foi desafiadora para a equipe de formadores | N6: Sim | O6: Alguns cursistas tinham conhecimento previo sobre os conteudo. As Leis trabalhistas trouxeram muitas duvidas sobre o dia a dia dos cursistas, duvidas que foram sanadas no dialogo. Como denunciar casos de exploração laboral, como identificar se eu estou sendo explorado, como se formalizar como trabalhador autonomo e os beneficios. Alguns de identificaram com os casos expostos | P6: Interesse, engajamento, opinião | Q6: Gestão do tempo, intervenções muito longas que as vezes | R6: Já com os grupos constituidos podera ser melhorado a gestão das frequencias dos alunos | S6: Gestão do tempo e Levar exemplos cotidianos para abordagem das polemicas | T6: Muito Boa | U6: Muito satisfeito | V6: 4 | X6: =IF(U6=[1]base!$C$3,[1]base!$D$3,IF('[1]Respostas ao formulário 1'!U4=[1]base!$C$4,[1]base!$D$4,IF('[1]Respostas ao formulário 1'!U4=[1]base!$C$5,[1]base!$D$5,IF('[1]Respostas ao formulário 1'!U4=[1]base!$C$6,[1]base!$D$6,IF('[1]Respostas ao formulário 1'!U4=[1]base!$C$7,[1]base!$D$7))))) -> 1 | Z6: Satisfeito | AA6: =COUNTIF(U4:U137,"Satisfeito") -> 44 | AB6: =AA6/133 -> 0.3308270677
A7: 2019-08-27T10:45:58.858 | B7: Angelo | C7: Luz | D7: Assitência e mundo do trabalho | E7: Manhã | F7: CCH | G7: 2019-08-24 | H7: 09:12:00 | I7: 13 | J7: 11 | K7: https://drive.google.com/open?id=1nXJyV1yyxcuNHQGoj7iRI24IHtstI56h | L7: Foi suficiente | N7: Sim | O7: A oficina iniciou apresentam aos alunos. Se fez aula expositiva. Se realizou um world café. Seção de perguntas e respostas. Se finalizou com um Quiz e um teste. | P7: Participação ativa de todos os alunos, boa assimilação do tema por parte dos alunos. | Q7: Dificultade dos alunos para achar o local da aula gerando atrassos | R7: Sinalizar o local das aulas | S7: Administrar melhor os temposnde intervenção dos alunos | T7: Boa a aceitação | U7: Satisfeito | V7: 4 | X7: =IF(U7=[1]base!$C$3,[1]base!$D$3,IF('[1]Respostas ao formulário 1'!U5=[1]base!$C$4,[1]base!$D$4,IF('[1]Respostas ao formulário 1'!U5=[1]base!$C$5,[1]base!$D$5,IF('[1]Respostas ao formulário 1'!U5=[1]base!$C$6,[1]base!$D$6,IF('[1]Respostas ao formulário 1'!U5=[1]base!$C$7,[1]base!$D$7))))) -> 0.75 | Z7: Indiferente | AA7: =COUNTIF(U4:U137,"Indiferente") -> 19 | AB7: =AA7/133 -> 0.1428571429
A8: 2019-08-27T11:39:47.718 | B8: Angelo | C8: Luz | D8: Direito a educação e saude | E8: Tarde | F8: CCH (UFRR) | G8: 2019-08-24 | H8: 14:16:00 | I8: 13 | J8: 11 | K8: https://drive.google.com/open?id=1XQUek50KYJB3Mx20gxC-qCZKdKFfqFEM | L8: Foi suficiente | N8: Sim | O8: Foi feita a introdução e a dinâmica de duplas, logo se fez uma aula expositiva. Perguntas e respostas, e por ultimo foi feito um Quiz e um teste. | P8: Bom dominio do tema por partd do grupo | Q8: Alguns alunos não se sentiram identificados com as histórias | R8: Ampliar o número de historias para que todos possam se sentir identificados | S8: Trazer mais exemplos sobre o tema | T8: Foi boa. Mais surgiu o debate entre os alunos se estendeu muito e foi preciso intervir | U8: Indiferente | V8: 4 | X8: =IF(U8=[1]base!$C$3,[1]base!$D$3,IF('[1]Respostas ao formulário 1'!U6=[1]base!$C$4,[1]base!$D$4,IF('[1]Respostas ao formulário 1'!U6=[1]base!$C$5,[1]base!$D$5,IF('[1]Respostas ao formulário 1'!U6=[1]base!$C$6,[1]base!$D$6,IF('[1]Respostas ao formulário 1'!U6=[1]base!$C$7,[1]base!$D$7))))) -> 0.5 | Z8: Muito insatisfeito | AA8: =COUNTIF(U4:U137,"Muito insatisfeito") -> 0
A9: 2019-08-27T16:12:54.927 | B9: Celeste Guadarrama | C9: Elsie Silva | D9: Direito à educação e a saúde | E9: Tarde | F9: CCH Sala 3 | G9: 2019-08-24 | H9: 14:00:00 | I9: 8 | J9: 7 | K9: https://drive.google.com/open?id=1QtcsWgxLh_83qg6N6LalYdthpq5gZt4u | L9: Foi suficiente | N9: Sim | O9: Foram reforçadas as vias legais para o cumprimento do direito á saude. Os cursistas migrantes conseguiram esclarecer duvidas sobre revalidação de titulos profissionais, Provas de vestibular e Enem. O topico saúde trouxe dialogo entre alunos menos participativos, e alguns comentarios polemicos que foram ouvidos e redirecionados pela equipe de formadores. | R9: Na medida do possivel, habilitar um espaço para guardar a caixa de materiais. | S9: Incluir melhor os comentarios que surgem dentro da aula dentro da conclusão dos topicos. Gestão de tempo no modulo Direito | T9: Os alunos migrantes esclareceram duvidas referente aos serviços. Varios alunos Brasileiros aportaram relatos e vivencias referentes ao tema que ajudaram achar pontos de conciliação entre a realidade atual de Roraima em quanto à saude | U9: Muito satisfeito | V9: 4 | X9: =IF(U9=[1]base!$C$3,[1]base!$D$3,IF('[1]Respostas ao formulário 1'!U7=[1]base!$C$4,[1]base!$D$4,IF('[1]Respostas ao formulário 1'!U7=[1]base!$C$5,[1]base!$D$5,IF('[1]Respostas ao formulário 1'!U7=[1]base!$C$6,[1]base!$D$6,IF('[1]Respostas ao formulário 1'!U7=[1]base!$C$7,[1]base!$D$7))))) -> 1 | Z9: Insatisfeito | AA9: =COUNTIF(U4:U137,"Muito Insatisfeito") -> 0
A10: 2019-08-27T19:02:38.425 | B10: DOMINGO LUIS ANTONIO GONZÁLEZ PETOT | C10: SUKI MARGARITA RODRÍGUEZ RODRÍGUEZ | D10: Módulo 1 - Assistência e mundo de trabalho. Módulo 2 - Direito à educação e saúde. Módulo 3 - Conhecer para ser. Módulo 4 - O direito de ser quem sou. | E10: Manhã | F10: CCH (SALA 32) | G10: 2019-08-24 | H10: 08:00:00 | I10: 17 | J10: 14 | K10: https://drive.google.com/open?id=19fdil4GCBoYkI5LNGQcI0svZRMPCB0n6 | L10: Não foi suficiente | M10: 1) Vários cursistas chegaram um atrasados por causa de desconhecer onde estava o local dentro da UFRR, 2) A maioria dos cursistas não haviam conseguido ler os módulos porque o material deles foi entregue apenas o dia anterior pela noite, em algumas oportunidades foi necessário dar uns 10 min para ler o material, 3) A guia dos cursistas estava desordenada, dos poucos que sim leiram, alguns foi módulos errados, e 4) A participação dos cursistas foi muito ativa, mas tirou muito tempo para fazer 4 módulos em um mesmo dia. | N10: Sim | O10: A oficina foi muito positiva, houve participação dos cursistas tanto brasileiros quanto venezuelanos. A língua não foi problema, sempre se conseguiu entender o mundo todo, os brasileiros conseguiam entender o espanhol dos poucos venezuelanos que falaram em espanhol enquanto que a maioria dos venezuelanos conseguíram falar e entender em português. Os primeiros dois módulos (1 e 2) foram muitos bem desenvolvidos tanto na parte teórica quanto nas dinâmicas, os últimos dois (3 e 4) faltou tempo para completar as dinâmicas, sim embargo, foi possível dar a parte teórica completa de uma forma um pouco mais expositiva do facilitador para os cursistas, mas eles também tiveram algumas participações e colocações importantes. A parte trabalhista (módulo 1) gerou muita discussão construtiva da experiencia dos cursistas tanto no Brasil quanto na Venezuela. Sobre a área educativa e de saúde (módulo 2) resultou muito informativa o conteúdo da guia e a participação da experiencia de alguns deles acrescentou informação importantíssima. Sobre os direitos cidadãos (módulo 3) foi feito muito ênfase na questão dos direitos garantidos por ante a lei e o importante de conhecer-los e fazer-los valer. Finalmente, do módulo do direito a ser que sou (modulo 4) foi muito interessante, as falas e as colocações comparativas dos cursantes sobre aspeitos culturais entre o Brasil e a Venezuela resultaram contrastantes, como por exemplo, algumas palavras ou expressões "tabu" que em um país são inofensivas, mas no outro são percebidas como degradantes; também sobre a situações sociais frente à comunidade LBGT ou de migrantes. | P10: 1) Muito participativos os cursistas. 2) A língua não foi problema na comunicação português/espanhol(/portunhol) 3) Os cursistas gostaram do material. 4) Os cursistas gostaram das dinâmicas. 5) Os cursistas se sentiram tomados em conta com a possibilidades de tirar suas dúvidas, falar de suas experiencias e acrescentar e complementar o conteúdo. 6) Os cursistas aprenderam conhecimentos novos, entrando num processo de "empoderamento" sobre seus direitos. | Q10: Tempo: a duração das participações, testemunhas, depoimentos e dúvidas dos participantes são muito importantes, especialmente com a metodologia ativa onde o cursista deve desenvolver sua própria aprendizagem, quase todas as intervenções foram muito boas, acrescentado notavelmente os tópicos do módulo com informação muito importante, porém, tiram muito tempo para cumprir os períodos de cada modulo e fica muito desagradável para os facilitadores cortar as falas dos cursistas. | R10: 1) Entregar um mapa dos prédios e salas onde aconteceram as aulas, assim os participantes não ficarão perdidos na universidade, chegando tarde à sala. 2) Entregar com maior entelação o material dos cursistas, muito não conseguiram ler os módulos da primeira aula. 3) Entregar com maior antecipação as guias dos facilitadores, em físico foi apenas a noite anterior também, em digital mais dois dias. 4) Revisar a ordem da guia dos cursistas que resultou muito desordenada. | S10: Pedir aos participantes para fazer participações mais sintéticas para conseguir administrar melhor o tempo da oficina. | T10: Foi boa, mas a maioria não teve tempo para ler com antecipação essa primeira aula. | U10: Indiferente | V10: 5 | X10: =IF(U10=[1]base!$C$3,[1]base!$D$3,IF('[1]Respostas ao formulário 1'!U8=[1]base!$C$4,[1]base!$D$4,IF('[1]Respostas ao formulário 1'!U8=[1]base!$C$5,[1]base!$D$5,IF('[1]Respostas ao formulário 1'!U8=[1]base!$C$6,[1]base!$D$6,IF('[1]Respostas ao formulário 1'!U8=[1]base!$C$7,[1]base!$D$7))))) -> 0.5
A11: 2019-08-28T09:07:32.269 | B11: Angelo | C11: Cintia | D11: O direito de ser quem eu sou | E11: Tarde | F11: Insikiran | G11: 2019-08-26 | H11: 14:17:00 | I11: 9 | J11: 8 | K11: https://drive.google.com/open?id=1pg1qdYePdC4jatVSm5z7OF7xkCtnlvab | L11: Foi suficiente | N11: Sim | O11: Foi feita um revisão dos conteúdos estudados no sábado. Logo, se estudou com profundidade o tema quatro. | P11: Participação ativa do grupo, interesse no tema tratado, aceitação positiva. | Q11: O grupo foi diferente do grupo que se tratou no sábado, foi necessária fazer uma revisão dos temas. Muitos alunos tiveram dificultades para conseguir a aula. | R11: Sinalizar o local das aulas. | S11: Pedir aos alunos que incluam nome completo na frequência. | T11: Boa | U11: Satisfeito | V11: 4 | X11: =IF(U11=[1]base!$C$3,[1]base!$D$3,IF('[1]Respostas ao formulário 1'!U9=[1]base!$C$4,[1]base!$D$4,IF('[1]Respostas ao formulário 1'!U9=[1]base!$C$5,[1]base!$D$5,IF('[1]Respostas ao formulário 1'!U9=[1]base!$C$6,[1]base!$D$6,IF('[1]Respostas ao formulário 1'!U9=[1]base!$C$7,[1]base!$D$7))))) -> 0.75
A12: 2019-08-28T09:47:14.181 | B12: Angelo | C12: Cintia | D12: Cultura e costumes locais: território e transculturação. Como é de onde venho, e como é aquí onde vivo hoje? | E12: Tarde | F12: Insikiram | G12: 2019-08-27 | H12: 14:17:00 | I12: 9 | J12: 6 | K12: https://drive.google.com/open?id=1xIlfLMSjjeRYgu14K-fc_tEFmiV4SoLo | L12: Foi suficiente | N12: Não | O12: Oficina com mais participação do grupo, por se tratar de um grupo pequeno os alunos conseguiram falar por mais tempo. | P12: Os alunos tiveram mais tempo para se expressar, foi possível escutar todas as opiniões com calma e sem precisar intervir. | R12: Incluir mapas impresso do Brasil e da Venezuela no material do aluno | S12: Incluir jogos tradicionais as dinâmicas de abertura | T12: Ótima aceitação | U12: Muito satisfeito | V12: 4 | X12: =IF(U12=[1]base!$C$3,[1]base!$D$3,IF('[1]Respostas ao formulário 1'!U10=[1]base!$C$4,[1]base!$D$4,IF('[1]Respostas ao formulário 1'!U10=[1]base!$C$5,[1]base!$D$5,IF('[1]Respostas ao formulário 1'!U10=[1]base!$C$6,[1]base!$D$6,IF('[1]Respostas ao formulário 1'!U10=[1]base!$C$7,[1]base!$D$7))))) -> 1
A13: 2019-08-28T17:34:46.134 | B13: Carla Aparecida Domingues Rocha | C13: Alejandro Omar Molero | D13: Direitos, Culturas e Habilidades para vida | E13: Manhã | F13: Universidade Federal de Roraima | G13: 2019-08-24 | H13: 08:00:00 | I13: 30 | J13: 12 | K13: https://drive.google.com/open?id=1FFlFzIMgw4Xb-QBQnxRfaEbd1Eatxg1v | L13: Não foi suficiente | M13: Consegui finalizar o que foi proposto, mas esse módulo poderia ser melhor trabalhado se fosse acrescido de mais 4 h/a. | N13: Sim | O13: A oficina foi interessante e mexeu com os sentimentos das pessoas vítimas de violência sexual. | P13: O módulo Direito proporciona ao cursista ter conhecimento do seu Direito e Dever. | Q13: Ao tratar os subtemas ter atenção aos sentimentos que irão aflorar e a forma de incentivar os cursistas a darem continuidade. Ressalte aos formadores que os mesmos são mediadores, não bacharéis em Direitos. | R13: Demonstrar aos formadores que sua função é mediar os trabalhos, não ministrar aula de Direito. | S13: Podemos melhorar na dinâmica. | T13: Foi uma experiência única e prazerosa. É gratificante conseguir conduzir a oficina de forma semelhante a que eu aprendi. | U13: Muito satisfeito | V13: 5 | X13: =IF(U13=[1]base!$C$3,[1]base!$D$3,IF('[1]Respostas ao formulário 1'!U11=[1]base!$C$4,[1]base!$D$4,IF('[1]Respostas ao formulário 1'!U11=[1]base!$C$5,[1]base!$D$5,IF('[1]Respostas ao formulário 1'!U11=[1]base!$C$6,[1]base!$D$6,IF('[1]Respostas ao formulário 1'!U11=[1]base!$C$7,[1]base!$D$7))))) -> 1
A14: 2019-08-28T17:48:18.599 | B14: Carla Aparecida Domingues Rocha | C14: Alejandro Omar Molero | D14: Direitos, Cultura e Habilidades para Vida | E14: Manhã | F14: Universidade Federal de Roraima | G14: 2019-08-26 | H14: 08:00:00 | I14: 30 | J14: 21 | K14: https://drive.google.com/open?id=14DSLKYTG-NAfz37-LAPyRRr9x17Ti_nW | L14: Foi suficiente | N14: Sim | O14: Ao trabalharmos cultura observamos a importância para os migrantes sejam eles brasileiros ou venezuelanos ao falar de sua terra natal. | P14: Remete-los a sentimentos nostálgicos. | Q14: Dada a vulnerabilidade social ter atenção ao sentimento de tristeza que pode contagiar todos os cursistas. | R14: No caso desta especificamente nada. | S14: Essa oficina e a próxima atingiram as espectativas. | T14: Positivo. | U14: Satisfeito | V14: 5 | X14: =IF(U14=[1]base!$C$3,[1]base!$D$3,IF('[1]Respostas ao formulário 1'!U12=[1]base!$C$4,[1]base!$D$4,IF('[1]Respostas ao formulário 1'!U12=[1]base!$C$5,[1]base!$D$5,IF('[1]Respostas ao formulário 1'!U12=[1]base!$C$6,[1]base!$D$6,IF('[1]Respostas ao formulário 1'!U12=[1]base!$C$7,[1]base!$D$7))))) -> 0.75
A15: 2019-08-28T18:32:05.865 | B15: Carla Aparecida Domingues Rocha | C15: Alejandro Omar Molero | D15: Habilidades para vida. | E15: Manhã | F15: Universidade Federal de Roraima | G15: 2019-08-27 | H15: 08:00:00 | I15: 30 | J15: 21 | K15: https://drive.google.com/open?id=1dQXayZVF2tx1A6ZmW1jDcqdVo-ZKcX4y | L15: Foi suficiente | N15: Sim | O15: O módulo 8 ficou confuso por pedir uma avaliação do curso. Entendo que essa avaliação deveria ser ao final do curso de fato. | P15: Esse módulo faz a introdução para o próximo eixo de forma magnífica. | Q15: O módulo 8. | R15: Passar o módulo 8 para o final do curso. | S15: O desenrolar do módulo 8. | T15: Excelente | U15: Muito satisfeito | V15: 4 | X15: =IF(U15=[1]base!$C$3,[1]base!$D$3,IF('[1]Respostas ao formulário 1'!U13=[1]base!$C$4,[1]base!$D$4,IF('[1]Respostas ao formulário 1'!U13=[1]base!$C$5,[1]base!$D$5,IF('[1]Respostas ao formulário 1'!U13=[1]base!$C$6,[1]base!$D$6,IF('[1]Respostas ao formulário 1'!U13=[1]base!$C$7,[1]base!$D$7))))) -> 1
A16: 2019-08-29T09:46:23.075 | B16: Angelo | C16: Cintia | D16: Eu no mundo | E16: Tarde | F16: Insikiram | G16: 2019-08-28 | H16: 14:17:00 | I16: 9 | J16: 8 | K16: https://drive.google.com/open?id=1J3NdqfK8pT-GDQXyABBeS_O7wgiao_zI | L16: Foi suficiente | O16: Iniciou com uma dinâmica de meditação. Se revisou a tarefa de casa do tema 6 e se continuo com o tema 7. Ouve muita emotividade na atividade do tema 7 espacialmente quando tocou aos imigrantes falar da sua família | P16: O grupo criou lassos afetivos mais fortes | Q16: Alguns alunos tem problemas para chegar no horário, espacialmente os que moram nos abrigos | R16: No parágrafo 3 da metodologia do módulo 7, existia 10 minutos de diferença na duração da dinamica, 30 minutos para s parte em português e 20 para a parte em espanhol. | S16: Usar linguagem menos técnica, mais adaptada ao público | T16: Muito boa | U16: Muito satisfeito | V16: 5 | X16: =IF(U16=[1]base!$C$3,[1]base!$D$3,IF('[1]Respostas ao formulário 1'!U14=[1]base!$C$4,[1]base!$D$4,IF('[1]Respostas ao formulário 1'!U14=[1]base!$C$5,[1]base!$D$5,IF('[1]Respostas ao formulário 1'!U14=[1]base!$C$6,[1]base!$D$6,IF('[1]Respostas ao formulário 1'!U14=[1]base!$C$7,[1]base!$D$7))))) -> 1
A17: 2019-08-29T21:38:07.613 | B17: Carla Aparecida Domingues Rocha | C17: Alejandro Omar Molero | D17: A Jornada do Herói Real (módulo 1 - 1.1 e 1.2) | E17: Manhã | F17: Universidade Federal de Roraima | G17: 2019-08-28 | H17: 08:00:00 | I17: 30 | J17: 20 | K17: https://drive.google.com/open?id=1xsZ9u3POHhijW5Q7fUz0Lwm35u-9VtiR | L17: Foi suficiente | N17: Sim | O17: A construção da floresta proporcionou a interação entre brasileiros e venezuelanos. | P17: A integração entre brasileiros e venezuelanos; a solidariedade e o trabalho em equipe realizado. | Q17: Durante a construção da atividade "árvore da vida (Eu)" observar os cursistas que ficam retraídos. | R17: Essa oficina atinge as expectativas proposta. | S17: Podemos melhorar a dinâmica de aquecimento. | T17: Muito positiva, as lágrimas marcaram a oficina. Após a oficina recebemos muitos agradecimentos. | U17: Muito satisfeito | V17: 5 | X17: =IF(U17=[1]base!$C$3,[1]base!$D$3,IF('[1]Respostas ao formulário 1'!U15=[1]base!$C$4,[1]base!$D$4,IF('[1]Respostas ao formulário 1'!U15=[1]base!$C$5,[1]base!$D$5,IF('[1]Respostas ao formulário 1'!U15=[1]base!$C$6,[1]base!$D$6,IF('[1]Respostas ao formulário 1'!U15=[1]base!$C$7,[1]base!$D$7))))) -> 1
A18: 2019-08-29T22:00:28.971 | B18: Carla Aparecida Domingues Rocha | C18: Alejandro Omar Molero | D18: A Jornada do Herói Real (módulo 1 - 1.3 e 1.4) | E18: Manhã | F18: Universidade Federal de Roraima | G18: 2019-08-29 | H18: 08:00:00 | I18: 30 | J18: 18 | K18: https://drive.google.com/open?id=1VtGxMoFk3nxDTK8ffHzctJ4Fd9S9pAsA | L18: Foi suficiente | N18: Sim | O18: Fazê-los lembrar do passado, pensar no presente e planejar o futuro proporcionou um misto de sentimentos. | P18: A possibilidade de construção do futuro. | Q18: Citamos as pessoas idosas, pois as construções para o futuro devem ser trabalhadas dentro do limite das mesmas. | R18: Assim como a árvore da vida, essa oficina atingiu o objetivo desejado. Assim pensamos. | S18: Conseguimos conduzir a oficina de acordo com o que nos foi orientado. | T18: A experiência foi maravilhosa. Após as atividades muitos agradeceram pela oportunidade de fazê-los olhar para suas histórias de vida sob a ótica de que a construção do futuro dependerá de planejamento. | U18: Muito satisfeito | V18: 5 | X18: =IF(U18=[1]base!$C$3,[1]base!$D$3,IF('[1]Respostas ao formulário 1'!U16=[1]base!$C$4,[1]base!$D$4,IF('[1]Respostas ao formulário 1'!U16=[1]base!$C$5,[1]base!$D$5,IF('[1]Respostas ao formulário 1'!U16=[1]base!$C$6,[1]base!$D$6,IF('[1]Respostas ao formulário 1'!U16=[1]base!$C$7,[1]base!$D$7))))) -> 1
A19: 2019-08-30T08:49:29.604 | B19: Angelo | C19: Cintia | D19: Coleita do dia | E19: Tarde | F19: Insikiram | G19: 2019-08-29 | H19: 14:17:00 | I19: 9 | J19: 7 | K19: https://drive.google.com/open?id=1JnrKcL39VHIKE0kQGmbGXI8Z0TLHXsrI | L19: Foi suficiente | N19: Sim | O19: Se fez uma discussão sobre os assuntos tratados até esse momento, a oficina foi guiada com perguntas para os alunos. Depois foi realizada a dinâmica do plano de vida. | P19: Se esclareceram os pontos obscuros que continuavam sobre os assuntos anteriores | R19: Proporcionar uma explicação escrita sobre os tema 8 | S19: Falar mais pausado | T19: Ótima | U19: Muito satisfeito | V19: 5 | X19: =IF(U19=[1]base!$C$3,[1]base!$D$3,IF('[1]Respostas ao formulário 1'!U17=[1]base!$C$4,[1]base!$D$4,IF('[1]Respostas ao formulário 1'!U17=[1]base!$C$5,[1]base!$D$5,IF('[1]Respostas ao formulário 1'!U17=[1]base!$C$6,[1]base!$D$6,IF('[1]Respostas ao formulário 1'!U17=[1]base!$C$7,[1]base!$D$7))))) -> 1
A20: 2019-08-30T23:11:41.796 | B20: Fabíola de Souza Wickert | C20: Maria Gabriela Villalba | D20: Direitos e Deveres | E20: Manhã | F20: Sala 01 do Centro de Ciências Humanas da UFRR | G20: 2019-08-24 | H20: 04:00:00 | I20: 22 | J20: 16 | K20: https://drive.google.com/open?id=11waqiDIX3xMqMVsuGs3EIgn31ZOkIYmu | L20: Não foi suficiente | M20: Os temas apresentam muitos detalhes e há interesse dos participantes, tendo ainda, a necessidade de explicar com cautela e calma muitos detalhes em razão da variedade de graus de compreensão e escolaridade no grupo. Houve muitas interrupções pois os cursistas não estavam localizando as salas e ainda, muitos chegaram bastante atrasados (há redução de transporte coletivo nos finais de semana e as rotas existentes não são as melhores, além de contarmos com participantes que se deslocam caminhando por longas distâncias). | N20: Sim | O20: A oficina iniciou com atraso pois muitos cursistas se atrasaram, foi feita apresentação de todos e inicialmente foi explicada a metodologia do curso, esclarecendo que quanto ao tema de direitos e deveres, certamente haveriam muitas questões, porém era importante ater-se aos temas e não buscar informações sobre temas diversos. O conteúdo foi inteiramente ministrado seguindo a dinâmica proposta no manual, tendo sido as perguntas anotadas em papel para resposta posterior, uma vez que constantemente novos alunos entravam na sala. | P20: Os participantes obtiveram conhecimentos importantes quanto aos direitos e deveres trabalhistas, noções de cidadania (conceito, previsão legal, legislação acerca do processo migratório, especificamente quanto à legislação que trata de imigração, refúgio e residência); a informação quanto à caracterização de exploração labora, tipos de contratação e de trabalho permitem a busca por melhores oportunidades e deixa os participantes melhor preparados para atuar profissionalmente. A abordagem dos temas de Direitos Humanos e Direitos Fundamentais foi de extrema de relevância para todos. | R20: Informar previamente os locais de realização das aulas, identificar os locais, afixar cartazes com pequenos mapas do local de realização (especialmente tratando-se de um local muito amplo e com várias edificações). Contratar um auxiliar fixo para apoio na logística necessária para realização do evento, verificou-se um excesso de tarefas (material, organização, presenças, modelo de relatório, modelo de frequência, distribuição dos participantes) e pouco tempo, sem considerar imprevistos. Importante considerar a realidade local da cidade onde se realiza a atividade, bem como o perfil do público participante (muitos imigrantes não dispõem de recursos para transporte e alimentação, as distâncias são grandes para serem percorridas caminhando especialmente entre as 09 e as 17h em razão do intenso calor, o que inviabilizou que muitos cursistas pudessem fazer uma refeição no intervalo entre as oficinas, comprometendo o rendimento e aproveitamento). Além de tudo isso, o transporte público é deficitário e o alternativo torna-se demasiado caro para muitos dos participantes. Dividir as turmas desde o primeiro momento, de acordo com o horário escolhido para que mantenham-se em contato entre si e com os facilitadores desde o primeiro dia, favorecendo o estabelecimento do vínculo necessário para o envolvimento e que os cursistas se sintam confortáveis durante as atividades das oficinas futuras (uma vez que a formação é um processo em que cada um acessa muitas emoções e muitas pessoas têm dificuldades com falar de si mesmas e de demonstrar emoções, o que pode tornar suas experiências durante o curso, não tão proveitosas ou desconfortáveis quando não há um vínculo forte o suficiente para que todos fiquem confortáveis). | S20: Preparar um roteiro em papel previamente para não ter necessidade de fazê-lo durante o tempo da oficina, considerando que podem ocorrer atrasos e para não buscar informações no manual. Responder de pronto as perguntas para evitar mais demanda de trabalho posterior em razão da troca de facilitadores e da necessidade de repassar perguntas e respostas. | T20: O tema foi totalmente aceito e de grande interesse dos participantes | U20: Muito satisfeito | V20: 5 | W20: https://drive.google.com/open?id=1_SUr-9G0SCOybLiysH_49jgmx99r6HhaX9SAIOAhiTc | X20: =IF(U20=[1]base!$C$3,[1]base!$D$3,IF('[1]Respostas ao formulário 1'!U18=[1]base!$C$4,[1]base!$D$4,IF('[1]Respostas ao formulário 1'!U18=[1]base!$C$5,[1]base!$D$5,IF('[1]Respostas ao formulário 1'!U18=[1]base!$C$6,[1]base!$D$6,IF('[1]Respostas ao formulário 1'!U18=[1]base!$C$7,[1]base!$D$7))))) -> 1
A21: 2019-09-01T00:23:16.036 | B21: Adriana Duarte Bencomo | C21: Não teve | D21: Direitos e Deveres | E21: Tarde | F21: CCH AULA 3 | G21: 2019-08-31 | H21: 14:00:00 | I21: 50 | J21: 18 | K21: https://drive.google.com/open?id=1STps-yRKGVWtEFcMuJGV2vSZk6SaWLss, https://drive.google.com/open?id=1tVd8wdXdZSqK4ULUQF_vTonyIDtWa1Ux | L21: Não foi suficiente | M21: De manhã, consegui terminar o módulo 1 e, à tarde, tivemos que avançar rapidamente com três módulos. | N21: Sim | O21: O turma foi composto por 4 brasileiros e 14 venezuelanos. Dos venezuelanos, 4 do Abrigo Santa Tereza, 1 do Abrigo Nova Canaán, 2 waraos (indígenas) do Abrigo Pintolândia, uma mulher com um bebê nos braços, outro menino pequeno junto a sua mãe. É uma turma muito diversa e animada. O conteúdo foi dado sem problemas. Os tempos da dinâmica de grupo são difíceis de ajustar. | P21: Os 4 módulos foram concluídos. Brasileiros e venezuelanos conseguiram se entender. Todo o grupo foi pontual | Q21: - O fluxo de informações é complicado, porque muitos não sabem usar plataformas digitais - Há dificuldades para leitura - Os venezuelanos abrigados não conseguiram comer o dia inteiro. | R21: Pontualidade no início das oficinas Parece essencial dar café nas tardes de sábado. | S21: Prepare melhor a facilitação sozinha | T21: Eles gostaram do conteúdo e os complementaram com entusiasmo | U21: Muito satisfeito | V21: 4 | W21: https://drive.google.com/open?id=1X646COSnI0_3Wlwfo984QdEORWj16YdP | X21: =IF(U21=[1]base!$C$3,[1]base!$D$3,IF('[1]Respostas ao formulário 1'!U19=[1]base!$C$4,[1]base!$D$4,IF('[1]Respostas ao formulário 1'!U19=[1]base!$C$5,[1]base!$D$5,IF('[1]Respostas ao formulário 1'!U19=[1]base!$C$6,[1]base!$D$6,IF('[1]Respostas ao formulário 1'!U19=[1]base!$C$7,[1]base!$D$7))))) -> 1
A22: 2019-09-01T00:23:33.170 | B22: Adriana Duarte | C22: Não teve | D22: Direitos e Deveres | E22: Manhã | F22: CCH Aula 3 | G22: 2019-08-31 | H22: 08:00:00 | I22: 50 | J22: 18 | K22: https://drive.google.com/open?id=1mhEN_IiYozaoIrA-p0Yfcs_9m-5t7Zoz, https://drive.google.com/open?id=16cGrQMCbiZDeL8I2S-zM2ZINVqQMvNrG | L22: Não foi suficiente | M22: Começamos tarde, o turma não preparou as leituras | N22: Sim | O22: Foi realizado sem problemas, mas os tempos eram muito curtos e se tornaram pesados (Não houve acompanhamento na facilitação) Eles mostraram interesse no conteúdo e na necessidade de ler melhor os materiais | P22: Os 4 módulos foram concluídos. Brasileiros e venezuelanos conseguiram se entender. Todo o grupo foi pontual | Q22: - O fluxo de informações é complicado, porque muitos não sabem usar plataformas digitais - Há dificuldades para leitura - 8 dos participantes deixam o trabalho às 17h e eles vai chegar tarde a todas as aula na noite. | R22: Tentar fazer que os abrigos colaborem mais para os venezuelanos terminar a formação: armazenamento do jantares e almoços, mobilização de refeições ou abrigos. | S22: Eu tenho que falar mais devagar, permitir mais comunicação em grupo, incentivar todos a participar, relaxar os tempos. | T22: Ótimo. Eles chegarom com muitos preconceitos de que ninguém aplica a lei, mas depois da oficina eles entenderam a importância de afirmar seus próprios direitos e a importância da informação. | U22: Muito satisfeito | V22: 3 | W22: https://drive.google.com/open?id=11KQGOhsr-JeQ0ZZVrlTSmAFrA4G0F30Q | X22: =IF(U22=[1]base!$C$3,[1]base!$D$3,IF('[1]Respostas ao formulário 1'!U20=[1]base!$C$4,[1]base!$D$4,IF('[1]Respostas ao formulário 1'!U20=[1]base!$C$5,[1]base!$D$5,IF('[1]Respostas ao formulário 1'!U20=[1]base!$C$6,[1]base!$D$6,IF('[1]Respostas ao formulário 1'!U20=[1]base!$C$7,[1]base!$D$7))))) -> 1
A23: 2019-09-01T14:17:13.347 | B23: Carla Aparecida Domingues Rocha | C23: Alejandro Omar Molero | D23: Identidade | E23: Manhã | F23: Universidade Federal de Roraima | G23: 2019-08-30 | H23: 08:00:00 | I23: 30 | J23: 19 | K23: https://drive.google.com/open?id=161gdWNPHFwebYgZMIIrGBX3AZNYKfQWx, https://drive.google.com/open?id=1HNLH5rS6XsgyAZ1sKL8vwCVUqhv80kIc | L23: Foi suficiente | N23: Sim | O23: A oficina proporcionou aos cursistas a afirmação de suas identidades e maior interação ao trabalhar o Ikigai em dupla. | P23: A construção dos sonhos que geraram expectativas de um futuro melhor. | Q23: Com as pessoas que não possuem instrução formal, pois elas têm mais dificuldade de assimilar o que está sendo passado. | R23: A forma de aplicar o conteúdo aos menos letrados, pois requer paciência. | S23: Nessa oficina fomos bem, acredito que atingimos as expectativas. | T23: Incrivelmente positiva. | U23: Muito satisfeito | V23: 5 | W23: https://drive.google.com/open?id=1xMv0BYxht-FZOAJTW62xZ_mfRr9qH7_r | X23: =IF(U23=[1]base!$C$3,[1]base!$D$3,IF('[1]Respostas ao formulário 1'!U21=[1]base!$C$4,[1]base!$D$4,IF('[1]Respostas ao formulário 1'!U21=[1]base!$C$5,[1]base!$D$5,IF('[1]Respostas ao formulário 1'!U21=[1]base!$C$6,[1]base!$D$6,IF('[1]Respostas ao formulário 1'!U21=[1]base!$C$7,[1]base!$D$7))))) -> 1
A24: 2019-09-01T16:54:33.230 | B24: Angelo | C24: Cintia | D24: Identidade | E24: Tarde | F24: Insikiram | G24: 2019-08-30 | H24: 14:17:00 | I24: 9 | J24: 6 | K24: https://drive.google.com/open?id=1KLago7-ptfxhxTfE9KBrw886_Rjg_6ei | L24: Foi suficiente | N24: Sim | O24: Se iniciou retomando o módulo da floresta da vida. Depois continuamos com minha vida é um filme e depois, nossa vida é um filme. | P24: Boa disposição dos alunos, com participação ativa de todos eles | Q24: Faltaram muitos alunos, foi necessária adaptar às dinâmicas à quantidade de alunos | R24: Criar um incentivo para os melhores roteiros | S24: Avisar aos alunos dias antes da dinâmica para que eles levem vestuários e fantasias para a elaboração do filme | T24: Ótima | U24: Muito satisfeito | V24: 5 | W24: https://drive.google.com/open?id=12IeZce7OcBnBRugWtehyFXKqqeVxI51x | X24: =IF(U24=[1]base!$C$3,[1]base!$D$3,IF('[1]Respostas ao formulário 1'!U22=[1]base!$C$4,[1]base!$D$4,IF('[1]Respostas ao formulário 1'!U22=[1]base!$C$5,[1]base!$D$5,IF('[1]Respostas ao formulário 1'!U22=[1]base!$C$6,[1]base!$D$6,IF('[1]Respostas ao formulário 1'!U22=[1]base!$C$7,[1]base!$D$7))))) -> 1
A25: 2019-09-01T18:39:05.288 | B25: Angelo | C25: Cintia | D25: Direitos e Deveres | E25: Manhã | F25: CCCLA sala 143 | G25: 2019-08-31 | H25: 09:12:00 | I25: 23 | J25: 23 | K25: https://drive.google.com/open?id=1BhHyIoIQT5JFG5_u8tVxkY7ck1mPz74V | L25: Foi suficiente | N25: Sim | O25: Se iniciou com uma dinâmica de apresentação, depois foi tocado os modulos de cidadania e direitos do trabalho. Se fez a dinâmica de world café. | P25: Ouve um ambiente de confraternização, boa aceitação dos temas tratados. | Q25: Algums alunos têm grandes dificultades para comprender o português e outros para compreender o espanho, resultantemente os formadores tem de repetir continuamente em ambos idiomas. | R25: Corrigir as traduções nas apostilhas e material de apoio | S25: Explicar melhor aos alunos como prencher a frequência | T25: Ótima | U25: Muito satisfeito | V25: 5 | W25: https://drive.google.com/open?id=1D6xwg-WAXwmV3jM_fCyZ7SiZYIbDW-d6 | X25: =IF(U25=[1]base!$C$3,[1]base!$D$3,IF('[1]Respostas ao formulário 1'!U23=[1]base!$C$4,[1]base!$D$4,IF('[1]Respostas ao formulário 1'!U23=[1]base!$C$5,[1]base!$D$5,IF('[1]Respostas ao formulário 1'!U23=[1]base!$C$6,[1]base!$D$6,IF('[1]Respostas ao formulário 1'!U23=[1]base!$C$7,[1]base!$D$7))))) -> 1
A26: 2019-09-01T18:54:38.342 | B26: Angelo | C26: Cíntia | D26: Direitos e Deveres | E26: Tarde | F26: CCLA 143 | G26: 2019-08-31 | H26: 14:17:00 | I26: 22 | J26: 14 | K26: https://drive.google.com/open?id=1IGAzMy5Zj9XBmfMXnoacTiNXuttXPE7a | L26: Foi suficiente | N26: Sim | O26: Se fez uma aula expositiva sobre direito constitucional e direitos humanos; direito à saúde e a educação | P26: Coesão do grupo, soliedariedade. | Q26: Oito alunos que tinham assistido de manhã não voltaram à tarde | R26: As traduções para o espanhol das apostilas e o material de apoio | S26: Falar mais pausadamente | T26: Boa | U26: Satisfeito | V26: 5 | W26: https://drive.google.com/open?id=1bapjgPq-jz53T6A1YvXYPNIzO-Gg1_5v | X26: =IF(U26=[1]base!$C$3,[1]base!$D$3,IF('[1]Respostas ao formulário 1'!U24=[1]base!$C$4,[1]base!$D$4,IF('[1]Respostas ao formulário 1'!U24=[1]base!$C$5,[1]base!$D$5,IF('[1]Respostas ao formulário 1'!U24=[1]base!$C$6,[1]base!$D$6,IF('[1]Respostas ao formulário 1'!U24=[1]base!$C$7,[1]base!$D$7))))) -> 0.75
A27: 2019-09-01T20:21:31.948 | B27: Fabíola de Souza Wickert | C27: Maria Gabriela Villalba | D27: Direitos e Deveres | E27: Tarde | F27: Sala 50 do Centro de Ciências Humanas da UFRR | G27: 2019-08-24 | H27: 04:00:00 | I27: 22 | J27: 14 | K27: https://drive.google.com/open?id=1Sh-7bL3Uz1CeFEmpMj8J_4ANfWQOD4PP | L27: Foi suficiente | N27: Não | O27: Foram discutidos direitos e deveres (individuais e coletivos) com base na Constituição Federal do Brasil, apresentando-se a evolução histórica atá chegar ao tema, abordando a hierarquia das normas e direitos humanos. Em seguida, foram abordados dentro do conceito do direito de cada um ser quem é, direitos à liberdade de culto, proteção das mulheres, da infância e juventude, proteção contra a xenofobia e instituições brasileiras estatais que podem ser acionadas para a garantia de direitos. | P27: As discussões permitiram aos participantes compreender como se chegou aos direitos e deveres dispostos na Constituição, bem como a importância da proteção dos direitos humanos e como atuar como cidadão consciente de seus diretos e deveres. Importante a reflexão sobre direitos das minorias para compreensão de como atuar em uma sociedade plural, promovendo a inclusão e o respeito às minorias. | R27: Designar uma equipe para organizar a logística (divulgação e identificação dos locais de realização das aulas), considerar a situação dos cursistas e a realidade local. | S27: Listar exemplos de situações para abordar os temas conforme a realidade atual da sociedade. | T27: O grupo aceitou bem o tema, demonstrando grande interesse. | U27: Muito satisfeito | V27: 5 | W27: https://drive.google.com/open?id=19Th4BDEpq6H7OZBzfKJnL2RAyfqP-ZWnIunkXYEk1V8 | X27: =IF(U27=[1]base!$C$3,[1]base!$D$3,IF('[1]Respostas ao formulário 1'!U25=[1]base!$C$4,[1]base!$D$4,IF('[1]Respostas ao formulário 1'!U25=[1]base!$C$5,[1]base!$D$5,IF('[1]Respostas ao formulário 1'!U25=[1]base!$C$6,[1]base!$D$6,IF('[1]Respostas ao formulário 1'!U25=[1]base!$C$7,[1]base!$D$7))))) -> 1
A28: 2019-09-02T02:50:13.269 | B28: DOMINGO LUIS ANTONIO GONZÁLEZ PETOT | C28: (none) | D28: Direitos e Deveres | E28: Manhã | F28: CCH, SALA 14. UFRR | G28: 2019-08-31 | H28: 10:00:00 | I28: 10 | J28: 11 | K28: https://drive.google.com/open?id=1IZR5cH55XxZGNGvibwd-AynP68YWhFxs | L28: Não foi suficiente | M28: A "Aula Inaugural" pegou praticamente duas (2) horas, a oficina que devia iniciar as 8h, apenas inciou nas 10h. | N28: Sim | O28: A oficina inció muito retrasada por causa da Aula Inicial. O módulo 1 teve que ser completado ate a tarde. Os a | P28: 1) Temos um aluno muito conhecedor e participativo, complementa amplamente os temas com seus conhecimentos. 2) Foi possível o entendimento em português e espanhol. 3) Foram abordados os 4 módulos da meta desse dia. 4) As dinámicas ajudaram para quebrar o gelo e par que o grupo se integrara e fora mais participativo. | Q28: 1) Temos um estudante trans que usou uma sadia muito corta e práticamente em todo momento era notória a roupa interior. 2) Os alunos não puderam ler a guia porque apenas foi entregue nesse mesmo dia. 3) Foi muito conteúdo no mesmo dia, ao final os alunos estavam cansados. 4) Ao final da tarde os horários e turmas foram cambiados inesperadamente. 5) Houve um aluno que não estava inscrito no curso, sua inscrição ficou pendente por ser feita. | R28: 1) Tratar que o facilitador fique fixo com a sua turma o que pelo menos tenha uma planificação não supressiva onde se mude horários e os módulo a subministrar. 2) Que a aula inaugural seja feita com maior antelacao o início das aulas para que o aluno poda fazer a aula invertida. | S28: Trabalhar com um facilitador adicionar. A pronúncia de algumas palavras em português como "fugir" | T28: Foi boa. | U28: Satisfeito | V28: 5 | W28: https://drive.google.com/open?id=1BKrgr_VQOESwUNo3BBWlcStjo7eZRBju | X28: =IF(U28=[1]base!$C$3,[1]base!$D$3,IF('[1]Respostas ao formulário 1'!U26=[1]base!$C$4,[1]base!$D$4,IF('[1]Respostas ao formulário 1'!U26=[1]base!$C$5,[1]base!$D$5,IF('[1]Respostas ao formulário 1'!U26=[1]base!$C$6,[1]base!$D$6,IF('[1]Respostas ao formulário 1'!U26=[1]base!$C$7,[1]base!$D$7))))) -> 0.75
A29: 2019-09-02T05:25:29.584 | B29: DOMINGO LUIS ANTONIO GONZALEZ PETOT | C29: (none) | D29: Direitos e Deveres | E29: Tarde | F29: CCH, SALA 14 UFRR | G29: 2019-08-31 | H29: 13:00:00 | I29: 10 | J29: 10 | K29: https://drive.google.com/open?id=1wXOL7fE_WTGD1Nr_YRgBxB2C2TKL6z3p | L29: Não foi suficiente | M29: O período da tarde já estava em atraso por causa do que na manha na o se conseguiu fazer todo o conteúdo por causa da aula inaugural. | N29: Sim | O29: Se terminou de encerrar o mudulo 1, se fez o mudulo 2 sem problemas, mas o modulo 3 e 4 foram feitos sem as atividades dinâmicas e sem os testes. Os alunos não fizeram a aula invertida porque apenas no mesmo dia pela manha receberam os materiais e a guia. Porem, a participação foi sempre muito ativa nas intervenções na sala. | P29: Os alunos entenderam o conteúdo | Q29: 1) Houve um aluno trans que tinha uma sadia muito curta y na sala sempre exhibiu a roupa interior | R29: Dar o tempo adequado par acada oficina e entregar o material informativo com maior antelação. | S29: Uma fala mais fluente em português | T29: Muito boa | U29: Muito satisfeito | V29: 5 | W29: https://drive.google.com/open?id=1m_qhSMXUYfKbvL9OouWrLMhgxp3c_ydW | X29: =IF(U29=[1]base!$C$3,[1]base!$D$3,IF('[1]Respostas ao formulário 1'!U27=[1]base!$C$4,[1]base!$D$4,IF('[1]Respostas ao formulário 1'!U27=[1]base!$C$5,[1]base!$D$5,IF('[1]Respostas ao formulário 1'!U27=[1]base!$C$6,[1]base!$D$6,IF('[1]Respostas ao formulário 1'!U27=[1]base!$C$7,[1]base!$D$7))))) -> 1
A30: 2019-09-02T17:28:28.869 | B30: Angelo | C30: Angelo | D30: Direitos e Deveres | E30: Manhã | F30: CCLA Sala 143 | G30: 2019-09-02 | H30: 08:12:00 | I30: 25 | J30: 14 | K30: https://drive.google.com/open?id=1WxPv0D-rib73QItm1QaeXVND0qDiHeeR | L30: Foi suficiente | N30: Não | O30: Se viu o módulo 4 e se iniciou o eixo 5 | P30: Multiculturalismo e multietnicidade. | Q30: Falta Material para a realização das dinâmicas (cartolina e papel) | R30: Proveer os materiais necessários | S30: Ser mais claro para dar instruções | T30: Ótima | U30: Muito satisfeito | V30: 4 | W30: https://drive.google.com/open?id=1Hbi5y3d_lxMVAu-ygbiWf7Ah-XJ-Mbcn | X30: =IF(U30=[1]base!$C$3,[1]base!$D$3,IF('[1]Respostas ao formulário 1'!U28=[1]base!$C$4,[1]base!$D$4,IF('[1]Respostas ao formulário 1'!U28=[1]base!$C$5,[1]base!$D$5,IF('[1]Respostas ao formulário 1'!U28=[1]base!$C$6,[1]base!$D$6,IF('[1]Respostas ao formulário 1'!U28=[1]base!$C$7,[1]base!$D$7))))) -> 1
A31: 2019-09-03T15:10:21.095 | B31: Angelo | C31: Vinicius | D31: Cultura e Costumes | E31: Manhã | F31: CCLA | G31: 2019-09-03 | H31: 08:12:00 | I31: 24 | J31: 15 | K31: https://drive.google.com/open?id=1X1QZloalxYD4TfdLqifFf1U9Ss1ID_46 | L31: Foi suficiente | N31: Sim | O31: Iniciou com uma dinâmica de grupo sobre cultura. Depois se fizeram às dinâmicas individuais como me vejo e como os outros me vem. Depois de uma ronda de um bate papo sobre o tema. Se Iniciou a dinâmica "como é a minha familiar" e logo depois a aula concluiu com a dinâmica "outros modelos familiares que eu conheço". | P31: A aula foi dinâmica e fluida | Q31: Alguns alunos não enxergaram a importância das dinâmicas. | R31: Agregar o conceito de familia ao módulo 7, para orientar melhor aos alunos sobre o tema. | S31: Falar mais de vagar. | T31: Boa, mais alguns alunos não entenderam o propósito das dinâmicas | U31: Indiferente | V31: 4 | W31: https://drive.google.com/open?id=195oZj9p8bqiszt1jPkd9rRx6SLlt8Xob | X31: =IF(U31=[1]base!$C$3,[1]base!$D$3,IF('[1]Respostas ao formulário 1'!U29=[1]base!$C$4,[1]base!$D$4,IF('[1]Respostas ao formulário 1'!U29=[1]base!$C$5,[1]base!$D$5,IF('[1]Respostas ao formulário 1'!U29=[1]base!$C$6,[1]base!$D$6,IF('[1]Respostas ao formulário 1'!U29=[1]base!$C$7,[1]base!$D$7))))) -> 0.5
A32: 2019-09-03T23:14:45.173 | B32: Celeste Guadarrama | C32: Elsie Da Silva | D32: Direitos e Deveres | E32: Noite | F32: Insikiran Sala 5 | G32: 2019-08-26 | H32: 17:00:00 | I32: 15 | J32: 17 | K32: https://drive.google.com/open?id=1Xa-29XoOKXPn0exnsZcny1jn0_TVSovG | L32: Foi suficiente | N32: Sim | O32: Constituição Brasileira e contexto histórico Grupalmente foi concluído que cada direito cidadão traz um dever que mantem em equilíbrio sua aplicabilidade. Consolidou-se as diferenças entre Direitos constitucionais e tratados e convênios internacionais. Trabalhamos na reflexão de porque alguns grupos de pessoas são considerados minorias na nossa sociedad | P32: O conhecimento previo dos alunos trazem perguntas produtivas à discussão | R32: Nada | S32: Aprofundar nos contextos historicos | T32: A maioria dos alunos que iniciaram as aulas com outros formadores ja tinham visto o conteudo dos modulos 3 e 4. Porém foram muito discutidos em aulas os temas de violencia contra a mulher e direitos indigenas graças ao debate de alguns alunos. | U32: Indiferente | V32: 4 | W32: https://drive.google.com/open?id=1eqLWJwwMe2HTPIQwZUkl-Lt6sLaDdkMo | X32: =IF(U32=[1]base!$C$3,[1]base!$D$3,IF('[1]Respostas ao formulário 1'!U30=[1]base!$C$4,[1]base!$D$4,IF('[1]Respostas ao formulário 1'!U30=[1]base!$C$5,[1]base!$D$5,IF('[1]Respostas ao formulário 1'!U30=[1]base!$C$6,[1]base!$D$6,IF('[1]Respostas ao formulário 1'!U30=[1]base!$C$7,[1]base!$D$7))))) -> 0.5
A33: 2019-09-03T23:24:45.857 | B33: Adriana Duarte | C33: Luz Belisario | D33: Cultura e Costumes | E33: Noite | F33: Instituto Inkisiran - UFRR | G33: 2019-09-02 | H33: 17:00:00 | I33: 16 | J33: 12 | K33: https://drive.google.com/open?id=1NztX1HG-2Mf2wjqqGp8DuAXn4_se2eCn | L33: Foi suficiente | N33: Sim | O33: O Turma é ótima. Eles são pontuais e participativos. Embora a maioria seja venezuelana e não tente falar português, a troca foi possível e a abertura para coisas novas se torna evidente. | P33: Eles são muito flexíveis, abrangentes e rápidos no desenvolvimento de tarefas | Q33: Em vista de não obter permissão no trabalho para assistir às aulas, uma das participantes do curso deu a vaga a uma amiga. Mirfra Blanco é a amiga, Yuliannis Malchán saiu da turma com tristeza. Mirfra quer fazer o treinamento ainda não receber um certificado. | R33: Tente fazer um pequeno lanche, mas a turma concordou. Procurar uma sala com ar condicionado. | S33: Melhorar no meu português | T33: O Turma sente-se surpreso por ter que desenhar, eles ainda são um pouco tímidos, mas estão gostando do curso, não era esperado que fossem assim | U33: Satisfeito | V33: 4 | W33: https://drive.google.com/open?id=1Oh6_rQiXL6eLbsDFWuQrtS4QtgUhJL4b | X33: =IF(U33=[1]base!$C$3,[1]base!$D$3,IF('[1]Respostas ao formulário 1'!U31=[1]base!$C$4,[1]base!$D$4,IF('[1]Respostas ao formulário 1'!U31=[1]base!$C$5,[1]base!$D$5,IF('[1]Respostas ao formulário 1'!U31=[1]base!$C$6,[1]base!$D$6,IF('[1]Respostas ao formulário 1'!U31=[1]base!$C$7,[1]base!$D$7))))) -> 0.75
A34: 2019-09-03T23:37:41.606 | B34: Celeste Guadarrama | C34: Elsie Da Silva | D34: Cultura e Costumes | E34: Noite | F34: Insikiran. Sala 5 | G34: 2019-08-27 | H34: 17:00:00 | I34: 17 | J34: 14 | K34: https://drive.google.com/open?id=1f7TQxzO2IyestRrPt8yrXXuwMfVJTuFl | L34: Foi suficiente | N34: Sim | O34: Fizemos uma retrospectiva histórica do território Roraimense, seu desenvolvimento econômico e suas características culturais. Logo depois o conceito de cultura foi apresentado e redefinido grupalmente, concluindo que a Cultura vai muito além das costumes e o folclore dos povos e ela se manifesta em nossos pensamentos e decisões cotidianos. Varios exemplos disso foram conversados. Foi criado um cuadro comparativo de culturas, incluindo gastronomia, costumes e festas | P34: As dinamicas contribuiram na integração de cursistas menos participativos e propiciou um clima de confiança dentro da aula. | R34: Pagina 191 Manual do Facilitador. A dinamica Por causa de você, esta traduzido como Por tu culpa em espanhol, palavra forte com significado negativo, mas na frente muda a Gracias a ti. Não foi verificado se a apostilha do aluno tem o mesmo erro | S34: Propiciar a diversidade de opiniões e vivencias dentro do tempo | T34: Os alunos expuseram vivencias de intolerância cultural, e trocas espontâneas definindo como a transculturação pode ser conflitiva e pacifica. Algumas diferenças foram tratadas de forma geralizada sendo preciso a ampliação dos formadores. Os aspectos negativos e problemas sociais como o racismo não foram tratados pelos alunos mas apresentados à discussão pelos formadores. | U34: Muito satisfeito | V34: 5 | W34: https://drive.google.com/open?id=1Kflk1lpv82Hckw7K-d-FrwMGLaYdYEe0 | X34: =IF(U34=[1]base!$C$3,[1]base!$D$3,IF('[1]Respostas ao formulário 1'!U32=[1]base!$C$4,[1]base!$D$4,IF('[1]Respostas ao formulário 1'!U32=[1]base!$C$5,[1]base!$D$5,IF('[1]Respostas ao formulário 1'!U32=[1]base!$C$6,[1]base!$D$6,IF('[1]Respostas ao formulário 1'!U32=[1]base!$C$7,[1]base!$D$7))))) -> 1
A35: 2019-09-03T23:47:19.340 | B35: Adriana Duarte Bencomo | C35: Luz Belisario | D35: Cultura e Costumes | E35: Noite | F35: Instituto Inkisiran - UFRR - Bloco C - Sala 4 | G35: 2019-09-03 | H35: 17:00:00 | I35: 16 | J35: 10 | K35: https://drive.google.com/open?id=1-O3FA8MJtrLYN8AcvT1Ou9pCOpEKaNYg | L35: Foi suficiente | N35: Sim | O35: Hoje, a turma compartilhou muito mais sobre sua vida e desejos. Sentimos que eles estão se abrindo a experiência do curso. Dedicaram mais tempo às tarefas de disenho, achamos que começam a gostar de pintar. | P35: Na segunda-feira, fizemos alguns acordos de convivência para respeitar a todos e permitir que todos participem sem exceder o tempo do fala, e toda a turma nos apóia nesses acordos, quando algumas pessoas falam muito, todos pedem que ele regule sua fala, com amor. | Q35: A chuva afeta diretamente a presença do curso. | R35: Lanches, embora o grupo concorda em compartilhar algo | S35: Eu sei que sempre posso melhorar a fala e a escrita em português | T35: O plano de ação do módulo 8 levantou muitas dúvidas mais todos conseguiram preenchê-lo. Eles estão curiosos sobre o que virá | U35: Satisfeito | V35: 5 | W35: https://drive.google.com/open?id=1toEo_YMz4IlKkrDyhH36QaVcDYUgIH_h | X35: =IF(U35=[1]base!$C$3,[1]base!$D$3,IF('[1]Respostas ao formulário 1'!U33=[1]base!$C$4,[1]base!$D$4,IF('[1]Respostas ao formulário 1'!U33=[1]base!$C$5,[1]base!$D$5,IF('[1]Respostas ao formulário 1'!U33=[1]base!$C$6,[1]base!$D$6,IF('[1]Respostas ao formulário 1'!U33=[1]base!$C$7,[1]base!$D$7))))) -> 0.75
A36: 2019-09-04T00:05:54.918 | B36: Celeste Guadarrama | C36: Elsie Da Silva | D36: Cultura e Costumes | E36: Noite | F36: Insikiran. Sala 5 | G36: 2019-08-28 | H36: 17:00:00 | I36: 17 | J36: 12 | K36: https://drive.google.com/open?id=1z23tJu_6HVTLwReYVgvxigKLf65Vv3CR | L36: Foi suficiente | N36: Sim | O36: As discussões sobre os modelos familiares vieram acompanhadas de relatos emotivos e as diferenças entre modelos foram bem colocadas pelos mesmos alunos. Entre os objetos compartilhados foram resaltantes aqueles que trouxeram um aprendizagem cultural, vistos com curiosidade e admiração pelo grupo. A grande maioria da turma tem uma ideia de negocio a desenvolver, o exercicio final do Dia da colheta ajudo na visualização dessa meta. | R36: Manter a comunicação para reposição futura dos materiais mais usados (Cartolina, sulfite) O Modulo seguinte precisa | S36: Preparar fora de aula as fichas e materiais de apoio que forem necessarios. Prever a continuidade teorica das aulas e as necessidades futuras em quanto a materiais | T36: Desenvolvimos integração. Os alunos foram muito participativos na hora de fazer o primeiro planejamento do objetivo, visando um maior interesse por empreender um negocio | U36: Muito satisfeito | V36: 5 | W36: https://drive.google.com/open?id=1Qc77AkHFCX-cE2kVOOS0SArhH9NXbZJ5 | X36: =IF(U36=[1]base!$C$3,[1]base!$D$3,IF('[1]Respostas ao formulário 1'!U34=[1]base!$C$4,[1]base!$D$4,IF('[1]Respostas ao formulário 1'!U34=[1]base!$C$5,[1]base!$D$5,IF('[1]Respostas ao formulário 1'!U34=[1]base!$C$6,[1]base!$D$6,IF('[1]Respostas ao formulário 1'!U34=[1]base!$C$7,[1]base!$D$7))))) -> 1
A37: 2019-09-04T00:22:22.131 | B37: Celeste Guadarrama | C37: Elsie da Silva | D37: Identidade | E37: Noite | F37: Insikiran. Sala 5 | G37: 2019-08-29 | H37: 17:00:00 | I37: 17 | J37: 15 | K37: https://drive.google.com/open?id=1WSpy6wg3VU2C1-k-kd5rArVnBviglSdr | L37: Foi suficiente | N37: Sim | O37: Os participantes desenharam uma árvore que representassem as suas identidades, cada parte da arvore significa um aspecto da vida das pessoas. Depois iniciaram a criação coletiva de uma arvore que contemplasse os aspectos do grupo, com o intuito de pontoalizar a diversidade desde uma visão humana e inclusiva. | R37: Sem observações | S37: Escrever no cuadro os modulos por vir todos os dias, para a turma estar ciente do progresso | T37: Alguns alunos questionaram o conteudo do curso, e manifestaram dúvidas que foram esclarecidas pelas formadoras. Outros alunos inicialmente acharam que não conseguiriam fazer o exercicio por causa das suas habilidades em desenho, mas os resultados foram gratificantes para eles e para a turma na hora de compartilhar. | U37: Indiferente | V37: 5 | W37: https://drive.google.com/open?id=1kHbMCqNSFBAx57g1fOD3hnJgYy719I1s | X37: =IF(U37=[1]base!$C$3,[1]base!$D$3,IF('[1]Respostas ao formulário 1'!U35=[1]base!$C$4,[1]base!$D$4,IF('[1]Respostas ao formulário 1'!U35=[1]base!$C$5,[1]base!$D$5,IF('[1]Respostas ao formulário 1'!U35=[1]base!$C$6,[1]base!$D$6,IF('[1]Respostas ao formulário 1'!U35=[1]base!$C$7,[1]base!$D$7))))) -> 0.5
A38: 2019-09-04T20:49:59.319 | B38: Angelo | C38: Amanda | D38: Identidade | E38: Manhã | F38: CCLA 143 | G38: 2019-09-04 | H38: 08:12:00 | I38: 23 | J38: 16 | K38: https://drive.google.com/open?id=1mRZuvFfRGBjzbjV_Hus9ar_RBPYyWi3v | L38: Foi suficiente | N38: Sim | O38: Foram feitas as dinamicas arvore da vida e floresta da vida. Os alunos desenharam e refletiram sobre os desenhos feitos. | P38: Maior coesão do grupo, os alunos mais tímidos no começo estão ficando mais confiantes. | R38: Agregar uma fábula comparativa entre a vida das árvores e a vida dos humanos. | S38: Ficar mais atento a ordem cronológica das atividades. | T38: Boa | U38: Satisfeito | V38: 5 | W38: https://drive.google.com/open?id=1iP8XiHQIcrCmdf7TVEt3aTwAryxAtgis | X38: =IF(U38=[1]base!$C$3,[1]base!$D$3,IF('[1]Respostas ao formulário 1'!U36=[1]base!$C$4,[1]base!$D$4,IF('[1]Respostas ao formulário 1'!U36=[1]base!$C$5,[1]base!$D$5,IF('[1]Respostas ao formulário 1'!U36=[1]base!$C$6,[1]base!$D$6,IF('[1]Respostas ao formulário 1'!U36=[1]base!$C$7,[1]base!$D$7))))) -> 0.75
A39: 2019-09-05T01:13:47.181 | B39: Adriana Duarte | C39: Luz Belisario | D39: Identidade | E39: Noite | F39: Inkisiran Bloco C Sala 4 - UFRR | G39: 2019-09-04 | H39: 17:00:00 | I39: 16 | J39: 10 | K39: https://drive.google.com/open?id=1QzxiKsKfidV8ubqgobu9ntjCJkivAyTQ | L39: Foi suficiente | N39: Sim | O39: A oficina foi ótima. Foi bom ver a dedicação que eles colocaram na construção de sua árvore individual e coletiva e como ela estava cheia de significado. Eles se organizam espontaneamente distribuindo Brasileiros em grupos principalmente venezuelanos. Ao falar sobre expectativas, muitos disseram que achavam que o curso seria diferente, mas que gostavam. Todos os dias são mais empáticos e abertos à experiência. Um deles disse "este curso é pura terapia" | P39: Quem se reconhece tímido começa a falar mais. Eles sempre realizam todas as atividades com rapidez e entusiasmo. Eles sabem que é importante misturar e hoje já faz desenhos mais bonitos | Q39: A árvore individual de um participante chamou nossa atenção, ficou muito triste e ele não quis falar sobre isso. Estaremos mais atentos ao seu processo. Também descobrimos que uma indígena brasileira está roubando alguns materiais e estamos procurando uma maneira de recuperá-los sem se sentir exposta. Eles ainda têm muitos problemas para frequentar e se movimentar para o curso (transporte) | R39: Lanches. Ontem, notamos que o teste do módulo 7 deveria estar no módulo 6. E hoje, olhamos um pequeno detalhe na atividade de aquecimento do módulo 1.2, um parágrafo repetido da atividade de aquecimento do módulo 1.1 | S39: Eu poderia ter mais ferramentas psicológicas para incorporar ao grupo pessoas que estão passando por momentos muito difíceis. Eu me sinto um pouco estranha sobre como lidar com isso. | T39: Ótima. Eles adoravam fazer árvores, mas era muito mais chocante para eles apreciarem a floresta. Algo mudou em sua maneira de conceber o curso, hoje. Foi lindo apreciar esse processo interno | U39: Muito satisfeito | V39: 5 | W39: https://drive.google.com/open?id=1uJpr5ASbdBfT9A5nioRtEECkh3Ahj5Nz | X39: =IF(U39=[1]base!$C$3,[1]base!$D$3,IF('[1]Respostas ao formulário 1'!U37=[1]base!$C$4,[1]base!$D$4,IF('[1]Respostas ao formulário 1'!U37=[1]base!$C$5,[1]base!$D$5,IF('[1]Respostas ao formulário 1'!U37=[1]base!$C$6,[1]base!$D$6,IF('[1]Respostas ao formulário 1'!U37=[1]base!$C$7,[1]base!$D$7))))) -> 1
A40: 2019-09-05T07:21:08.504 | B40: DOMINGO LUIS ANTONIO GONZÁLEZ PETOT | C40: MARIA GABRIELA VILLALBA | D40: Futuro | E40: Manhã | F40: SALA 140 CCLA - UFRR | G40: 2019-09-04 | H40: 08:00:00 | I40: 21 | J40: 17 | K40: https://drive.google.com/open?id=1DSOJY1Cga_4yKLFbIOrPAJIOjCsR8EWg | L40: Foi suficiente | N40: Sim | O40: Foi uma oficina produtiva, se reforcou os 5 tipos de futuros e se fez um link de como os apredizagem e expereincas do passado ajudam ao presente e sao recursos para o futuro, foi problemático para os facilitadores explicar o CANVAS, mas foi possivel para os alunos entender qué fazer depois das orientações. | P40: Reforçar os tipos de futuros e por primeira vez estruturar e construir uma aproximação do modelo de negócio com o CANVAS e com o Circulo dos Sonhos ajudou muito para a gente clarificar ideas mais organizativas de suas ideias de empreendedorismo. | Q40: O modelo CANVAS de "modelo de negócio pessoal" (pag 168 da guia) não se entende com clareza, não tem alguma orientação, necessário falar com muitas orientações (de senso comum, lógica e experiencia) e explicar que ele e uma aproximacao para u uso do CANVAS para planos de negócios com fornecedores, clientes e entradas e saídas de dinheiro. | R40: Tanto a estructora como adicionar uma explicacao do quadro do CANVAS | S40: Explicações mais e mais orientativas do CANVAS | T40: Muito boa | U40: Muito satisfeito | V40: 5 | W40: https://drive.google.com/open?id=1M9gzazkVp6sUOkBoV8Z9n4p6Wgcw2TMg | X40: =IF(U40=[1]base!$C$3,[1]base!$D$3,IF('[1]Respostas ao formulário 1'!U38=[1]base!$C$4,[1]base!$D$4,IF('[1]Respostas ao formulário 1'!U38=[1]base!$C$5,[1]base!$D$5,IF('[1]Respostas ao formulário 1'!U38=[1]base!$C$6,[1]base!$D$6,IF('[1]Respostas ao formulário 1'!U38=[1]base!$C$7,[1]base!$D$7))))) -> 1
A41: 2019-09-05T07:38:37.438 | B41: DOMINGO LUIS ANTONIO GONZÁLEZ PETOT | C41: MARÍA GRABRIELA VILLALBA | D41: Futuro | E41: Manhã | F41: SALA 140 CCLA UFRR | G41: 2019-09-03 | H41: 08:00:00 | I41: 21 | J41: 17 | K41: https://drive.google.com/open?id=1VQhRliH3E7zV-3T57h8Z2UKRvg7p2rbR | L41: Foi suficiente | N41: Sim | O41: A oficina foi muito bem recebida por causa de que estava chagando ja uma aproximação para pensar ja nos planos de empreendedorismo, assim com a o módulo sobre a adaptabilidade e os 5 tipos de futuro já o pessoal conseguiu visualizar com um porquinho de estrutura sua ideia para o futuro | P41: Iniciar a projetar a ideia dos participantes fazendo foco nos tipos de ação, desde não fazer nada diferente até criar estrategias do futuro possível. A atividade de fazer algo com movimentação que sem a intervenção da forca humana foi muito boa, conseguiram ser criativos, trabalhar em equipe e atingir objetivos comuns. O grupo foi muito interessado tudo momento. | Q41: Foi muito necessária a orientação dos facilitadores para conseguir explicar as diferencia dos 5 tipos de futuro. | R41: Seria bom que as explicações dos tipos de futuro tenha cada um palavras chaves para lembrar, ex. f. preferível (estrategia), acomodado (não fazer nada), possível (ter uma ideia usando o que tenho), preferível (planificar com o que tenho), e assim por diante. Na pagina 145 da guia so tem 4 futuros, achamos que deverias estar nesse quadro os 5 que inclui a Solução Cultural | S41: Nada específico. | T41: Muito boa. | U41: Muito satisfeito | V41: 5 | W41: https://drive.google.com/open?id=1zP86xXucwcOWsW8wMN3eA1ptnGrMiObh | X41: =IF(U41=[1]base!$C$3,[1]base!$D$3,IF('[1]Respostas ao formulário 1'!U39=[1]base!$C$4,[1]base!$D$4,IF('[1]Respostas ao formulário 1'!U39=[1]base!$C$5,[1]base!$D$5,IF('[1]Respostas ao formulário 1'!U39=[1]base!$C$6,[1]base!$D$6,IF('[1]Respostas ao formulário 1'!U39=[1]base!$C$7,[1]base!$D$7))))) -> 1
A42: 2019-09-05T20:44:42.195 | B42: Angelo | C42: Amanda | D42: Identidade | E42: Manhã | F42: CCLA 143 | G42: 2019-09-05 | H42: 08:12:00 | I42: 26 | J42: 15 | K42: https://drive.google.com/open?id=1rqRjWbM3G5T8OEQ-hnUzx3X4KBC1Mzug | L42: Foi suficiente | N42: Sim | O42: Depois de uma dinâmica de aquecimento, iniciamos com "minha vida é um filme" e depois de ser feito o módulo continuamos com "nossa vida é um filme" | P42: Os alunos mostraram desenvoltura para fazer as diferentes fases da criação indual e coletiva. | R42: Disponibilizar no manual do aluno uma explicação um pouco mais aprofundada sobre o assunto. | S42: Aprimorar a administração do tempo. | T42: Muito boa | U42: Muito satisfeito | V42: 5 | W42: https://drive.google.com/open?id=1tMCIQJPdWpApV2l19CVLIHt9AshYV5sV | X42: =IF(U42=[1]base!$C$3,[1]base!$D$3,IF('[1]Respostas ao formulário 1'!U40=[1]base!$C$4,[1]base!$D$4,IF('[1]Respostas ao formulário 1'!U40=[1]base!$C$5,[1]base!$D$5,IF('[1]Respostas ao formulário 1'!U40=[1]base!$C$6,[1]base!$D$6,IF('[1]Respostas ao formulário 1'!U40=[1]base!$C$7,[1]base!$D$7))))) -> 1
A43: 2019-09-05T23:58:20.227 | B43: Celeste Guadarrama | C43: Elsie da Silva | D43: Identidade | E43: Noite | F43: Insikiran. Sala 5 | G43: 2019-08-29 | H43: 17:00:00 | I43: 17 | J43: 15 | K43: https://drive.google.com/open?id=1hdiol-G6M2F_lnm7m_SN1y8FstuBISqc | L43: Foi suficiente | N43: Sim | O43: Os participantes desenharam uma árvore que representassem as suas identidades, cada parte da arvore significa um aspecto da vida das pessoas. Depois iniciaram a criação coletiva de uma arvore que contemplasse os aspectos do grupo, com o intuito de pontoalizar a diversidade desde uma visão humana e inclusiva. | R43: Sem observações | S43: Escrever no cuadro os modulos por vir todos os dias, para a turma estar ciente do progresso | T43: Alguns alunos questionaram o conteudo do curso, e manifestaram dúvidas que foram esclarecidas pelas formadoras. Outros alunos inicialmente acharam que não conseguiriam fazer o exercicio por causa das suas habilidades em desenho, mas os resultados foram gratificantes para eles e para a turma na hora de compartilhar. | U43: Indiferente | V43: 5 | W43: https://drive.google.com/open?id=1sGKA4j86OFy-90lgqZOghUgst9WsJGAa | X43: =IF(U43=[1]base!$C$3,[1]base!$D$3,IF('[1]Respostas ao formulário 1'!U41=[1]base!$C$4,[1]base!$D$4,IF('[1]Respostas ao formulário 1'!U41=[1]base!$C$5,[1]base!$D$5,IF('[1]Respostas ao formulário 1'!U41=[1]base!$C$6,[1]base!$D$6,IF('[1]Respostas ao formulário 1'!U41=[1]base!$C$7,[1]base!$D$7))))) -> 0.5
A44: 2019-09-06T10:45:10.338 | B44: Adriana Duarte Bencomo | C44: Luz Belisario | D44: Identidade | E44: Noite | F44: UFRR Instituto Inkisiran Sala 4 | G44: 2019-09-05 | H44: 18:00:00 | I44: 16 | J44: 9 | K44: https://drive.google.com/open?id=1NQL5IE9mTnRIwF4M-OoOZd5ChDrpHVAV | L44: Foi suficiente | N44: Sim | O44: Esta oficína foi muito forte. Os participantes desenharam seu filme e os poucos venezuelanos que queriam contar, contaram coisas muito fortes. Os desenhos contarão histórias fortes e muitos não conseguiram desenhar um final otimista ou construir uma idéia para o futuro. Quando eles tiveram que fazer o filme do grupo, foi ainda mais forte. Uma dramatização abordada: sobre como eles se sentiram enganados ao saberem que o curso de empreendedorismo e eles precisam desenhar, que, diante de tanta necessidade, não conseguem se concentrar nas atividades e, às vezes, querem sair, mas finalmente se refugiam no espaço e nas pessoas da aula. Outra dramatização: tratava-se de um tipo de violência machista, com um final triste e a mulher que representava ficou assustada. A última dramatização interpretou o caos individual de cada um: houve gritos desesperados, implora de trabalhos negados, súplicas a Deus, foi muito forte. Depois disso, muitos permaneceram engasgados (atragantados emocionalmente) mas depois conseguiram falar suas impressões sobre os maus-tratos e até o nojo que recebem da sociedade brasileira e de muitos venezuelanos (vários moravam na rua por meses). Demoramos um tempo para fazer um cierre especial, conversando sobre a atitude e outras questões sociais para superar um momento de muitos caos, tanto para brasileiros quanto para venezuelanos, e sentimos que foi aberta uma compreensão maior e mais esperançosa da realidade. Mas sentimos que não temos ferramentas específicas para trabalhar com processos tão fortes e também não nos sentimos bem quando a turma volta para casa com tristeza que acreditamos ter ocorrido em algumas deles. Para a próxima oficína, temos algumas coisas em mente para avançar e sentimos que esse também é o processo natural da formação e que essa transformação dara certo ao longo do curso | P44: Apesar das dificuldades, os participantes conseguiram rir, ouvir e apoiar-se, todos querem terminar a formação. Nós nos avaliamos positivamente ao concluir a aula. Foi necessário compartilhar experiências com outros facilitadores e conseguimos fazê-lo também e entender o processo: o processo que o facilitador vive e o processo que os participantes vivem. | Q44: Os facilitadores precisam de espaços para compartilhar suas experiências, tanto os mais avançados quanto os que começam agora precisam desse feedback e dessa comunicação para compartilhar ferramentas de trabalho e se sustentar emocionalmente. Por mais que acreditemos que a metodologia e o plano inicial do CIEDS sejam ótimos, poderia ser melhor se em sua construção e execução (no planejamento geral) mais venezuelanos e brasileiros de Roraima participassem para dar respostas mais assertivas às diferentes situações do que o estado de Roraima atravessa como resultado da migração. A questão do transporte e alimentação continua sendo um obstáculo importante para as pessoas concluírem o processo. Os mais interessados ​​em continuar vivem situações muito precárias e é muito difícil trabalhar em harmonia com pessoas com muita fome e cansaço. | R44: Tente fazer espaços de comunicação para todos os facilitadores em rodas. Tentar dar um orçamento ou adiantamento para poder investir em algo mínimo para os participantes. Especialmente aos sábados e porque o módulo de gastronomia e "a grande celebração" vem | S44: Eu devo me preparar melhor para acompanhar e sustentar, sempre que possível, os processos individuais dos participantes | T44: Eles aceitam o conteúdo ainda mais, não entendem bem aonde isso está indo e estão um pouco ansiosos, o esforço que fazem para se manter constante é evidente | U44: Indiferente | V44: 3 | W44: https://drive.google.com/open?id=1rrIkYui_BjdaSC52gGmJUeyobEUJI3_Y | X44: =IF(U44=[1]base!$C$3,[1]base!$D$3,IF('[1]Respostas ao formulário 1'!U42=[1]base!$C$4,[1]base!$D$4,IF('[1]Respostas ao formulário 1'!U42=[1]base!$C$5,[1]base!$D$5,IF('[1]Respostas ao formulário 1'!U42=[1]base!$C$6,[1]base!$D$6,IF('[1]Respostas ao formulário 1'!U42=[1]base!$C$7,[1]base!$D$7))))) -> 0.5
A45: 2019-09-06T18:47:58.506 | B45: Angelo | C45: Amanda | D45: Identidade | E45: Manhã | F45: CCLA | G45: 2019-09-06 | H45: 08:12:00 | I45: 27 | J45: 16 | K45: https://drive.google.com/open?id=1m0Zp72LjX69td24CHn9QToMit5aQMNOt | L45: Foi suficiente | N45: Sim | O45: Se iniciou a aula com uma meditação, e depois foi feito o módulo "o que as histórias nos contam?" Em sequência seguiram os módulos "Nossa identidade" e finalmente comunidades e oportunidades". A aula teve muitas interação dos alunos e se percebe mais união no grupo. | R45: Ofrecer referências para quenos alunos possam aprofundar nosntemas tradados caso eles queiram. | S45: Falar mais de vagar para que os alunos falantes de outras línguas possam entender. | T45: Muito boa. | U45: Muito satisfeito | V45: 5 | W45: https://drive.google.com/open?id=11ilNDqj4n8eeRfEWef209vcgTlnM2Rct | X45: =IF(U45=[1]base!$C$3,[1]base!$D$3,IF('[1]Respostas ao formulário 1'!U43=[1]base!$C$4,[1]base!$D$4,IF('[1]Respostas ao formulário 1'!U43=[1]base!$C$5,[1]base!$D$5,IF('[1]Respostas ao formulário 1'!U43=[1]base!$C$6,[1]base!$D$6,IF('[1]Respostas ao formulário 1'!U43=[1]base!$C$7,[1]base!$D$7))))) -> 1
A46: 2019-09-07T00:36:40.481 | B46: DOMINGO LUIS ANTONIO GONZÁLEZ PETOT | C46: MARIA GABRIELA VILLALBA | D46: Território | E46: Manhã | F46: CCLA 140 UFRR | G46: 2019-09-02 | H46: 08:00:00 | I46: 22 | J46: 18 | K46: https://drive.google.com/open?id=1Fv1CwzFgHyC5gRDfb4LB2LECREmwhcEb | L46: Foi suficiente | N46: Sim | O46: A oficina baseada no "Território Gastronômico" foi satisfatória, porem os participantes tiveram que usar a sua criatividade in loco porque não trazerem comidas para atividade, a maioria deles não tem condições para gastar em comidas. o O pessoal conseguiu fazer posicionamentos críticos, autoconhecimento e reflexão. Também se falou das TIC e de como está mudando o mercado de trabalho na atualidade e se fez o mapeamento da economia local. | P46: Muita creatividade e participacao dos alunos | Q46: Nenhum | R46: Nada | S46: Nada | T46: Foi ótima | U46: Muito satisfeito | V46: 5 | W46: https://drive.google.com/open?id=18AsfNAhYnxoc6ZFPym7veEkNR8kMTgof | X46: =IF(U46=[1]base!$C$3,[1]base!$D$3,IF('[1]Respostas ao formulário 1'!U44=[1]base!$C$4,[1]base!$D$4,IF('[1]Respostas ao formulário 1'!U44=[1]base!$C$5,[1]base!$D$5,IF('[1]Respostas ao formulário 1'!U44=[1]base!$C$6,[1]base!$D$6,IF('[1]Respostas ao formulário 1'!U44=[1]base!$C$7,[1]base!$D$7))))) -> 1
A47: 2019-09-07T01:39:16.981 | B47: DOMINGO LUIS ANTONIO GONZALEZ PETOT | C47: MARIA GABRIELA VILLALBA | D47: Futuro | E47: Manhã | F47: SALA 140 CCLA UFRR | G47: 2019-09-06 | H47: 08:00:00 | I47: 22 | J47: 19 | K47: https://drive.google.com/open?id=1UqvlxlwP8tJ6IWXu-gD3_v-ZciQjlc8L | L47: Foi suficiente | N47: Não | O47: Foi a oficina de cerramento, o grupo todo trouxe comida para um café da amanha coletivo. Os exercícios de cerramento foram muito bem desenvolvidos e recebidos pelos alunos e tudo ficou muito emocionante para eles para a nova fase do plano de negócio para desenvolver já mais aprofundadamente o seu plano de negócios ou de empreendedorismo social. | P47: Tudo mundo acabou muito alegre e feliz pelos resultados. | Q47: Nenhum | R47: Mais pinceis para o quadro, mais folhas brancas, mais lapiseis, um local para guardar a caixa cada dia. | S47: Copiar uma dinámica de encerramento do curso que foi proposta e desenvolvida por uma aluna que se llamava "de ti me llevo..." | T47: Total | U47: Muito satisfeito | V47: 5 | W47: https://drive.google.com/open?id=1npx6IJFphWLm5ib7odu_XJnJ4yJuXaYs | X47: =IF(U47=[1]base!$C$3,[1]base!$D$3,IF('[1]Respostas ao formulário 1'!U45=[1]base!$C$4,[1]base!$D$4,IF('[1]Respostas ao formulário 1'!U45=[1]base!$C$5,[1]base!$D$5,IF('[1]Respostas ao formulário 1'!U45=[1]base!$C$6,[1]base!$D$6,IF('[1]Respostas ao formulário 1'!U45=[1]base!$C$7,[1]base!$D$7))))) -> 1
A48: 2019-09-07T01:52:34.390 | B48: DOMINGO LUIS ANTONIO GONZALEZ PETOT | C48: MARIA GABRIELA VILLALBA | D48: Futuro | E48: Manhã | F48: SALA 140 CCLA UFRR | G48: 2019-09-05 | H48: 08:00:00 | I48: 22 | J48: 18 | K48: https://drive.google.com/open?id=1pkLIhy2PaGZJHREBWY1EipGB3BNrcXNj | L48: Foi suficiente | N48: Sim | O48: Muito boa, os alunos abrasaram muito bem as dinâmicas, especialmente aquela do "Campo Minado", foi muito divertida e nutritiva. | P48: A atitude de toda a turma, alegria. | Q48: Nenhum | R48: Nada | S48: Nada | T48: Total | U48: Muito satisfeito | V48: 5 | W48: https://drive.google.com/open?id=1Q9SYy0ILVykHqGBH_6VKPePIh2JEZk5O | X48: =IF(U48=[1]base!$C$3,[1]base!$D$3,IF('[1]Respostas ao formulário 1'!U46=[1]base!$C$4,[1]base!$D$4,IF('[1]Respostas ao formulário 1'!U46=[1]base!$C$5,[1]base!$D$5,IF('[1]Respostas ao formulário 1'!U46=[1]base!$C$6,[1]base!$D$6,IF('[1]Respostas ao formulário 1'!U46=[1]base!$C$7,[1]base!$D$7))))) -> 1
A49: 2019-09-07T22:12:22.825 | B49: Adriana Duarte | C49: Luz Belisario | D49: Identidade | E49: Noite | F49: Inkisiran Sala 4 - UFRR | G49: 2019-09-06 | H49: 17:00:00 | I49: 16 | J49: 10 | K49: https://drive.google.com/open?id=1oP4S_ebQlUCa1LYEtYm2t_tvjIo2Snqt | L49: Foi suficiente | N49: Sim | O49: Esta oficína foi mais leve, os participantes mostraram uma imagem do Brasil e da Venezuela muito pessimista e em uma atividade extra, anônima, onde era o venezuelano que falava sobre o Brasil e os brasileiros e o brasileiro que falava da Venezuela e venezuelanos onde conseguemos mostrar as muitas coisas boas que nos sustentam. Os participantes conseguiram ilustrar com alegria os elementos etnográficos de seu país, mas nenhuma cor foi colocada em nenhum deles. Observou-se que foi o dia em que a turma chegou mais cansada, sua energia estava baixa, mas aplaudimos que eles conseguiram avançar. | P49: A perseverança, apesar dos movimentos internos que a oficina causa neles, eles continuam participando e trabalhando duro em todas as atividades. Percebemos que, realizando atividades anônimas no post-stick, eles conseguem fazer sínteses mais positivas de sua realidade. | Q49: Às vezes, nos preocupamos e sentimos que a metodologia precisa abordar tópicos mais específicos para essas populações vulneráveis, porém contamos com o desenvolvimento completo do curso como forma de transformação e compreendemos os processos de crescimento individual e coletivo. Alimentação e transporte são a principal razão para não comparecer às aulas | R49: O acompanhamento de Rafael e Cleane são ótimos, eles nos incentivam a seguir em frente e confiam que todos esses processos são naturais | S49: Como facilitador, tenho o desafio de manter uma certa margem. Se me identifico com cada caso, fico muito triste, tento manter distância e fazer um acompanhamento individual e coletivo sem me envolver demais, pois isso pode me afetar muito. Eu acho que é a coisa certa. No entanto, eu trouxo e acho que devo me esforçar mais para trazer mais ferramentas de suporte para o grupo | T49: Embora já tenham expressado na dramatização de seu filme que a metodologia gerou ansiedade, confiam nela e nos facilitadores. | U49: Indiferente | V49: 4 | W49: https://drive.google.com/open?id=1PQpVS8S8N5Sc-RzEEJfXqn6PIvq3M_B1 | X49: =IF(U49=[1]base!$C$3,[1]base!$D$3,IF('[1]Respostas ao formulário 1'!U47=[1]base!$C$4,[1]base!$D$4,IF('[1]Respostas ao formulário 1'!U47=[1]base!$C$5,[1]base!$D$5,IF('[1]Respostas ao formulário 1'!U47=[1]base!$C$6,[1]base!$D$6,IF('[1]Respostas ao formulário 1'!U47=[1]base!$C$7,[1]base!$D$7))))) -> 0.5
A50: 2019-09-07T22:34:15.927 | B50: Adriana Duarte | C50: Luz Belisario | D50: Identidade | E50: Manhã | F50: CCH Aula 3 UFRR | G50: 2019-09-07 | H50: 08:00:00 | I50: 16 | J50: 13 | K50: https://drive.google.com/open?id=1-rmgM2fqGENprONLeimRQpyN5tLUDsnF | L50: Foi suficiente | N50: Sim | O50: Ikigai foi uma metodologia muito bem-sucedida. Copiamos todas as respostas na lousa e estabelecemos os vínculos entre todos os participantes, com a força de que o grupo estava disposto a compartilhar muitas coisas, e as necessidades e habilidades combinavam bem. Para eles, foi eliminar uma barreira (a vergonha) de pedir apoio ao outro, de sentir amizade e um verdadeiro interesse em compartilhar o que cada cultura oferece. As primeiras atividades do território também funcionaram perfeitamente. | P50: Apesar da chuva, estando de férias e cansada hoje, 13 participantes chegaram a tempo, que é a nossa maior convocação | Q50: Embora os facilitadores de todas as turmas (inclusive nós) trouxessem comida para compartilhar no almoço, muitos tinham vergonha de comer. Embora tenha sido solicitado com antecedência e insistência em trazer pratos, a maioria não os trouxe. Há um forte tema de auto-estima nesse grupo. Um de nossos maiores aliados (um venezuelano com anos no Brasil) trouxe "fororo" (um mingau de milho assado) e todos os participantes de todas as turmas conseguiram se lembrar ou beber pela primeira vez aquela rica bebida venezuelana | R50: Todos os facilitadores estão sem dinheiro e, no entanto, sabemos que isso dificulta a compreensão da metodologia e nos dá dor no coração deixar nossos parceiros sem comida. Que o CIEDS pensaria em uma próxima oportunidade com uma contribuição mínima ou adiantar o pagamento ajudaria a resolver esses problemas logísticos que não têm outra maneira de se virar. | S50: Eu acho que tenho que ser menos séria e mais carinhosa todos os dias | T50: Eles gostaram das atividades. Eu acho que uma nova percepção do curso foi aberta hoje. | U50: Muito satisfeito | V50: 5 | W50: https://drive.google.com/open?id=1Fo1tGx_tj1EZDTesKb1DjFScZWk7ZtT- | X50: =IF(U50=[1]base!$C$3,[1]base!$D$3,IF('[1]Respostas ao formulário 1'!U48=[1]base!$C$4,[1]base!$D$4,IF('[1]Respostas ao formulário 1'!U48=[1]base!$C$5,[1]base!$D$5,IF('[1]Respostas ao formulário 1'!U48=[1]base!$C$6,[1]base!$D$6,IF('[1]Respostas ao formulário 1'!U48=[1]base!$C$7,[1]base!$D$7))))) -> 1
A51: 2019-09-07T22:56:21.741 | B51: Adriana Duarte | C51: Luz Belisario | D51: Território | E51: Tarde | F51: CCH Sala 3 - UFRR | G51: 2019-09-07 | H51: 01:00:00 | I51: 13 | J51: 11 | K51: https://drive.google.com/open?id=1LXIFZUXR6n8TrIlcb1g9MJzqDH5uhxui | L51: Foi suficiente | N51: Sim | O51: À tarde, a turma estava cansada e ansiosa. No entanto, eles levaram o tempo tudo para as atividades, o próprio território, o museu, o personagem. O módulo portunhol foi feito em uma roda porque eles não podiam avançar em duplas. A atividade mais relevante foi a histórieta com frases em português, onde eles desenham seu futuro em 5 anos. Todo mundo, finalmente, tentou falar em portugues e desenhou um futuro esperançoso, onde vê seus sonhos se tornarem realidade e na vanguarda de seus empreendimentos. | P51: A perseverança do grupo | Q51: No final dos dias sabados, todo mundo fica um pouco incoerente de fadiga | R51: Nós, que moramos em Roraima, e vocês, podemos continuar buscando informações sobre oportunidades para esses participantes. Eu acho que alguns deles seriam bons facilitadores. | S51: Devo comer melhor e me preocupar menos para ser consistente até o final do dia. | T51: Depois que eles se queixaram muito de ter que desenhar agora, eles são convidados a escrever e acabam também desenhando voluntariamente. Eles estão gostando do conteúdo | U51: Satisfeito | V51: 5 | W51: https://drive.google.com/open?id=10_LTJ6jDJQIvzZNhfuO4DAZMC9iz4IEW | X51: =IF(U51=[1]base!$C$3,[1]base!$D$3,IF('[1]Respostas ao formulário 1'!U49=[1]base!$C$4,[1]base!$D$4,IF('[1]Respostas ao formulário 1'!U49=[1]base!$C$5,[1]base!$D$5,IF('[1]Respostas ao formulário 1'!U49=[1]base!$C$6,[1]base!$D$6,IF('[1]Respostas ao formulário 1'!U49=[1]base!$C$7,[1]base!$D$7))))) -> 0.75
A52: 2019-09-08T20:41:05.744 | B52: Angelo | C52: Amanda | D52: Território | E52: Manhã | F52: CCH | G52: 2019-09-07 | H52: 08:12:00 | I52: 27 | J52: 15 | K52: https://drive.google.com/open?id=1FzoeL3qVMnRNhem9C9VgT0e2KYYNEpvt | L52: Foi suficiente | N52: Sim | O52: Os alunos fizeram desenharam modelos de cidades, escreveram historias de quadrinhos. A aula esteve marcada por um sentimento de alegria e parceria. | R52: Algums alunos que não tem outros parceiros da mesma nacionalidade, que não se podem integrar do mesmo jeito às dinâmicas grupais de nacionalidade. Pode ser de ajuda incluir no manual do facilitador algumas dicas sobre como lidar com essa situação. | S52: Ser mais estrito com o tempo | T52: Ótima | U52: Muito satisfeito | V52: 5 | W52: https://drive.google.com/open?id=1PTwetIURWTJBjiix4VUtQzfwSzkp4qjE | X52: =IF(U52=[1]base!$C$3,[1]base!$D$3,IF('[1]Respostas ao formulário 1'!U50=[1]base!$C$4,[1]base!$D$4,IF('[1]Respostas ao formulário 1'!U50=[1]base!$C$5,[1]base!$D$5,IF('[1]Respostas ao formulário 1'!U50=[1]base!$C$6,[1]base!$D$6,IF('[1]Respostas ao formulário 1'!U50=[1]base!$C$7,[1]base!$D$7))))) -> 1
A53: 2019-09-08T21:30:55.125 | B53: Celeste Guadarrama | C53: Elsie da Silva | D53: Identidade | E53: Noite | F53: Insikiran. Sala 5 | G53: 2019-08-29 | H53: 17:00:00 | I53: 17 | J53: 15 | K53: https://drive.google.com/open?id=1wYO0OM40dxRwvv93w6wJ4a6P5ToLpV4P | L53: Foi suficiente | N53: Sim | O53: Os participantes desenharam uma árvore que representassem as suas identidades, cada parte da arvore significa um aspecto da vida das pessoas. Depois iniciaram a criação coletiva de uma arvore que contemplasse os aspectos do grupo, com o intuito de pontoalizar a diversidade desde uma visão humana e inclusiva. | R53: Sem observações | S53: Escrever no cuadro os modulos por vir todos os dias, para a turma estar ciente do progresso | T53: Alguns alunos questionaram o conteudo do curso, e manifestaram dúvidas que foram esclarecidas pelas formadoras. Outros alunos inicialmente acharam que não conseguiriam fazer o exercicio por causa das suas habilidades em desenho, mas os resultados foram gratificantes para eles e para a turma na hora de compartilhar. | U53: Satisfeito | V53: 5 | W53: https://drive.google.com/open?id=1EWItySEZ9yHUo5iQzGfQyOJNWQcpanN4 | X53: =IF(U53=[1]base!$C$3,[1]base!$D$3,IF('[1]Respostas ao formulário 1'!U51=[1]base!$C$4,[1]base!$D$4,IF('[1]Respostas ao formulário 1'!U51=[1]base!$C$5,[1]base!$D$5,IF('[1]Respostas ao formulário 1'!U51=[1]base!$C$6,[1]base!$D$6,IF('[1]Respostas ao formulário 1'!U51=[1]base!$C$7,[1]base!$D$7))))) -> 0.75
A54: 2019-09-08T22:33:39.123 | B54: Celeste Guadarrama | C54: Elsie da Silva | D54: Identidade | E54: Noite | F54: Insikiran. Sala 5 | G54: 2019-08-30 | H54: 17:00:00 | I54: 15 | J54: 8 | K54: https://drive.google.com/open?id=1Y-BhyhTll1TTk-Ph8TVMP_grqC6CyrXw | L54: Foi suficiente | N54: Sim | O54: Cada aluno escreveu a propia historia de vida como um roteiro de cinema. O conceito ponto de virada, apresentado na atividade, levou a refletir sobre os eventos inesperados da vida como oportunidades para mostrar ou descobrir o nosso carácter. As historias grupais representaram migrações como narrativas comuns dos participantes. | P54: Receptividade | Q54: Baixa frequência. Observar se a assiduidade está sendo afetada por condições externas de cada cursista ou perda de compromisso | R54: Sugestão: (Pode ser combinado internamente entre os formadores) Espaço para troca de experiências em aula, com o intuito de propor soluções para desafios coletivos. | S54: Encerrar a aula com uma introdução da aula seguinte | T54: Os participantes desenvolveram suas historias a traves de generos como comedia ou aventura, favorecendo a reflexão sobre a propia identidade e o poder de decidir diante qualquer situação | U54: Satisfeito | V54: 5 | W54: https://drive.google.com/open?id=1QTxJJknGCd7xIqVW391f2Sb979ZXAI48 | X54: =IF(U54=[1]base!$C$3,[1]base!$D$3,IF('[1]Respostas ao formulário 1'!U52=[1]base!$C$4,[1]base!$D$4,IF('[1]Respostas ao formulário 1'!U52=[1]base!$C$5,[1]base!$D$5,IF('[1]Respostas ao formulário 1'!U52=[1]base!$C$6,[1]base!$D$6,IF('[1]Respostas ao formulário 1'!U52=[1]base!$C$7,[1]base!$D$7))))) -> 0.75
A55: 2019-09-08T23:09:59.952 | B55: Celeste Guadarrama | C55: Elsie Da Silva | D55: Identidade | E55: Manhã | F55: CCH. Sala 1 | G55: 2019-08-31 | H55: 08:00:00 | I55: 15 | J55: 11 | K55: https://drive.google.com/open?id=1VclZ3kBBUULb3_MIYKp19d7KPTSEaR0P | L55: Foi suficiente | N55: Não | O55: O dia iniciou definindo os estereotipos dentro da propio cultura. Abriou-se um espaço de debate e opiniões encontradas, foi necessaria a intervenção teorica sobre como as percepções sobre a cultura são construidas a traves de condições que mudam constantemente. No segundo periodo da manhã foi criado uma mensagem as gerações futuras da nossas culturas. Elevando os aspectos culturais que unificam. | P55: A turma responde positivamente, com receptividade e respeito, diante discussões que podem ser consideradas polemicas | Q55: Foi necessaria a intervenção dos formadores para encaminhar os relatos de alguns cursistas focados à politica | R55: Previsão de estoque para reposição dos materiais mais usados, sulfite e cartolina. | S55: Previsão do estoque dos materiais mais usados, sulfite e cartolina. | T55: As discussões levaram a refletir sobre quais seriam meios mais validos para conhecer outra cultura fora dos esteriotipos como fonte de conhecimento | U55: Satisfeito | V55: 5 | W55: https://drive.google.com/open?id=1gUid6BhZts4JbkVrolKOQ4D1Blzi41g_ | X55: =IF(U55=[1]base!$C$3,[1]base!$D$3,IF('[1]Respostas ao formulário 1'!U53=[1]base!$C$4,[1]base!$D$4,IF('[1]Respostas ao formulário 1'!U53=[1]base!$C$5,[1]base!$D$5,IF('[1]Respostas ao formulário 1'!U53=[1]base!$C$6,[1]base!$D$6,IF('[1]Respostas ao formulário 1'!U53=[1]base!$C$7,[1]base!$D$7))))) -> 0.75
A56: 2019-09-09T00:24:07.003 | B56: Celeste Guadarrama | C56: Elsie Da Silva | D56: Território | E56: Tarde | F56: CCH. Sala 1 | G56: 2019-08-31 | H56: 14:00:00 | I56: 11 | J56: 12 | K56: https://drive.google.com/open?id=12P9O_pBbaty7tb2ZUEZasT5GN8_hHcae | L56: Foi suficiente | N56: Não | O56: O que eu posso oferecem a comunidade? E O que a comunidade pode me oferecer? Foram as perguntas iniciais do primeiro modulo da tarde. Em coletivo foi preenchido o espaço de intersecção Oportunidades, resaltando o aprendizado de novas linguas, e novos metodos. Entrando no eixo Territorio como encerramento, foi criado o mapa de um territorio novo, pensado desde fusão de diversas culturas conhecidas pelos cursistas. Refletindo sobre o que constitui um territorio cultural | P56: Contamos com a presença de tres alunos de outra turma como apoio combinado com outro formador. A turma foi receptiva e os cursistas novos participativos e receptivos. | Q56: Na segunda metade do dia a turma foi menos participativa diante os conteudos. O rendimento de alguns cursistas foi condicionado pela logística do intervalo de almorço. | R56: Reposição dos materiais mais usados, sulfite e cartolina. | S56: Previsão de estoque para reposição dos materiais mais usados, sulfite e cartolina. Escrever no quadro todos os conteudos a serem desenvolvidos na semana | T56: A turma conseguiu assimilar os conteúdos, porem tiveram questionamentos sobre o direcionamento do curso. Foram necessarios pelo menos trinta minutos da aula para esclarecer dúvidas e direcionar as informações sobre a função e constituição do curso, o que significa ser uma pessoa empreendedora, construindo coletivamente sua justificação e importancia. | U56: Indiferente | V56: 3 | W56: https://drive.google.com/open?id=1twIZuJf8zgr6JesLn3li-5CDuG7GAw6J | X56: =IF(U56=[1]base!$C$3,[1]base!$D$3,IF('[1]Respostas ao formulário 1'!U54=[1]base!$C$4,[1]base!$D$4,IF('[1]Respostas ao formulário 1'!U54=[1]base!$C$5,[1]base!$D$5,IF('[1]Respostas ao formulário 1'!U54=[1]base!$C$6,[1]base!$D$6,IF('[1]Respostas ao formulário 1'!U54=[1]base!$C$7,[1]base!$D$7))))) -> 0.5
A57: 2019-09-09T01:03:13.152 | B57: Celeste Guadarrama | C57: Elsie da Silva | D57: Território | E57: Noite | F57: Insikiran. Sala 5 | G57: 2019-09-02 | H57: 17:00:00 | I57: 12 | J57: 12 | K57: https://drive.google.com/open?id=17EP11WbygNW_CNhqBI3HAMDKoqVokes_ | L57: Foi suficiente | N57: Sim | O57: A turma crio uma representação do territorio da sala de aula dando caracteristicas culturais como dinamica de integração. Criamos um Museu do Refugiado, em grupos foram imaginadas as estações desse Museu. Na segunda metade da aula Compartilhamos vivências sobre as diferenças linguisticas entre o espanhol e o português e os episodios particulares que elas producem dentro de uma cidade que convive com as duas linguas, logo apos foi criada um historia em quadrinhos usando a lingua portuguesa. | Q57: O conteudo do dia trouxe novos questionamentos sobre os conteúdos do curso entre alguns alunos, sendo necessaria a intervenção dos formadores para retomar o foco da atividade após esclarecidos os pontos. Os conteúdos do curso, assim como o foco e continuidade, foram compartilhados e explicados novamente no quadro ao inicio da aula. | R57: Sem reporte | S57: Questionar, como trabalhar a energia da turma se estiver desmotivada? Poderiam ser adaptadas algumas das atividades de aquecimento propostas ao longo do material que valorizam especialmente a integração? | T57: Foram aprensentados e discutidos varios exemplos de museus com a tematica da migração. Cursistas compartilharam conhecimentos sobre museus parecidos no Brasil. Porém, a criação do Museu foi levada com dificuldade e pouca participação. As atividades do modulo Portunhol, tiveram maior dinamismo | U57: Indiferente | V57: 3 | W57: https://drive.google.com/open?id=1I_mvK9_VuBY_r2709POltsdmJXobdrFa | X57: =IF(U57=[1]base!$C$3,[1]base!$D$3,IF('[1]Respostas ao formulário 1'!U55=[1]base!$C$4,[1]base!$D$4,IF('[1]Respostas ao formulário 1'!U55=[1]base!$C$5,[1]base!$D$5,IF('[1]Respostas ao formulário 1'!U55=[1]base!$C$6,[1]base!$D$6,IF('[1]Respostas ao formulário 1'!U55=[1]base!$C$7,[1]base!$D$7))))) -> 0.5
A58: 2019-09-09T13:56:31.812 | B58: Ângelo | C58: Amanda | D58: Território | E58: Manhã | F58: CCLA | G58: 2019-09-09 | H58: 08:00:00 | I58: 18 | J58: 13 | K58: https://drive.google.com/open?id=15-ytF3x2xNn-EqMKZUALyVLGki6Khrij | L58: Foi suficiente | N58: Não | O58: Turma bem participativa, interessada, disposta e bem controlada nas atividades quanto ao cumprimento de horas. Cumprido uma atividade pendente do módulo cultura e finalizamos o módulo território e economia. Interagimos como facilitadores nos temas e foi muito proveitoso. | P58: Atenção dos alunos e disposição | Q58: Material | R58: Passar um vídeo rápido seria bem interessante | S58: Perguntar ao facilitador que estava com o materiais se era o suficiente para realização das atividades e folha de frequência | T58: Bem esclarecedora, pois no final um aluno me procurou sobre o que eu tinha falado porque ele fez uma poesia sobre e como foi construído um museu e falei sobre as construções que devemos ter e as que devemos deixar pra trás, foi muito propício. | U58: Muito satisfeito | V58: 4 | W58: https://drive.google.com/open?id=1OQG5KUL9O2MHt0MopfVKIDkh8pBQvXwP | X58: =IF(U58=[1]base!$C$3,[1]base!$D$3,IF('[1]Respostas ao formulário 1'!U56=[1]base!$C$4,[1]base!$D$4,IF('[1]Respostas ao formulário 1'!U56=[1]base!$C$5,[1]base!$D$5,IF('[1]Respostas ao formulário 1'!U56=[1]base!$C$6,[1]base!$D$6,IF('[1]Respostas ao formulário 1'!U56=[1]base!$C$7,[1]base!$D$7))))) -> 1
A59: 2019-09-09T18:35:42.644 | B59: Carla Aparecida Domingues Rocha | C59: Alejandro Omar Molero | D59: Território | E59: Manhã | F59: Universidade Federal de Roraima | G59: 2019-08-31 | H59: 08:00:00 | I59: 30 | J59: 20 | K59: https://drive.google.com/open?id=1sPqBWuRwPNbv4veP0DAoQtanJgrzX9G1 | L59: Foi suficiente | N59: Não | O59: Ao trabalhar o museu do refugiado percebemos a importância ao resgatarmos a história daqueles que estão longe. | P59: A valorização da cultura. | Q59: A emoção que traz a tona um misto de sentimentos positivos (nostalgia) e negativos (revolta). | R59: A disponibilidade de material. | S59: Como é uma turma mista, posso falar mais pausadamente. | T59: Houve uma excelente aceitação. | U59: Muito satisfeito | V59: 5 | W59: https://drive.google.com/open?id=1vo1F-zc7AAGDfbPzCKa6ySDdZnSpvRWa | X59: =IF(U59=[1]base!$C$3,[1]base!$D$3,IF('[1]Respostas ao formulário 1'!U57=[1]base!$C$4,[1]base!$D$4,IF('[1]Respostas ao formulário 1'!U57=[1]base!$C$5,[1]base!$D$5,IF('[1]Respostas ao formulário 1'!U57=[1]base!$C$6,[1]base!$D$6,IF('[1]Respostas ao formulário 1'!U57=[1]base!$C$7,[1]base!$D$7))))) -> 1
A60: 2019-09-09T18:56:21.700 | B60: Celeste Guadarrama | C60: Elsie da Silva | D60: Território | E60: Noite | F60: Insikiran. Sala 5 | G60: 2019-09-03 | H60: 17:00:00 | I60: 15 | J60: 13 | K60: https://drive.google.com/open?id=1UrNwGoEB07wJoUfbbS5RqUwB_-MvVXFM | L60: Foi suficiente | N60: Sim | O60: No inicio da aula apresentamos o modulo Territorio Gastronomico, dando continuidade à reflexão sobre o territorio, concluimos que os gostos culinarios também constituem nossa identidade cultural e as semelhanças gastronomicas de america latina. Foi feito o mapeamento de economias locais, os resultados foram expostos no quadro para complementar os conhecimentos e visão de cada grupo. Logo apos, fizemos um mapeamento interno com as habilidades de cada participante para concluirmos o dia entrando no contexto das comunidades globalizadas, suas vantagens e desvantagens desde o ponto de vista cultural, economico e social | R60: Sem reporte | S60: Manter a gestão do tempo | T60: A discussão sobre Empreendedorismo culinario desperto interesse e troca de ideais facilitando o desenvolvimento dos conteudos e encerramento do Eixo territorio | U60: Satisfeito | V60: 4 | W60: https://drive.google.com/open?id=1JHBuBSZ2ScKj-trk93oYLv-wrGK1Dcxs | X60: =IF(U60=[1]base!$C$3,[1]base!$D$3,IF('[1]Respostas ao formulário 1'!U58=[1]base!$C$4,[1]base!$D$4,IF('[1]Respostas ao formulário 1'!U58=[1]base!$C$5,[1]base!$D$5,IF('[1]Respostas ao formulário 1'!U58=[1]base!$C$6,[1]base!$D$6,IF('[1]Respostas ao formulário 1'!U58=[1]base!$C$7,[1]base!$D$7))))) -> 0.75
A61: 2019-09-09T18:57:44.870 | B61: Carla Aparecida Domingues Rocha | C61: Alejandro Omar Molero | D61: Território | E61: Manhã | F61: Universidade Federal de Roraima | G61: 2019-09-02 | H61: 08:00:00 | I61: 30 | J61: 20 | K61: https://drive.google.com/open?id=1f2xmrVz5-ObajeiAVgOjqUcG46S-vZCS | L61: Foi suficiente | N61: Sim | O61: Foi magnífica, pois a interação ao falar sobre o território Gastronômico proporcionou ao grupo digamos que mais cumplicidade. | P61: Sem dúvida alguma foi a troca de experiências. | Q61: Ao tratar o tema Território Gastronômico é ter sensibilidade ao dizer o que você menos gosta. | R61: Ajustar as perguntas de forma que o cursista não se sinta desconfortável ao responder as perguntas da pág. 56 da apostila do aluno. | S61: Propor vídeos sobre as receitas ao ar livre. | T61: Temos tido um retorno muito positivo | U61: Muito satisfeito | V61: 5 | W61: https://drive.google.com/open?id=16R5TSbRkb4zKiBkCfPG0aKhSycwz9jj3 | X61: =IF(U61=[1]base!$C$3,[1]base!$D$3,IF('[1]Respostas ao formulário 1'!U59=[1]base!$C$4,[1]base!$D$4,IF('[1]Respostas ao formulário 1'!U59=[1]base!$C$5,[1]base!$D$5,IF('[1]Respostas ao formulário 1'!U59=[1]base!$C$6,[1]base!$D$6,IF('[1]Respostas ao formulário 1'!U59=[1]base!$C$7,[1]base!$D$7))))) -> 1
A62: 2019-09-09T19:12:34.488 | B62: Carla Aparecida Domingues Rocha | C62: Alejandro Omar Molero | D62: Território | E62: Manhã | F62: Universidade Federal de Roraima | G62: 2019-09-03 | H62: 08:00:00 | I62: 30 | J62: 20 | K62: https://drive.google.com/open?id=1vtqwG5J23-K8qjvM6sTIM06ef3HBaVzL | L62: Foi suficiente | N62: Sim | O62: Os cursistas acharam interessante o mapeamento do território. Segundo eles o mapeamento servirá para análise na implantação de empreendimentos no futuro. | P62: O conhecimento proporcionado no mapeamento do território. | Q62: Com as dinâmicas para não perder o tempo e o foco. | R62: O mapa de empatia, eles se sentem constrangidos ao mencionar sobre a vestimenta. | S62: A abordagem sobre a vestimenta, ou seja, trazer de forma mais "leve" um item que para alguns é desconfortável. | T62: Muito bom. | U62: Muito satisfeito | V62: 5 | W62: https://drive.google.com/open?id=1ICSzX4Cf0tAE0-CzLMRZvbwtq7u-PMeX | X62: =IF(U62=[1]base!$C$3,[1]base!$D$3,IF('[1]Respostas ao formulário 1'!U60=[1]base!$C$4,[1]base!$D$4,IF('[1]Respostas ao formulário 1'!U60=[1]base!$C$5,[1]base!$D$5,IF('[1]Respostas ao formulário 1'!U60=[1]base!$C$6,[1]base!$D$6,IF('[1]Respostas ao formulário 1'!U60=[1]base!$C$7,[1]base!$D$7))))) -> 1
A63: 2019-09-09T19:24:45.702 | B63: Carla Aparecida Domingues Rocha | C63: Alejandro Omar Molero | D63: Futuro | E63: Manhã | F63: Universidade Federal de Roraima | G63: 2019-09-04 | H63: 08:00:00 | I63: 30 | J63: 20 | K63: https://drive.google.com/open?id=1DVoVCVB8kVJWexy1_2U0mjDLa1-B6RIY | L63: Foi suficiente | N63: Sim | O63: A partir dessa oficina os cursistas puderam idealizar o futuro. | P63: A possibilidade de proporcionar a eles sensações diferentes ao olharem o passado, viverem o presente e planejarem o futuro. | Q63: Com aquelas pessoas em situação de vulnerabilidade social, pois sonhar com um empreendimento para elas seria algo impossível. Portanto, desconstruir esse pensamento requer atenção e sensibilidade. | R63: Procurar adaptar o material de forma que o cursista entenda a diferença dos futuros, ou seja, trazer uma linguagem mais apropriada a realidade deles. | S63: Adequar as explicações a realidade dos participantes. | T63: Excelente. | U63: Muito satisfeito | V63: 5 | W63: https://drive.google.com/open?id=1cpK_GhuFiXgACN4r-mGGBto0_TecPuWo | X63: =IF(U63=[1]base!$C$3,[1]base!$D$3,IF('[1]Respostas ao formulário 1'!U61=[1]base!$C$4,[1]base!$D$4,IF('[1]Respostas ao formulário 1'!U61=[1]base!$C$5,[1]base!$D$5,IF('[1]Respostas ao formulário 1'!U61=[1]base!$C$6,[1]base!$D$6,IF('[1]Respostas ao formulário 1'!U61=[1]base!$C$7,[1]base!$D$7))))) -> 1
A64: 2019-09-09T19:38:28.553 | B64: Celeste Guadarrama | C64: Elsie da Silva | D64: Futuro | E64: Noite | F64: Insikiran. Sala 5 | G64: 2019-09-04 | H64: 17:00:00 | I64: 12 | J64: 12 | K64: https://drive.google.com/open?id=1Bp7NceYwoF-M7KM3b9urVut_hrtwnmFb | L64: Foi suficiente | N64: Sim | O64: Abrimos o Eixo Futuro com dinamicas de adaptabilidade. Depois foram apresentados e explicados com detalhe e exemplos os conceitos fundamentais desse eixo: Futuro Possivel, Futuro provavel, Futuro Preferível e Futuro Acomodado. Os alunos fizeram grupos para criar um objeto que se deslocasse desde ponto A ate um ponto B usando materias reciclados, o objetivo era desafiar a visão dos recursos usados. O dia encerrou com a Atividade o circulo dos Sonhos, foi feito um exercicio de meditação e visualização de metas e soluçõe, foram escritas e apresentadas ao grupo criando vinculos entre os participantes | R64: Sugestão: Incluir nos materias os cartões correspondetes ao baralho Recursos da atividade ou acrescentar propostas para os futuros facilitadores fazer em casa mantendo o foco e objetivo do exercicio. Qual é o problema e a Solução Atraves do tempo e das mudanças. Pag 131 - 135 Manual do Facilitador. Jornada do Heroi Real. | S64: Gestão do tempo. | T64: A maioria dos objetos não atingiram o objetivo, só um aluno fez um briquedo inspirado em um jogo tradicional da Venezuela que conseguiu se deslocar, usando apenas duas varinhas de madeira e elastica. Na conclusão grupal refletimos sobre quais perspectivas limitam as possibilidades de criar com os recursos disponiveis no cotidiano ou na gestão de projetos pessoais. A turma respondeu positiva e proativamente diante as atividades do dia | U64: Satisfeito | V64: 4 | W64: https://drive.google.com/open?id=1EP2v5KNbjmon3pG2250QDV94h2EiFvpI | X64: =IF(U64=[1]base!$C$3,[1]base!$D$3,IF('[1]Respostas ao formulário 1'!U62=[1]base!$C$4,[1]base!$D$4,IF('[1]Respostas ao formulário 1'!U62=[1]base!$C$5,[1]base!$D$5,IF('[1]Respostas ao formulário 1'!U62=[1]base!$C$6,[1]base!$D$6,IF('[1]Respostas ao formulário 1'!U62=[1]base!$C$7,[1]base!$D$7))))) -> 0.75
A65: 2019-09-09T19:54:20.322 | B65: Carla Aparecida Domingues Rocha | C65: Alejandro Omar Molero | D65: Futuro | E65: Manhã | F65: Universidade Federal de Roraima | G65: 2019-09-06 | H65: 08:00:00 | I65: 30 | J65: 21 | K65: https://drive.google.com/open?id=15WdCk34j5PyTpG6dWSvNL6gxJr5QRtN1 | L65: Foi suficiente | N65: Sim | O65: Essa de fato foi a grande celebração. Os cursistas puderam expor seus pensamentos e dizer o que esperam do futuro. Segundo eles, o curso abriu horizontes e fez ressurgir esperanças. | P65: A possibilidade de ouvir relatos sobre mudanças efetivas de pensamento. | Q65: Com o processo de transição entre um subtema e outro que antecede a finalização do curso para não gerar falsas expectativas até o próximo curso. Friso que muitos pensaram que esse curso era pré-requisito para o próximo. | R65: Na transição de um tema para o tema final | S65: Essa prefiro me abster para não ser antiética. | T65: A aceitação supriu as expectativas. Ao término dos diálogos alguns choraram e relataram a importância do curso em suas vidas. | U65: Muito satisfeito | V65: 5 | W65: https://drive.google.com/open?id=16OmF7E7ipHd4XPt2JWAxieKMhxmfdX90 | X65: =IF(U65=[1]base!$C$3,[1]base!$D$3,IF('[1]Respostas ao formulário 1'!U63=[1]base!$C$4,[1]base!$D$4,IF('[1]Respostas ao formulário 1'!U63=[1]base!$C$5,[1]base!$D$5,IF('[1]Respostas ao formulário 1'!U63=[1]base!$C$6,[1]base!$D$6,IF('[1]Respostas ao formulário 1'!U63=[1]base!$C$7,[1]base!$D$7))))) -> 1
A66: 2019-09-09T20:20:51.699 | B66: Celeste Guadarrama | C66: Elsie Da Silva | D66: Futuro | E66: Noite | F66: Insikiran. Sala 5 | G66: 2019-09-05 | H66: 17:00:00 | I66: 12 | J66: 12 | K66: https://drive.google.com/open?id=1zZTXhFnCv0DrRKcb3dQbBOHWQXVCoees | L66: Foi suficiente | N66: Sim | O66: Iniciamos o dia com uma atividade de visualização do Passado, Presente e Futuro, o alunos se agruparam de acordo aos seus objetivo. Todos os cursistas tinham como objetivo ter seu próprio negócio, assim que organizamos os grupos de acordo com os serviços projetados. Cada aluno fez um modelo de negocio pessoal com ajuda dos colegas. O fato de ter o mesmo objetivo crio um ambiente colaboração e troca. Encerramos com a Estrategia Disney, onde cada participante do grupo devia caracterizar um personagem: O critica, O realista e O Sonhador para resolver juntos um desafio em comun. Cada aluno conseguiu se identificar com algum arquetipo. A conclusão final foi focada grupalmente nas potencialidades de cada perspectiva e como elas se complementam. Considerando que cada pessoa pode desenvolver as caracteristicas menos presentes no seu caracter com trabalho e conciencia. Valorizando tambem o trabalho em equipe como união de perspectivas. | R66: Sem reporte | S66: Acompanhar individualmente as atividades de reflexão que conforman o projeto de vida final. | T66: A turma trabalhou ativamente de forma colaborativa. A dinamica final, Estrategia Disney trouxe pontos de interesse na discussão Futuro, que ajudaram a fixar e complementaram os apredizados do Eixo | U66: Muito satisfeito | V66: 4 | W66: https://drive.google.com/open?id=1vZKw_M3KMG_cktaE80vumbrqqc09DCBO | X66: =IF(U66=[1]base!$C$3,[1]base!$D$3,IF('[1]Respostas ao formulário 1'!U64=[1]base!$C$4,[1]base!$D$4,IF('[1]Respostas ao formulário 1'!U64=[1]base!$C$5,[1]base!$D$5,IF('[1]Respostas ao formulário 1'!U64=[1]base!$C$6,[1]base!$D$6,IF('[1]Respostas ao formulário 1'!U64=[1]base!$C$7,[1]base!$D$7))))) -> 1
A67: 2019-09-09T21:24:38.087 | B67: Celeste Guadarrama | C67: Elsie da Silva | D67: Futuro | E67: Noite | F67: Insikiran. Sala 5 | G67: 2019-09-06 | H67: 17:00:00 | I67: 12 | J67: 11 | K67: https://drive.google.com/open?id=1GffKNQF_xGXS9s8SsuYh6X8lErIvtGw- | L67: Foi suficiente | N67: Sim | O67: A turma iniciou o dia planejando coletivamente uma estrategia para atinguir um objetivo no menor tempo possivel. Refletimos sobre as dificuldades do trabalho em equipe valorizando habilidades como comunicação, liderança, gestão de pessoas e inteligencia emocional. Voltando aos pontos desenvolvidos desde o Eixo Identidade. A Atividade Central do dia foi criar o Projeto de vida considerando as atividades da semana e os processos de aprendizado escritos desde a primeira semana de curso. Os formadores acompanharam individualmente aos alunos para conferir a absorção dos conteudos e sanar dúvidas. O dia encerrou conmemorando os aprendizados obtidos ao longo do curso, cada cursista teve a oportunidade de comunicar o impacto pessoal da caminhada proposta no projeto e foi compartilhado um lanche colaborativo. | R67: Obrigada! | S67: Aprendizado constante de comunicação de ideias concretas, gestão de grupos, interpretação teorica. | T67: Os projetos de vida ajudaram aos cursistas se ubicarem na fase de desenvolvimento dos seus projetos empreendedores desde uma perspectiva realista, programando atividades para fazer aquilo possivel. A receptividade foi muito boa entre os alunos que conseguiram finalizar o curso. Alguns alunos agradeceram o exercicio mental que constitui escrever um projeto de vida | U67: Muito satisfeito | V67: 5 | W67: https://drive.google.com/open?id=12t7R4Nl8HuV1jystoKm5rqVPwhYmxAsQ | X67: =IF(U67=[1]base!$C$3,[1]base!$D$3,IF('[1]Respostas ao formulário 1'!U65=[1]base!$C$4,[1]base!$D$4,IF('[1]Respostas ao formulário 1'!U65=[1]base!$C$5,[1]base!$D$5,IF('[1]Respostas ao formulário 1'!U65=[1]base!$C$6,[1]base!$D$6,IF('[1]Respostas ao formulário 1'!U65=[1]base!$C$7,[1]base!$D$7))))) -> 1
A68: 2019-09-09T21:50:07.356 | B68: Angelo | C68: Amanda | D68: Território | E68: Manhã | F68: CCLA 143 | G68: 2019-09-09 | H68: 08:12:00 | I68: 27 | J68: 13 | K68: https://drive.google.com/open?id=1gXg8W1742rIqA4wvd_iKyj_bFf13ZyIM | L68: Foi suficiente | N68: Não | O68: Alunos tratarom território e se fez a atividade do museu do refugiado. Depois se fez o mapeamento de oportunidades dos territorios. E depois o painel de talentos. | P68: Apareceram muitas ideias de negócios novas na aula. | R68: Oferecer mais referências caso os alunos queiram aprofundar mais. | S68: Prever a falta de material | T68: Ótima | U68: Muito satisfeito | V68: 4 | W68: https://drive.google.com/open?id=1w070VvNZu8-9byLVzBQst4WT9V8Dd2Oj | X68: =IF(U68=[1]base!$C$3,[1]base!$D$3,IF('[1]Respostas ao formulário 1'!U66=[1]base!$C$4,[1]base!$D$4,IF('[1]Respostas ao formulário 1'!U66=[1]base!$C$5,[1]base!$D$5,IF('[1]Respostas ao formulário 1'!U66=[1]base!$C$6,[1]base!$D$6,IF('[1]Respostas ao formulário 1'!U66=[1]base!$C$7,[1]base!$D$7))))) -> 1
A69: 2019-09-09T23:42:18.294 | B69: Adriana Duarte Bencomo | C69: Luz Belisario | D69: Território | E69: Noite | F69: Inkisiran Sala 5 - UFRR | G69: 2019-09-09 | H69: 17:00:00 | I69: 13 | J69: 11 | K69: https://drive.google.com/open?id=19Zf3kBQxSswKuX7S9ZXqMgeg-SZVU4h5 | L69: Foi suficiente | N69: Sim | O69: Tanto os presentes quanto os ausentes estão com gripe. O Turma é mais animado e gosta mais de atividades, eles passam mais tempo compartilhando suas experiências, embora em alguns deles haja muita vergonha no idioma, eles não tentam falar português e ainda não entendem o português. Eles adoraram o módulo de gastronomia e gostaram do mapeamento de Boa Vista. Estamos avançando na auto-estima, força e senso de comunidade. | P69: Sua perseverança Apesar das limitações, todos trouxeram algo para compartilhar hoje. | Q69: As dificuldades de Samantha, Gladys, Alexei, Anibal e Francis em entender o portuguese. No entanto, muitos estão determinados a estudar o idioma e é a primeira ponte que queremos incentivá-los a fazer. | R69: Consideramos importante que haja espaço para todos os turmas se encontrarem e compartilharem. | S69: Melhorar meu português escrito e falado | T69: Excelente. Eles gostaram e entenderam | U69: Muito satisfeito | V69: 5 | W69: https://drive.google.com/open?id=1xRqHK-8Lf0YPX8eLS-zSBtoX4uwccglY | X69: =IF(U69=[1]base!$C$3,[1]base!$D$3,IF('[1]Respostas ao formulário 1'!U67=[1]base!$C$4,[1]base!$D$4,IF('[1]Respostas ao formulário 1'!U67=[1]base!$C$5,[1]base!$D$5,IF('[1]Respostas ao formulário 1'!U67=[1]base!$C$6,[1]base!$D$6,IF('[1]Respostas ao formulário 1'!U67=[1]base!$C$7,[1]base!$D$7))))) -> 1
A70: 2019-09-09T23:56:02.074 | B70: Adriana Duarte | C70: Jaidan dos Santos | D70: Direitos e Deveres | E70: Manhã | F70: CCLA Sala 142 UFRR | G70: 2019-08-24 | H70: 08:00:00 | I70: 10 | J70: 10 | K70: https://drive.google.com/open?id=17-rgvTXOShFrEpjzvHO7p3McMexfqY9Q | L70: Não foi suficiente | M70: Começamos tarde e terminamos tarde também sem dar muito tempo para comer, mas sempre pela decisão de todos | N70: Sim | O70: Apesar do conteúdo denso e que muitos não haviam entendido que a oficina ficaria o dia inteiro, mesmo sem almoçar, todos certamente gostaram da experiência, se reuniram em todas as atividades e comemoraram seu progresso. | P70: A alegria dessa turma, apesar de ter histórias fortes, orgulhava-se de fazer parte da formação. | Q70: Não havia brasileiros | R70: Logística de alimentos aos sábados | S70: Mesmo não estava preparada para dar aula hoje, sinto que foi uma excelente facilitação. Eu não queria me separar dessa turma | T70: Eles adoraram a metodologia. Eles estavam com fome e cansados, mas decidiram ficar até o final e terminar todas as atividades. | U70: Satisfeito | V70: 5 | W70: https://drive.google.com/open?id=1p6IN_VxP0KN_Q9vgQdT773g8_LQA7e_V | X70: =IF(U70=[1]base!$C$3,[1]base!$D$3,IF('[1]Respostas ao formulário 1'!U68=[1]base!$C$4,[1]base!$D$4,IF('[1]Respostas ao formulário 1'!U68=[1]base!$C$5,[1]base!$D$5,IF('[1]Respostas ao formulário 1'!U68=[1]base!$C$6,[1]base!$D$6,IF('[1]Respostas ao formulário 1'!U68=[1]base!$C$7,[1]base!$D$7))))) -> 0.75
A71: 2019-09-10T12:35:50.423 | B71: Maria Gabriela Villalba | C71: Maria Gabriela Villalba | D71: Território | E71: Tarde | F71: CCLA 140 | G71: 2019-08-31 | H71: 08:00:00 | I71: 22 | J71: 19 | K71: https://drive.google.com/open?id=1vtu3a4KQ2rMNkRBZCIKz-s4C6lqAgqiz, https://drive.google.com/open?id=1EqIVWLzqk_0_rh3_RdUqPLRVSFtbMy35 | L71: Foi suficiente | N71: Sim | O71: Eu acho que foi muito produtivo para as pessoas, pois neste módulo elas experimentaram o trabalho em equipe e a compreensão de que através disso também podem empreender, através do estudo do território, perceberam o que mais fazem onde moram | P71: Trabalho em equipe, entendimento do outro, integração de culturas e debates de diferentes pensamentos combinados com o mesmo objetivo foram alcançados | Q71: as brutais mudanças de grupos e facilitadores tornaram-se um pouco confusas para os participantes. No entanto, neste módulo, eles retomaram o que haviam visto e esclareceram suas dúvidas e puderam entender para onde estava indo esse processo de treinamento. | R71: Algumas dinamicas, apenas o orden delas. E Pela minha experiência, considero que a seleção de treinadores deve ter pelo menos duas fases, uma primeira "psicológica", na qual você pode saber se o treinador é capaz de trabalhar com migrantes sem assumir situações pessoais nesse processo, e uma segunda fase em que pode demonstrar INDIVIDUALMENTE as capacidades e EXPERIÊNCIAS dos profissionais. Como instrutores 1 nesse desenvolvimento, muitos não trabalharam em áreas como aquelas que você realmente precisa como organização. Para muitos, é a primeira vez na frente de uma sala de aula e, para outros, não é a primeira vez, os últimos podem ter capacidade, teoria e conhecimento científico, mas falta de domínio do grupo respeitando a dinâmica criada por você. | S71: Minha fala em portugues | T71: O sucesso foi tão grande que eles queriam continuar a próxima fase, queriam continuar estudando, animados, para eles era difícil chegar à universidade e aos casacos, à fama da comida. | U71: Muito satisfeito | V71: 5 | W71: https://drive.google.com/open?id=13-IcAUcPTbsGAvR346D8e-arzC_Mwcn4 | X71: =IF(U71=[1]base!$C$3,[1]base!$D$3,IF('[1]Respostas ao formulário 1'!U69=[1]base!$C$4,[1]base!$D$4,IF('[1]Respostas ao formulário 1'!U69=[1]base!$C$5,[1]base!$D$5,IF('[1]Respostas ao formulário 1'!U69=[1]base!$C$6,[1]base!$D$6,IF('[1]Respostas ao formulário 1'!U69=[1]base!$C$7,[1]base!$D$7))))) -> 1
A72: 2019-09-10T13:08:56.446 | B72: Angelo | C72: Amanda | D72: Território | E72: Manhã | F72: CCLA | G72: 2019-09-10 | H72: 08:00:00 | I72: 18 | J72: 15 | K72: https://drive.google.com/open?id=17RpXdGEu1At_OFvGYCh1AMJ_9f9GwCgH | L72: Foi suficiente | N72: Sim | O72: Encerramos o eixo território e iniciamos o eixo futuro e diante as atividades percebemos o quanto é importante para os alunos cada fase e o quanto os estiga a reflexões que os confrontam. Turma participativa, animada e responsável com o êxito de seu processo de aprendizagem. | P72: As atividades mais dinâmicas | Q72: O tempo, hoje fomos mais rápidos | R72: Na atividade de problemas e recursos, pois no material está um pouco confuso a condução, porém conseguimos concluir por lembrarmos como foi o que recebemos. | S72: O tempo, pois hoje fomos rápidos | T72: Excelente, muitos participativos | U72: Muito satisfeito | V72: 4 | W72: https://drive.google.com/open?id=1p7-07Fmf-5CRA_8hVhUD_lNSFlgVlWeG | X72: =IF(U72=[1]base!$C$3,[1]base!$D$3,IF('[1]Respostas ao formulário 1'!U70=[1]base!$C$4,[1]base!$D$4,IF('[1]Respostas ao formulário 1'!U70=[1]base!$C$5,[1]base!$D$5,IF('[1]Respostas ao formulário 1'!U70=[1]base!$C$6,[1]base!$D$6,IF('[1]Respostas ao formulário 1'!U70=[1]base!$C$7,[1]base!$D$7))))) -> 1
A73: 2019-09-10T13:56:20.661 | B73: Carla Aparecida Domingues Rocha | C73: Alejandro Omar Molero | D73: Futuro | E73: Manhã | F73: Universidade Federal de Roraima | G73: 2019-09-05 | H73: 08:00:00 | I73: 30 | J73: 20 | K73: https://drive.google.com/open?id=1JUKVzZompKRlnSk10iJ3UJKrDXKTGrNk | L73: Foi suficiente | N73: Sim | O73: Ao propor o Modelo de Negócio Pessoal aos cursistas observamos em seus questionamentos a esperança de uma vida melhor. | P73: Orientá-los sobre organização e planejamento. | Q73: As pessoas que têm pouco entendimento. | R73: O material para pessoas com pouco entendimento. | S73: A explicação para os refugiados. | T73: Muito positivo. | U73: Muito satisfeito | V73: 5 | W73: https://drive.google.com/open?id=1HQewDFif4F24OOcc4AbpPy8aMd3Hl9mV | X73: =IF(U73=[1]base!$C$3,[1]base!$D$3,IF('[1]Respostas ao formulário 1'!U71=[1]base!$C$4,[1]base!$D$4,IF('[1]Respostas ao formulário 1'!U71=[1]base!$C$5,[1]base!$D$5,IF('[1]Respostas ao formulário 1'!U71=[1]base!$C$6,[1]base!$D$6,IF('[1]Respostas ao formulário 1'!U71=[1]base!$C$7,[1]base!$D$7))))) -> 1
A74: 2019-09-10T14:20:26.587 | B74: Fabíola Wickert | C74: Maria Gabriela Villalba | D74: Identidade | E74: Manhã | F74: Sala 140 Centro de Comunicação Social, Letras e Artes da UFRR | G74: 2019-08-30 | H74: 04:00:00 | I74: 21 | J74: 18 | K74: https://drive.google.com/open?id=1cL6as9j_Uu92osbUQQ2E5Rlbkqz8leTr | L74: Foi suficiente | N74: Sim | O74: Foram realizadas as discussões acerca da percepção de indivíduos e culturas, sob a ótica do próprio sujeito quanto a si e sobre os diferentes, e sob a ótica dos diferentes em relação a si. Abordou-se conceitos de etnografia e construção de identidade de grupo, bem como os elementos etnográficos explicam a cultura de um povo. | P74: A oficina permitiu ao grupo refletir sobre as diferenças entre as culturas e a construção de uma nova cultura de grupo. | R74: Maior diálogo com os facilitadores pois a definição das equipes de trabalho e datas nos finais de semana não incluiu a participação dos facilitadores como dito na preparação, o que resultou em instabilidade emocional e inseguranças que afetaram negativamente a integração entre os facilitadores | S74: Maior dedicação prévia junto ao facilitador 2 para evitar mal entendidos | T74: O grupo se envolveu facilmente nas atividades e debates, ótima aceitação dos temas. | U74: Muito satisfeito | V74: 5 | W74: https://drive.google.com/open?id=1jcZTBv8CqBwbyuVmu9crRC9D1XmAq_3TnHCXex224Lw | X74: =IF(U74=[1]base!$C$3,[1]base!$D$3,IF('[1]Respostas ao formulário 1'!U72=[1]base!$C$4,[1]base!$D$4,IF('[1]Respostas ao formulário 1'!U72=[1]base!$C$5,[1]base!$D$5,IF('[1]Respostas ao formulário 1'!U72=[1]base!$C$6,[1]base!$D$6,IF('[1]Respostas ao formulário 1'!U72=[1]base!$C$7,[1]base!$D$7))))) -> 1
A75: 2019-09-10T14:36:06.415 | B75: Fabíola Wickert | C75: Maria Gabriela Villalba | D75: Identidade | E75: Manhã | F75: Sala 140 Centro de Comunicação Social, Letras e Artes da UFRR | G75: 2019-08-29 | H75: 04:00:00 | I75: 21 | J75: 19 | K75: https://drive.google.com/open?id=13uKbtsOy7TGo6e3wLqooftQLtnGGz5SR | L75: Foi suficiente | N75: Sim | O75: Foram trabalhados o reconhecimento e a reflexão sobre a história e narrativa de vida dos participantes, por meio de analogia com roteiros de cinema com "pontos de virada" que consistem em pontos de mudança na vida dos participantes individualmente e em grupo, com a possibilidade de definir novos pontos de mudança e novas possibilidades para o futuro. | P75: Permitir aos participantes a reflexão de que é possível planejar pontos de mudança positivos e resolver desafios a partir de mudanças não planejadas, bem como a percepção de que além das histórias individuais, é possível traçar "novos roteiros" em grupo para alcançar propósitos definidos. | Q75: O processo migratório/ crise humanitária na Venezuela faz que com os participantes tenham histórias de vida com mudanças traumáticas e profundas, é recomendável que os facilitadores sejam preparados também para lidar com tais situações. Neste grupo, uma das participantes emocionou-se muito profundamente o que impactou os demais membros do grupo, por isso, foi convidada a tomar água e fora da sala, foi encorajada a ver a atividade como a possibilidade de planejar um desfecho positivo para a própria história, contando com novas pessoas e elementos de apoio. Verificou-se dificuldade de um dos grupos em realizar a atividade e apresentar toda a ideia dentro da apresentação, tendo sido explicado posteriormente o motivo das dificuldades. Em um dos grupos, um dos participantes não se envolveu realmente nas atividades e em outro grupo, um dos participantes se exaltou ao discordar do tempo definido para realizar uma atividade. Ao final, foi conversado com o grupo, a importância de uma atuação cidadã em todos os momentos do convívio em sociedade, uma vez que cada participante "deixou de fora" um grupo de pessoas, não seria razoável não participar efetivamente ou não estar comprometido com o bem estar de todo o grupo. | R75: Nessa oficina, sem observações | S75: Nessa oficina, sem observações | T75: O grupo aceitou bem as dificuldades | U75: Satisfeito | V75: 5 | W75: https://drive.google.com/open?id=1wu7YhzTXPWn55JRLdQmmp29hEOpkJlXtpTTyjTBJAH8 | X75: =IF(U75=[1]base!$C$3,[1]base!$D$3,IF('[1]Respostas ao formulário 1'!U73=[1]base!$C$4,[1]base!$D$4,IF('[1]Respostas ao formulário 1'!U73=[1]base!$C$5,[1]base!$D$5,IF('[1]Respostas ao formulário 1'!U73=[1]base!$C$6,[1]base!$D$6,IF('[1]Respostas ao formulário 1'!U73=[1]base!$C$7,[1]base!$D$7))))) -> 0.75
A76: 2019-09-10T14:38:42.040 | B76: Fabíola Wickert | C76: Ausente | D76: Identidade | E76: Manhã | F76: Sala 140 Centro de Comunicação Social, Letras e Artes da UFRR | G76: 2019-08-28 | H76: 04:00:00 | I76: 22 | J76: 20 | K76: https://drive.google.com/open?id=1GDcE-TwZSVlYP9tR5-jxlKEw-Yvv8hGV | L76: Foi suficiente | N76: Sim | O76: Iniciado o eixo identidade, foram trabalhados aspectos da identidade individual dos participantes, permitindo que percebam as próprias origens, histórias, conquistas, experiências e pessoas; em seguida, foram trabalhados aspectos de identidade coletiva do grupo, de modo que permitiu ao grupo iniciar a percepção de uma identidade coletiva, a partir da identidade dos participantes. A percepção das características individuais e coletivas permite | P76: As atividades levaram os participantes à reflexão acerca da construção da própria identidade enquanto sujeitos e também, da construção de uma identidade de grupo, reconhecendo-se como parte de um coletivo e mantendo seus próprios elementos. | R76: Embora o material tenha sido suficiente, os participantes apresentaram preferência pelo uso de lápis de cor, que foi disponibilizado em menor quantidade; disponibilizar mais lápis de cor que hidrocor. | S76: Citar menos exemplos de elementos para não influenciar os participantes na elaboração das atividades. | T76: O grupo aceitou bem o tema e as atividades, tendo realizado as atividades satisfatoriamente | U76: Satisfeito | V76: 5 | W76: https://drive.google.com/open?id=1fRmgI-o5L5hMBDHTwHAfJ-JcXMUrHfPPDe7Fj-e_vXc | X76: =IF(U76=[1]base!$C$3,[1]base!$D$3,IF('[1]Respostas ao formulário 1'!U74=[1]base!$C$4,[1]base!$D$4,IF('[1]Respostas ao formulário 1'!U74=[1]base!$C$5,[1]base!$D$5,IF('[1]Respostas ao formulário 1'!U74=[1]base!$C$6,[1]base!$D$6,IF('[1]Respostas ao formulário 1'!U74=[1]base!$C$7,[1]base!$D$7))))) -> 0.75
A77: 2019-09-10T14:46:05.330 | B77: Fabíola Wickert | C77: Ausente | D77: Identidade | E77: Manhã | F77: Sala 140 Centro de Comunicação Social, Letras e Artes da UFRR | G77: 2019-08-27 | H77: 04:00:00 | I77: 21 | J77: 19 | K77: https://drive.google.com/open?id=1MamLPCViSL2WF1fdT_Xo6XumkYfkjbvD, https://drive.google.com/open?id=1OGwxx9zjX6YxcsIh_qZkkC7QgHMiptpK | L77: Foi suficiente | N77: Sim | O77: Foram trabalhadas as atividades da árvore do eu e árvore do nós, permitindo a análise da construção dos indivíduos e do grupo. fortalecendo a integração entre os participantes e levando-os à reflexão das próprias histórias, bem como da necessidade de perceber as próprias conquistas e a superação de desafios e dificuldades (tormentas). As atividades também favorecem a percepção do indivíduo sozinho e no grupo, favorecendo com que cada um reflita na própria construção enquanto sujeito e enquanto membro de uma coletividade. | R77: Sem observações | S77: Sem observações | T77: O grupo aceitou bem em razão da oportunidade de refletir sobre a própria história. | U77: Satisfeito | V77: 5 | W77: https://drive.google.com/open?id=11V8-iIAc7Mn12OVw7OJu7KvDL6mFyVtoywkUNZL_HK4 | X77: =IF(U77=[1]base!$C$3,[1]base!$D$3,IF('[1]Respostas ao formulário 1'!U75=[1]base!$C$4,[1]base!$D$4,IF('[1]Respostas ao formulário 1'!U75=[1]base!$C$5,[1]base!$D$5,IF('[1]Respostas ao formulário 1'!U75=[1]base!$C$6,[1]base!$D$6,IF('[1]Respostas ao formulário 1'!U75=[1]base!$C$7,[1]base!$D$7))))) -> 0.75
A78: 2019-09-10T14:53:56.274 | B78: Fabíola Wickert | C78: José Belisario | D78: Cultura e Costumes | E78: Noite | F78: Sala | G78: 2019-09-02 | H78: 04:00:00 | I78: 15 | J78: 6 | K78: https://drive.google.com/open?id=1wJIY2H6Jd7IE1qtv-CETocGIOjp8dUcv | L78: Foi suficiente | N78: Sim | O78: Tratou-se dos conceitos de cultura (elementos que permitem conhecer a cultura como hábitos alimentares, festas religiosas e e transculturação, hábitos alimentares, festas laicas e religiosas, artes, religião, costumes locais de Roraima e do Brasil, relação do indivíduo com o trabalho, regras de conduta social em situações e ambientes diversos e código de vestimenta). Os participantes fizeram uma análise de sua própria cultura e do processo de transculturação que atualmente se verifica no estado de Roraima em razão da migração venezuelana. No segundo momento, analisou-se cultura e costumes com uma construção coletiva e comparativa sobre as culturas do Brasil e da Venezuela, a partir de hábitos alimentares, festas, artes, religião e comemorações laicas, ao final, os participantes comentaram as semelhanças e diferenças entre as culturas dos dois países. Gentilmente foi tratado sobre a necessidade de conhecer as regras de convívio social de acordo com cada cultura, e que as diferenças climáticas também influenciam na cultura das pessoas de um lugar, registrando a necessidade do cuidado com a higiene pessoal (de modo bastante delicado) em razão do clima quente nas regiões norte e nordeste especialmente; Foi recomendado durante a formação dos facilitadores, abordar cuidadosamente a questão da higiene pessoal. | Q78: O grupo é pequeno e integrou-se facilmente para a realização das atividades, porém, foi reduzido o tempo para discussão em razão do atraso dos participantes. Para não causar desconforto aos participantes que chegaram no horário, iniciou-se as atividades com a discussão de possíveis dúvidas sobre os temas já tratados e sobre o curso. | R78: Avaliar o horário de início das atividades para o período noturno pois muitas pessoas optam pelo período noturno em razão de atividades laborais que normalmente encerram às 18h; as atividades da formação foram definidas para iniciar às 17h o que pode prejudicar a participação dos cursistas. | S78: Sem observações | T78: Os participantes | U78: Indiferente | V78: 5 | W78: https://drive.google.com/open?id=1bPCCoXKAnva-fESDpJvrFzawpzBy2hcv5FMMyVSWkjc | X78: =IF(U78=[1]base!$C$3,[1]base!$D$3,IF('[1]Respostas ao formulário 1'!U76=[1]base!$C$4,[1]base!$D$4,IF('[1]Respostas ao formulário 1'!U76=[1]base!$C$5,[1]base!$D$5,IF('[1]Respostas ao formulário 1'!U76=[1]base!$C$6,[1]base!$D$6,IF('[1]Respostas ao formulário 1'!U76=[1]base!$C$7,[1]base!$D$7))))) -> 0.5
A79: 2019-09-10T15:07:56.840 | B79: Fabíola Wickert | C79: José Belisario | D79: Cultura e Costumes | E79: Noite | F79: Sala 117 LEDUCARR | G79: 2019-09-03 | H79: 04:00:00 | I79: 6 | J79: 6 | K79: https://drive.google.com/open?id=18MNYRFPDCvMziaNEif5cOpoOlWCTC7P9 | L79: Foi suficiente | N79: Sim | O79: Foram tratadas as percepções dos participantes de si mesmos no mundo, modelos de família e a percepção de mudança durante o processo, ao final da primeira etapa. | R79: Deixar o projeto de vida integralmente para o final do curso | S79: Sem observações | T79: Os participantes aceitam muito bem o tema, alguns com dificuldades para pensar nos passos necessários para executar seu projeto de vida | U79: Satisfeito | V79: 5 | W79: https://drive.google.com/open?id=1dwVa0n8u_iH1HYdAq9SW72Cm7vDYzt4wDh3JRoHxsAY | X79: =IF(U79=[1]base!$C$3,[1]base!$D$3,IF('[1]Respostas ao formulário 1'!U77=[1]base!$C$4,[1]base!$D$4,IF('[1]Respostas ao formulário 1'!U77=[1]base!$C$5,[1]base!$D$5,IF('[1]Respostas ao formulário 1'!U77=[1]base!$C$6,[1]base!$D$6,IF('[1]Respostas ao formulário 1'!U77=[1]base!$C$7,[1]base!$D$7))))) -> 0.75
A80: 2019-09-10T15:25:27.436 | B80: Fabíola Wickert | C80: José Belisario | D80: Identidade | E80: Noite | F80: sala 117 Leducarr - UFRR | G80: 2019-09-04 | H80: 04:00:00 | I80: 6 | J80: 5 | K80: https://drive.google.com/open?id=1oRGqxf7Ceu0oxMs127Q7NHJ7ZJN80squ | L80: Foi suficiente | N80: Sim | O80: Foram trabalhadas a percepção da construção da história de vida de cada participante individualmente e em grupo, permitindo analisar a própria história e como aprender com as dificuldades da vida (tempestades), evidenciando ainda, a inserção de cada indivíduo na coletividade (árvore do nós). | Q80: Uma das participantes demonstra grande necessidade de aceitação e dificuldade de percepção de si em um grupo, apresenta dificuldade de expressar-se e relatou sequelas físicas e psicológicas de violência doméstica. Um participante comparece acompanhado de outra pessoa, esse terceiro foi orientado a não comparecer por não ter realizado a inscrição; sua presença foi permitida para não causar desconforto no grupo, uma vez que as atividades já tinham iniciado quando tive confirmação de que esta pessoa não poderia participar, e de acordo com esse terceiro, um dos facilitadores consentiu que participasse tendo informado que apenas não receberia o certificado, após a orientação do coordenador para que não comparecesse (informações diferentes, boa vontade do facilitador porém desconhecimento das normas institucionais e falta de buscar orientação junto ao coordenador para evitar orientações equivocadas). Ao final da aula, foi esclarecido ao participante não inscrito não poderia mais participar das atividades. | R80: Alinhamento com todos os envolvidos para evitar informações equivocadas quanto às normas institucionais. | S80: Buscar informações completas sobre possíveis situações com o grupo com o qual não estive no primeiro dia de curso, para agir mais prontamente caso necessário. | T80: Os participantes aceitaram bem o tema e participaram ativamente das atividades e discussões. | U80: Satisfeito | V80: 5 | W80: https://drive.google.com/open?id=1qM5hvs5gjkyt4j10DxB4UrRzbPeWGELfxCMwp-U7C8g | X80: =IF(U80=[1]base!$C$3,[1]base!$D$3,IF('[1]Respostas ao formulário 1'!U78=[1]base!$C$4,[1]base!$D$4,IF('[1]Respostas ao formulário 1'!U78=[1]base!$C$5,[1]base!$D$5,IF('[1]Respostas ao formulário 1'!U78=[1]base!$C$6,[1]base!$D$6,IF('[1]Respostas ao formulário 1'!U78=[1]base!$C$7,[1]base!$D$7))))) -> 0.75
A81: 2019-09-10T15:48:02.999 | B81: Fabíola Wickert | C81: José Belisario | D81: Identidade | E81: Noite | F81: Sala 117 Leducarr - UFRR | G81: 2019-09-05 | H81: 04:00:00 | I81: 6 | J81: 5 | K81: https://drive.google.com/open?id=1Ft_0X7OTY3KzOIE86wRwYKsb7HqEJqb3 | L81: Foi suficiente | N81: Sim | O81: Foram realizadas atividades de reflexão e percepção da trajetória de vida dos participantes desenvolvendo-se uma analogia com roteiro de cinema, considerando eventos que mudam a trajetória de vida e conflitos/situações a partir dessas mudanças; foram discutidos aspectos da realização da atividade, dificuldades, perspectivas e semelhanças, bem como os significados dos eventos que representam pontos de mudança. Também foram discutidas a partir da elaboração de uma história envolvendo o grupo, pontos de virada e aprendizados com as dificuldades da vida e como ter mais controle das situações imprevistas. Durante a atividade "nossa vida é um filme", dois participantes não conseguiram trabalhar em conjunto em razão da diferença de percepções quanto à atuação em conjunto, foi realizada mediação para restaurar a confiança de um dos participantes e a aceitação de todos no grupo. Ao final, todos restabeleceram o sentimento de pertencimento ao grupo e a integração. | Q81: Em um grupo muito pequeno, ainda que haja grande integração, as diferenças são mais acentuadas e caso os facilitadores não tenham preparo, pode haver um impacto muito negativo entre os participantes. | R81: Sem observações | S81: Sem observações | T81: Os participantes aceitaram bem e compreenderam que muitas vezes, ocorrerão eventos e mudanças inesperados, que é possível lidar com esses eventos e mudanças e ainda, que é possível planejar mudanças. | U81: Satisfeito | V81: 5 | W81: https://drive.google.com/open?id=10oAfeoMLQ3M4UFHe51ZqwjQBHjV0pmuqry9dpTwU4Xc | X81: =IF(U81=[1]base!$C$3,[1]base!$D$3,IF('[1]Respostas ao formulário 1'!U79=[1]base!$C$4,[1]base!$D$4,IF('[1]Respostas ao formulário 1'!U79=[1]base!$C$5,[1]base!$D$5,IF('[1]Respostas ao formulário 1'!U79=[1]base!$C$6,[1]base!$D$6,IF('[1]Respostas ao formulário 1'!U79=[1]base!$C$7,[1]base!$D$7))))) -> 0.75
A82: 2019-09-10T15:58:28.540 | B82: Fabíola Wickert | C82: José Belisario | D82: Identidade | E82: Noite | F82: Sala 117 Leducarr-UFRR | G82: 2019-09-06 | H82: 04:00:00 | I82: 6 | J82: 5 | K82: https://drive.google.com/open?id=1R06hp21ii26qpfEJIKcS7jRfH5nrwID_ | L82: Foi suficiente | N82: Sim | O82: Foram tratadas as percepções das culturas e dos indivíduos, apresentando-se o que são elementos etnográficos, o que transmitem e como representam a cultura de um povo, como nos permitem conhecer melhor outras culturas e países, refletindo sobre a construção de uma cultura coletiva e de diferentes elementos étnicos e suas representações. | Q82: O participante que comparecia ao curso acompanhado por um amigo não inscrito deixou de comparecer pois não compreendeu que houve um equívoco quanto à possibilidade de participação de seu amigo e que deveria ter seguido a orientação do coordenador desde o primeiro momento (aula inaugural realizada em 31/08). | R82: Sem observações | S82: Sem observações | T82: O grupo aceitou bem o tema, tendo compreendido a percepção de elementos culturais bem como a percepção de si mesmos e sua cultura em relação aos indivíduos com culturas diferentes (percepção de si e dos outros sobre si; percepção dos outros e de si sobre os outros). | U82: Satisfeito | V82: 5 | W82: https://drive.google.com/open?id=1iBDFM51ywQEFRSmFmmx5fLbvY5uZjGSBTCTzyE-Y21k | X82: =IF(U82=[1]base!$C$3,[1]base!$D$3,IF('[1]Respostas ao formulário 1'!U80=[1]base!$C$4,[1]base!$D$4,IF('[1]Respostas ao formulário 1'!U80=[1]base!$C$5,[1]base!$D$5,IF('[1]Respostas ao formulário 1'!U80=[1]base!$C$6,[1]base!$D$6,IF('[1]Respostas ao formulário 1'!U80=[1]base!$C$7,[1]base!$D$7))))) -> 0.75
A83: 2019-09-10T16:19:51.120 | B83: Fabíola Wickert | C83: José Belisário | D83: Território | E83: Manhã | F83: Sala 01 CCH | G83: 2019-09-07 | H83: 04:30:00 | I83: 5 | J83: 5 | K83: https://drive.google.com/open?id=1xXhkP8EcVV1WhPkJrpq4pU7lxfxqC3av | L83: Foi suficiente | N83: Sim | O83: Foi realizada atividade de integração (titular de jornal) e em seguida, Ikigai simplificado para percepção de talentos e oportunidades a partir da percepção do território onde se encontram os participantes, finalizando com a reflexão quanto ao sentimento dos participantes no momento atual, seus aprendizados e necessidades de aprendizado; nesse momento, a participante que apresenta dificuldade de expressar-se, apresentou grandes aprendizados, que representam uma profunda mudança em sua percepção de si e dos espaços onde atua. Iniciou-se o módulo 2.1 com uma breve análise do poema "Pequena América" e discutindo-se algo de que os participantes sentem falta (da terra natal ou de outro local, no caso dos participantes roraimenses). Na sequência, foi realizada atividade de cartografia, onde os participantes elaboraram o mapa de um território apresentando todos os seus elementos (político, religioso, idioma, moeda, música, prato e animal típico, vegetação, estruturas, etc). Finalizou-se com a discussão acerca da composição de um território, apresentando-se a realidade da construção de um novo território de fato. Passou-se para a atividade de criação de um autorretrato, com a criação de um personagem que apresentou um reflexo do grupo. Foi servido almoço aos participantes, durante o qual, fora servidos pratos típicos do Brasil e da Venezuela e naturalmente, foram discutidos modos de preparo, ingredientes e origens dos pratos, tendo sido uma preparação natural para trabalhar o módulo de gastronomia. | P83: Maior amplitude de percepção dos participantes quanto à territorialidade e seus elementos, bem como das mudanças. | Q83: Uma das participantes se sentia retraída por demonstrar profundo sentimento de inadequação social, tendo sido criticada por outra participante; foi feita mediação para mostrar que na atividade de criação do território, todos deveriam participar e que a soma dos elementos é importante, a critica se deu em razão da inclusão de um novo espaço no desenho, e como solução, apresentou-se a realidade da Guiana Francesa, que mesmo muito distante do continente europeu, é território francês. | R83: Sem observações | S83: Sem observações | T83: O grupo envolveu-se nas atividades, aceitando os temas. | U83: Satisfeito | V83: 5 | W83: https://drive.google.com/open?id=1Vo5iptuYt8c1eJHyZQ2-oX-eLfNoMD21wWiVsq5rm6M | X83: =IF(U83=[1]base!$C$3,[1]base!$D$3,IF('[1]Respostas ao formulário 1'!U81=[1]base!$C$4,[1]base!$D$4,IF('[1]Respostas ao formulário 1'!U81=[1]base!$C$5,[1]base!$D$5,IF('[1]Respostas ao formulário 1'!U81=[1]base!$C$6,[1]base!$D$6,IF('[1]Respostas ao formulário 1'!U81=[1]base!$C$7,[1]base!$D$7))))) -> 0.75
A84: 2019-09-10T16:29:22.283 | B84: Angelo | C84: Amanda | D84: Futuro | E84: Manhã | F84: CCLA 143 | G84: 2019-09-10 | H84: 08:12:00 | I84: 27 | J84: 15 | K84: https://drive.google.com/open?id=1cgReJ_dmqWwJIcCQE-BiS6bAYCA3xhoo | L84: Foi suficiente | N84: Sim | O84: Iniciamos com Globalização e comunidade e depois com Adaptabilidade. Os alunos fizeram as dinâmicas correspondentes a cada módulo. | P84: Participação ativa de toda a turma. Parceria e cooperação. | R84: Usar mais referências bibliográficas. | S84: Ser mais organizado na realização da aula. | T84: Ótima | U84: Muito satisfeito | V84: 5 | W84: https://drive.google.com/open?id=1sRZlluR7_cv5_c3m2QJ11wy49QlIbPoo | X84: =IF(U84=[1]base!$C$3,[1]base!$D$3,IF('[1]Respostas ao formulário 1'!U82=[1]base!$C$4,[1]base!$D$4,IF('[1]Respostas ao formulário 1'!U82=[1]base!$C$5,[1]base!$D$5,IF('[1]Respostas ao formulário 1'!U82=[1]base!$C$6,[1]base!$D$6,IF('[1]Respostas ao formulário 1'!U82=[1]base!$C$7,[1]base!$D$7))))) -> 1
A85: 2019-09-10T22:12:22.771 | B85: Fabíola Wickert | C85: José Belisário | D85: Território | E85: Tarde | F85: Sala 01 CCH | G85: 2019-09-07 | H85: 04:40:00 | I85: 5 | J85: 5 | K85: https://drive.google.com/open?id=1dKb9HO3AGIWMO8t1hSYWw-JGBoEA3loI | L85: Foi suficiente | N85: Sim | O85: Foi realizada atividade "Museu do Refugiado", adaptando-se a metodologia em razão da dificuldade dos participantes para apresentar o trabalho, foi considerado que os facilitadores eram investidores e que os cursistas eram autores do projeto, desse modo, foram feitas observações para inclusão de mais possibilidades de apresentar mais elementos para percepção da cultura (o grupo apresentou repertório restrito, sendo que uma das participantes verbalizou muitas ideias durante a discussão e teve dificuldades durante a apresentação, e outra, não demonstrou empenho na atividade). Foi discutido como as ações valorizam a cultura dos indivíduos e grupos, e como promovem a integração e recepção de migrantes. O módulo Portunhol foi trabalhado adaptando-se a metodologia, os participantes falavam os cognatos e falsos cognatos e as palavras eram anotadas no quadro, discutindo-se os significados, as semelhanças entre os dois idiomas e as diferenças entre o idioma espanhol falado em diferentes países, favorecendo a percepção da possibilidade de desenvolver a habilidade de comunicação a partir das semelhanças entre as línguas. Os participantes elaboraram uma estória em quadrinhos com desenhos e palavras e apresentaram (migrantes falando em português e brasileiros falando em espanhol). Foi decidido com os participantes, que todos permaneceriam mais tempo para realização da discussão do módulo 2.4, tendo todos provado feijoada e paçoca de carne como pratos típicos do Brasil e de Roraima; fororo (mingau de milho típico da Venezuela) e hallaca, prato típico natalino do país vizinho, e conversaram sobre o preparo e variações dos pratos, foram anotadas no quadro, as percepções dos cursistas quanto ao que consideraram mais diferente, mais familiar, mais gostoso e menos gostoso dentre os pratos típicos experimentados, destacando-se que o gosto culinário é também uma forma de expressão da identidade territorial. Realizou-se a discussão proposta no manual, pontuando as possibilidades de empreendedorismo no ramo culinário, relacionando a gastronomia com a integração cultural. | R85: Sem observações | S85: Sem observações | T85: Os participantes aceitaram os temas propostos. | U85: Satisfeito | V85: 5 | W85: https://drive.google.com/open?id=1vQICJXn0Z3LyOmcL-urtkC6OIyRswz63vOfDPWxbW48 | X85: =IF(U85=[1]base!$C$3,[1]base!$D$3,IF('[1]Respostas ao formulário 1'!U83=[1]base!$C$4,[1]base!$D$4,IF('[1]Respostas ao formulário 1'!U83=[1]base!$C$5,[1]base!$D$5,IF('[1]Respostas ao formulário 1'!U83=[1]base!$C$6,[1]base!$D$6,IF('[1]Respostas ao formulário 1'!U83=[1]base!$C$7,[1]base!$D$7))))) -> 0.75
A86: 2019-09-10T22:48:39.832 | B86: Fabíola Wickert | C86: José Henrique Belisário | D86: Território | E86: Noite | F86: Sala 117 Leducarr- UFRR | G86: 2019-09-09 | H86: 04:00:00 | I86: 5 | J86: 5 | K86: https://drive.google.com/open?id=1SCIVlJquV9KKGMOfguwWo_94w9eLSLL2 | L86: Foi suficiente | N86: Sim | O86: Inicialmente foram discutidos novos modos de economia e trabalho a partir do uso de tecnologia, e em seguida, os participantes realizaram mapeamento territorial da economia, identificando diferentes tipos de atividade e discutindo a seguir, espaços e possibilidades para se inserirem no mercado, finalizando com o painel de talentos e a discussão de que todos possuem talentos que podem ser aplicados sempre, destacando ainda, que muitas vezes o talento que possuem e consideram algo simples, traduz o sonho realizado de outra pessoa. Foi realizada atividade inicial e tratados os temas globalização x glocalização de acordo com a proposta definida no manual, preenchendo-se o mapa da empatia e o painel da integração. Durante as atividades do módulo 2.6 - Globalização e comunidade, uma participante brasileira ao relatar uma situação, usou o termo "veneca" (muito utilizado por brasileiros para referi-se aos migrantes) o que causou profundo descontentamento em participantes migrantes; foi feita mediação para esclarecer que o termo é considerado pejorativo pelos migrantes e ainda, que não há intenção dos brasileiros de ofender aos migrantes com a palavra; ocorre que para os migrantes, o termo em questão tem origem em um insulto (em espanhol) o que a maioria dos brasileiros desconhece pois o termo é comumente usado e difundido como "apelido" para os migrantes venezuelanos. Foi revisada ainda a questão dos pré conceitos e discriminação, tendo os participantes informado que os temas não foram trabalhados de fato no início do curso. | Q86: Apesar de tratar-se de um grupo pequeno, em razão das características de uma das participantes, criou-se um pouco de rejeição de alguns participantes em relação à ela, gentilmente se está trabalhando a tolerância e a aceitação, por meio da percepção de que mesmo com aparentes defeitos, a participante "rejeitada" assim como todos no grupo, possui talentos que podem ser usados na promoção de ações positivas para todos. A participante demonstra por meio de comportamentos e palavras, profunda ansiedade, depressão e dificuldades de relacionamento em razão de situações de violência diversas, tendo confidenciado grandes traumas em particular, o que explica a dificuldade de adequação aos padrões socialmente definidos. é necessária sensibilidade para fazer com a participante perceba as próprias dificuldades e pontos de melhoria, sem sentir-se excluída e sem excluir-se, pois de fato, possui grande poder de mobilização e projeto que se executado, pode beneficiar uma coletividade na localidade. Havendo a possibilidade de ocorrer tal situação em qualquer turma, importante que todos os facilitadores sejam sensibilizados e preparados para atuar nesses casos, de modo que os cursistas mantenham-se em harmonia e com foco nas atividades. | R86: Buscar situações comuns de conflitos e mal entendidos no contexto do convívio entre brasileiros e orientação de todos os facilitadores para esclarecimentos e mais facilidade na condução, esse caso poderia ser usado como exemplo anteriormente, prevenindo-se mal estar entre os participantes. | S86: Buscar individualmente situações de conflitos e mal entendidos no contexto da convivência entre brasileiros e venezuelanos e tratar as situações como exemplos dentro dos contextos de cultura, pré conceitos e cidadania, evitando que termos considerados inadequados e/ou ofensivos sejam usados por qualquer dos participantes. | T86: Os participantes aceitaram bem os temas, percebendo a aplicabilidade no cotidiano. | U86: Satisfeito | V86: 5 | W86: https://drive.google.com/open?id=1zWxa01fVxUDaTCleY6ipANR2rIgA7hJaAwpbcwndSZc | X86: =IF(U86=[1]base!$C$3,[1]base!$D$3,IF('[1]Respostas ao formulário 1'!U84=[1]base!$C$4,[1]base!$D$4,IF('[1]Respostas ao formulário 1'!U84=[1]base!$C$5,[1]base!$D$5,IF('[1]Respostas ao formulário 1'!U84=[1]base!$C$6,[1]base!$D$6,IF('[1]Respostas ao formulário 1'!U84=[1]base!$C$7,[1]base!$D$7))))) -> 0.75
A87: 2019-09-10T22:52:03.621 | B87: José Belisario | C87: Fabiola Wickert | D87: Cultura e Costumes | E87: Noite | F87: Leducarr | G87: 2019-09-02 | H87: 17:21:00 | I87: 16 | J87: 6 | K87: https://drive.google.com/open?id=1gl-kO50lYOJZloy7Nkz_ooAFeY3RhvdA | L87: Foi suficiente | N87: Sim | O87: Se trataram os módulos 5 e 6 | P87: As pessoas conheceram mais das culturas e pensamentos dos outros | Q87: Resiliência e tolerância | R87: Mais espaço para os alunos se desenvolver | S87: Controlar o tempo | T87: O grupo foco na atividade e gostou | U87: Satisfeito | V87: 5 | W87: https://drive.google.com/open?id=1uBSn4IXA30L3j1Ukpn5_oWUZEEvi5IBM | X87: =IF(U87=[1]base!$C$3,[1]base!$D$3,IF('[1]Respostas ao formulário 1'!U85=[1]base!$C$4,[1]base!$D$4,IF('[1]Respostas ao formulário 1'!U85=[1]base!$C$5,[1]base!$D$5,IF('[1]Respostas ao formulário 1'!U85=[1]base!$C$6,[1]base!$D$6,IF('[1]Respostas ao formulário 1'!U85=[1]base!$C$7,[1]base!$D$7))))) -> 0.75
A88: 2019-09-10T23:01:07.822 | B88: José Belisario | C88: Fabiola Wickert | D88: Cultura e Costumes | E88: Noite | F88: Leducarr 117 | G88: 2019-09-03 | H88: 17:21:00 | I88: 8 | J88: 8 | K88: https://drive.google.com/open?id=13o4FHH0qxKczHar9hDoNYKJYuvZw7ZrU | L88: Foi suficiente | N88: Sim | O88: Se trataram os módulos 7 e 8 encerrando o eixo de cultura | P88: Se tratou todos os temas toda a turma participou dinamicamente | Q88: Alguns membros da turma presentarán mais restencia aos temas de reglas de conducta e vestimenta | R88: Se abordou de manera objetiva cada situação | S88: A forma de trabalho foi positiva | T88: Grupo aceitou o material e participou ativamente | U88: Muito satisfeito | V88: 5 | W88: https://drive.google.com/open?id=1DRSM6zb2_Lj8nrXPyuHrQydxPCGiepNr | X88: =IF(U88=[1]base!$C$3,[1]base!$D$3,IF('[1]Respostas ao formulário 1'!U86=[1]base!$C$4,[1]base!$D$4,IF('[1]Respostas ao formulário 1'!U86=[1]base!$C$5,[1]base!$D$5,IF('[1]Respostas ao formulário 1'!U86=[1]base!$C$6,[1]base!$D$6,IF('[1]Respostas ao formulário 1'!U86=[1]base!$C$7,[1]base!$D$7))))) -> 1
A89: 2019-09-10T23:09:40.269 | B89: José Belisario | C89: Fabiola Wickert | D89: Identidade | E89: Noite | F89: Leducarr 117 | G89: 2019-09-04 | H89: 17:21:00 | I89: 6 | J89: 6 | K89: https://drive.google.com/open?id=1S5Xz-qW6dfA--hne1gRvWDxyoDVtym43 | L89: Foi suficiente | N89: Sim | O89: Se começo a jornada do herói no eixo 1 indentidade com o árvore da vida e a floresta da vida | P89: O grupo gostou muito da dinâmica e de forma individual cada um reconheceu seus desafios | Q89: Nada relevante | R89: A estratégia foi ótima | S89: Questão puntual no horário | T89: Muito positiva, gostaram muito da dinâmica e do aprendizado | U89: Muito satisfeito | V89: 5 | W89: https://drive.google.com/open?id=1zuVK-rDv8aORs9APnR9jurTTYJB2WZTs | X89: =IF(U89=[1]base!$C$3,[1]base!$D$3,IF('[1]Respostas ao formulário 1'!U87=[1]base!$C$4,[1]base!$D$4,IF('[1]Respostas ao formulário 1'!U87=[1]base!$C$5,[1]base!$D$5,IF('[1]Respostas ao formulário 1'!U87=[1]base!$C$6,[1]base!$D$6,IF('[1]Respostas ao formulário 1'!U87=[1]base!$C$7,[1]base!$D$7))))) -> 1
A90: 2019-09-10T23:18:49.402 | B90: Fabíola Wickert | C90: José Enrique Belisario | D90: Futuro | E90: Noite | F90: Sala 117 Leducarr - UFRR | G90: 2019-09-10 | H90: 04:10:00 | I90: 5 | J90: 5 | K90: https://drive.google.com/open?id=1mnYKkv9hUUbiymwE_LN5nVW8rM7Kvh4Y | L90: Foi suficiente | N90: Sim | O90: Foi realizado aquecimento Adaptação e Transformação 1,2,3 com a discussão proposta ao final. Como reflexão inicial, adiantou-se a atividade da percepção e perspectiva utilizando-se um galho grande, ramos de folhas, flores e capim em um cesto, destacando que a percepção sobre pessoas, fatos, objetos, está relacionada às experiências de cada um, pois em razão das experiências do indivíduo, são aplicados "filtros" de percepção, que também se relacionam com o conhecimento acerca do objeto/pessoa/situação/fato observado, esclarecendo-se que a percepção pode mudar quando se tem mais conhecimento e experiência; as observações incluídas tiveram como objetivo, evidenciar aos demais participantes, que em alguns momentos percebem a uma participante como alguém com comportamento inadequado simplesmente, sem observar seus talentos e sem conhecer as causas dos comportamentos. Em seguida, os participantes realizaram atividade de integração, tendo cada participante apresentado a outro, sua trajetória, sonhos e gostos, para que estivessem mais receptivos a compreender e aceitar a participante constantemente vista como inadequada. Foi realizada reflexão da atividade inicial, comparando com a percepção das mudanças e realizada atividade central do eixo 3.1, adaptando-se a metodologia anotando-se desafios do cotidiano de um lado do quadro e objetos para serem usados como recursos do outro lado, apresentando-se as possibilidades de futuro (possível, provável, preferível e acomodado) bem como a proposta de soluções culturais, de modo que os participantes exercitaram a análise de recursos considerados inicialmente inúteis para solucionar os desafios propostos, discutindo ao final, como aprendemos com as soluções do passado e do presente para criar soluções para o futuro, o que envolve uma solução e como os recursos apresentados influenciam as chances de uma ideia ir para frente. Para finalizar o módulo, os participantes escreveram palavras no mural de celebração. Foi apresentado o vídeo indicado para o módulo 3.2 e permitido que os participantes anotassem sobre os futuros possíveis para seus projetos; em seguida, realizaram a atividade de construir uma engenhoca com materiais que foram disponibilizados (garrafas, potes, fios, tesoura, cola, sementes, balões, tecidos, linhas de crochê, cola quente). Ao final, a engenhoca se desfez e foi feita a reflexão a partir dos sentimentos dos participantes nos diferentes momentos da atividade (início, meio e fim), e quanto às crenças e comportamentos; alguns participantes adotaram uma postura acomodada durante a atividade e ao final, atribuíram o resultado ao fato de não serem ouvidos por todos no grupo, tendo sido então pontuado que diante da crença de que não seriam ouvidos, se acomodaram. Foi esclarecido que todos são responsáveis pelos resultados em equipe e que o mais importante é a análise e aprendizado, encerrando-se com a reflexão de que todos possuem habilidades, competências e que as crenças e comportamentos de cada um individualmente e em grupo, podem aumentar ou diminuir as possibilidades de sucesso. Encerrou-se as atividades com a inclusão de novas palavras no mural de celebração. | R90: Disponibilizar o "kit sevirologia" e cartas do baralho de desafios. | S90: Sem observações | T90: Os participantes aceitaram muito bem os temas, especialmente em razão da possibilidade de reflexão sobre os resultados que desejam para o futuro e a necessidade de agir para obter os resultados esperados. | U90: Muito satisfeito | V90: 5 | W90: https://drive.google.com/open?id=1d0_l6kE2ykqUVT1FLKUnpt2sj3_FO_kaQgqD9CkX4CQ | X90: =IF(U90=[1]base!$C$3,[1]base!$D$3,IF('[1]Respostas ao formulário 1'!U88=[1]base!$C$4,[1]base!$D$4,IF('[1]Respostas ao formulário 1'!U88=[1]base!$C$5,[1]base!$D$5,IF('[1]Respostas ao formulário 1'!U88=[1]base!$C$6,[1]base!$D$6,IF('[1]Respostas ao formulário 1'!U88=[1]base!$C$7,[1]base!$D$7))))) -> 1
A91: 2019-09-10T23:29:09.591 | B91: José Belisario | C91: Fabiola Wickert | D91: Identidade | E91: Noite | F91: Leducarr 117 | G91: 2019-09-05 | H91: 17:22:00 | I91: 6 | J91: 5 | K91: https://drive.google.com/open?id=12Yg8FPs3zVo4boqF4Nv6hxr75lMB4ln6 | L91: Foi suficiente | N91: Sim | O91: Se trabalhou modolu 1.3 e 1.4 minha vida é um filma e nossa vida é um filme | P91: A turma gostou do trabalho da atividade e de se conhecer melhor e conseguir reconhecer que tem vários enfoques ou pontos de viradas | Q91: Dois alunos tiveram um intercâmbio de palavras por falta de sensibilidade de uma das partes, teve que fazer uma atividade adicional para reforçar a união, atividade foi falar falar aspectos positivos e negativos das pessoas e como poderiam melhorar | R91: Se consiguió concluir a atividade só levo mais tempo | S91: Encerrar no horário | T91: O tema foi aceito, e grupo se reforço na última atividade | U91: Satisfeito | V91: 5 | W91: https://drive.google.com/open?id=1EWTJnHPLRKFYdueASp8bwObqfV63fUpm | X91: =IF(U91=[1]base!$C$3,[1]base!$D$3,IF('[1]Respostas ao formulário 1'!U89=[1]base!$C$4,[1]base!$D$4,IF('[1]Respostas ao formulário 1'!U89=[1]base!$C$5,[1]base!$D$5,IF('[1]Respostas ao formulário 1'!U89=[1]base!$C$6,[1]base!$D$6,IF('[1]Respostas ao formulário 1'!U89=[1]base!$C$7,[1]base!$D$7))))) -> 0.75
A92: 2019-09-10T23:36:34.277 | B92: José Belisario | C92: Fabiola Wickert | D92: Identidade | E92: Noite | F92: Leducarr | G92: 2019-09-06 | H92: 17:21:00 | I92: 5 | J92: 5 | K92: https://drive.google.com/open?id=1_aEXIzBQAnFCq9QNFupRu7FPgTrNnVup | L92: Foi suficiente | N92: Sim | O92: Se trabalhou os módulos 1.5 e 1.6 de cultura e identidade no eu e nós | P92: Cada um falou de sua própria cultura além da cultura de seu país, se reconheceram entre eles. | Q92: Tudo aconteceu de maneira certa com alguma resiliência | R92: Sem novidades | S92: Sem novidades | T92: O material foi entregue completo se consiguió fazer as atividades programadas | U92: Satisfeito | V92: 5 | W92: https://drive.google.com/open?id=1tGpHJ21-wFhuvdrZqR1W7VmHPriVtO49 | X92: =IF(U92=[1]base!$C$3,[1]base!$D$3,IF('[1]Respostas ao formulário 1'!U90=[1]base!$C$4,[1]base!$D$4,IF('[1]Respostas ao formulário 1'!U90=[1]base!$C$5,[1]base!$D$5,IF('[1]Respostas ao formulário 1'!U90=[1]base!$C$6,[1]base!$D$6,IF('[1]Respostas ao formulário 1'!U90=[1]base!$C$7,[1]base!$D$7))))) -> 0.75
A93: 2019-09-10T23:39:28.143 | B93: Fabíola Wickert | C93: Luz Belisario | D93: Direitos e Deveres | E93: Manhã | F93: Sala 50 Centro de Ciências Humanas UFRR | G93: 2019-08-31 | H93: 04:00:00 | I93: 13 | J93: 13 | K93: https://drive.google.com/open?id=1qOlcNjn9N2TfrBu5plajkY3XBDxoxAx- | L93: Foi suficiente | N93: Sim | O93: Após um breve encontro com todos os participantes, foram realizados os módulos 1 e 2 do eixo Direitos, Cultura e Habilidades para a Vida, abordando os temas de proteção ao trabalho (incluindo caracterização de trabalho análogo à escravidão, proteção à ,mulher e ao menor)e legislação relacionada ao processo de migração (Lei do Refúgio, Lei da Imigração), diferenças entre refúgio e residência, direito à documentação, direitos trabalhistas e modalidades de contratação; foram realizados o quiz e o teste. A seguir, foi tratado o módulo 2, abordando os direitos à saúde e à educação, alcançando todos os temas, aspectos legais e atividades previstos. | P93: Maior conhecimento dos participantes acerca da legislação que os afeta no cotidiano, bem como acerca de direitos e deveres. | Q93: Em razão da aula inaugural, é necessário que os facilitadores dominem bem o conteúdo a ser tratado, bem como tenham facilidade de adaptar a metodologia para que todos os temas sejam abordados completa e adequadamente. | R93: Sem observações | S93: Sem observações | T93: Os participantes aceitaram bem os temas tendo manifestado grande interesse. | U93: Satisfeito | V93: 5 | W93: https://drive.google.com/open?id=1EhT3-eQVnp0LlOS1pmHwf8shjab62n_GIpF5T0P0peY | X93: =IF(U93=[1]base!$C$3,[1]base!$D$3,IF('[1]Respostas ao formulário 1'!U91=[1]base!$C$4,[1]base!$D$4,IF('[1]Respostas ao formulário 1'!U91=[1]base!$C$5,[1]base!$D$5,IF('[1]Respostas ao formulário 1'!U91=[1]base!$C$6,[1]base!$D$6,IF('[1]Respostas ao formulário 1'!U91=[1]base!$C$7,[1]base!$D$7))))) -> 0.75
A94: 2019-09-10T23:47:08.398 | B94: DOMINGO LUIS ANTONIO GONZALEZ PETOT | C94: MARIA GABRIELA VILLALBA | D94: Futuro | E94: Tarde | F94: SALA 716 BLOCO VII UFRR | G94: 2019-09-10 | H94: 13:00:00 | I94: 16 | J94: 8 | K94: https://drive.google.com/open?id=1o2bTkRPO1OoYv0AdZzaONEf5bzdVvh5c | L94: Foi suficiente | N94: Sim | O94: A oficina se desenvolveu normalmente, mas o grupo não e muito entusiasta, faz tudo muito básico sem perseguir a excelência. Aparando um par de brasileiras, a maioria não cumpre com a "aula invertida" de ler a guia antes da aula.Há um par de pessoas que acabam sendo um pouco tóxicas porque não são colaborativas nem trabalhadoras. Hoje inciou o Eixo do Futuro, foi muito importante explicar na sala a diferenças entre os tipos de futuro (acomodado, provável, possível, preferível e solução social) e o grupo entendeu muito bem. | P94: Os alunos cada dia estão mais próximos a desenvolver suas ideias de empreendedorismo e está sendo muito útil. | Q94: Tem dois alunos brasileiros que não são participativos, uma delas fica dormida em vários períodos da aula, o outro fala muito por telefone, trabalha com o minimo esforço y saiu mais cedo da aula por compromisso laborais. esta situação e repetitiva e está afetando o desenvolvimento do grupo todo. | R94: Explicar mais fácil e certinho os tipos de futuro. Tem uma desconexão da guia do aluno e a guia do facilitador nos módulos 3.1 e 3.2 que alguns exercícios para preencher pelo aluno na sua guia não esta informado na guia do facilitador | S94: A fala em língua portuguesa | T94: Foi boa, mas eles não são muito proativos. | U94: Indiferente | V94: 4 | W94: https://drive.google.com/open?id=1dgxloX_Mxty9REP4LSQJzLj9Aw8iznWk | X94: =IF(U94=[1]base!$C$3,[1]base!$D$3,IF('[1]Respostas ao formulário 1'!U92=[1]base!$C$4,[1]base!$D$4,IF('[1]Respostas ao formulário 1'!U92=[1]base!$C$5,[1]base!$D$5,IF('[1]Respostas ao formulário 1'!U92=[1]base!$C$6,[1]base!$D$6,IF('[1]Respostas ao formulário 1'!U92=[1]base!$C$7,[1]base!$D$7))))) -> 0.5
A95: 2019-09-10T23:47:28.081 | B95: Fabíola Wickert | C95: Luz Belisário | D95: Direitos e Deveres | E95: Tarde | F95: Sala 50 Centro de Ciências Humanas - UFRR | G95: 2019-08-31 | H95: 04:00:00 | I95: 13 | J95: 11 | K95: https://drive.google.com/open?id=1NZJ3Qtcm5jh-SLIR0AZhaAWzDYXwDnDq | L95: Foi suficiente | N95: Sim | O95: Foram tratados os módulos 3 e 4 do Eixo de Direitos, seguindo a metodologia proposta, abordando-se todos os temas e realizando-se todas as atividades previstas. | Q95: Foi verificado que muitos cursistas não tinham condições de se alimentarem durante o intervalo entre as atividades o que compromete o rendimento dos cursistas e o aproveitamento do conteúdo. | R95: Informar previamente aos participantes a necessidade de se precaverem quanto à alimentação. | S95: Sem observações | T95: Os participantes aceitaram bem os temas, tendo sido percebidas diferenças culturais quanto à percepção de direitos e deveres, especialmente quanto à proteção legal de minorias, verificando-se pelos comentários dos participantes, a percepção de diferenças culturais. | U95: Muito satisfeito | V95: 5 | W95: https://drive.google.com/open?id=14KNW3C7NY1qlNj6BJEdTRk9e05cMpYWdmCgFRgT_ZMM | X95: =IF(U95=[1]base!$C$3,[1]base!$D$3,IF('[1]Respostas ao formulário 1'!U93=[1]base!$C$4,[1]base!$D$4,IF('[1]Respostas ao formulário 1'!U93=[1]base!$C$5,[1]base!$D$5,IF('[1]Respostas ao formulário 1'!U93=[1]base!$C$6,[1]base!$D$6,IF('[1]Respostas ao formulário 1'!U93=[1]base!$C$7,[1]base!$D$7))))) -> 1
A96: 2019-09-10T23:48:23.721 | B96: Jose Belisario | C96: Fabiola Wickert | D96: Território | E96: Manhã | F96: CCH | G96: 2019-09-07 | H96: 08:17:00 | I96: 5 | J96: 5 | K96: https://drive.google.com/open?id=19DNUuzhNFPEHjpGyN05KQ2jh_y7ncTII | L96: Foi suficiente | N96: Sim | O96: Se terminou o módulo 1.7 e se começo o eixo 2 território até 2.2 | P96: A dinâmica do grupo e participação foi positiva | Q96: Sem novidades tudo deu certo | R96: Tudo saiu bem sem novidades | S96: Tudo saiu bem | T96: Se deu o material todo o grupo gostou da dinâmica se trabalhou em pontos chaves se deu alguns reforços | U96: Satisfeito | V96: 5 | W96: https://drive.google.com/open?id=1XILDzpebqHvlzBjOEc-uJ3T2v8rvEAN7 | X96: =IF(U96=[1]base!$C$3,[1]base!$D$3,IF('[1]Respostas ao formulário 1'!U94=[1]base!$C$4,[1]base!$D$4,IF('[1]Respostas ao formulário 1'!U94=[1]base!$C$5,[1]base!$D$5,IF('[1]Respostas ao formulário 1'!U94=[1]base!$C$6,[1]base!$D$6,IF('[1]Respostas ao formulário 1'!U94=[1]base!$C$7,[1]base!$D$7))))) -> 0.75
A97: 2019-09-10T23:57:27.299 | B97: José Belisario | C97: Fabiola Wickert | D97: Território | E97: Tarde | F97: CCH | G97: 2019-09-07 | H97: 13:17:00 | I97: 5 | J97: 5 | K97: https://drive.google.com/open?id=1yxNxozHyA8xqbcLn-5i9WjS9LFhw3YbY | L97: Foi suficiente | M97: Foi suficiente, no grupo de concordo adiantar o módulo gastronômico aproveitando as diversas comidas que todos houveram levado | N97: Sim | O97: Se encerró portuñol até o módulo 2.4 de gastronomía | P97: Os participantes experimentaram diversas comidas típicas trocaram ideias e receitas e tiveram uma troca cultural interessante | Q97: Sem novidades | R97: Tudo foi bem planejado e deu certo | S97: Tudo deu certo | T97: O grupo gostou muito das atividades e dos temas tratados e tiveram uma boa participação entre eles | U97: Muito satisfeito | V97: 5 | W97: https://drive.google.com/open?id=1Eb4etWAs46sl7Xe7fJOqEXVxyJVQtScg | X97: =IF(U97=[1]base!$C$3,[1]base!$D$3,IF('[1]Respostas ao formulário 1'!U95=[1]base!$C$4,[1]base!$D$4,IF('[1]Respostas ao formulário 1'!U95=[1]base!$C$5,[1]base!$D$5,IF('[1]Respostas ao formulário 1'!U95=[1]base!$C$6,[1]base!$D$6,IF('[1]Respostas ao formulário 1'!U95=[1]base!$C$7,[1]base!$D$7))))) -> 1
A98: 2019-09-11T00:05:47.176 | B98: DOMINGO LUIS ANTONIO GONZÁLEZ PETOT | C98: MARIA GABRIELA VILLALBA | D98: Território | E98: Tarde | F98: SALA 716 BLOCO VII UFRR | G98: 2019-09-09 | H98: 13:00:00 | I98: 16 | J98: 7 | K98: https://drive.google.com/open?id=1dAor6tRV4WAe5k21fbfF5JT-JihdlUu5 | L98: Foi suficiente | N98: Sim | O98: Foi uma boa aula onde os alunos conseguíram mapear a economia local e a comunidade, alem de falar sobre o global e glocal. A gente atingiu os objetivos, mas a turma é um pouco passiva, tem um par de alunos poucos participativos que incomodam ao resto da turma. Os mapeamentos ainda satisfatórios, foram um pouco básicos. | P98: As dinâmicas de aquecimento ajudam a rir ao grupo, é bom e positivo. | Q98: A passividade do grupo em sentido geral e a atitude de dois alunos brasileiros muito disconformes e pouco participativos. | R98: No mapeamento da economia local, adicionar serviços também, só tem bens. | S98: A minha fala em português. | T98: Boa aceitação. | U98: Satisfeito | V98: 4 | W98: https://drive.google.com/open?id=1C_mnfn9VJdhqLXpOo5ZC7I4UNJrvCq6T | X98: =IF(U98=[1]base!$C$3,[1]base!$D$3,IF('[1]Respostas ao formulário 1'!U96=[1]base!$C$4,[1]base!$D$4,IF('[1]Respostas ao formulário 1'!U96=[1]base!$C$5,[1]base!$D$5,IF('[1]Respostas ao formulário 1'!U96=[1]base!$C$6,[1]base!$D$6,IF('[1]Respostas ao formulário 1'!U96=[1]base!$C$7,[1]base!$D$7))))) -> 0.75
A99: 2019-09-11T00:11:34.540 | B99: José Belisario | C99: Fabiola Wickert | D99: Território | E99: Noite | F99: Leducarr | G99: 2019-09-09 | H99: 17:21:00 | I99: 5 | J99: 5 | K99: https://drive.google.com/open?id=1_EWbIdZjjy9iDyVSb-dEkBC-yGZflD7o | L99: Foi suficiente | N99: Sim | O99: Se concluiu o eixo território fazendo cada atividade e mapeamento | P99: Os participantes conseguiram se reconhecer no local, reconhecer suas habilidades e fortalezas assim como reconhecer que tem o território para oferecer | Q99: Se teve um confronto por parte de uma participante com todo o resto do grupo devido a conceitos errados, se evidenciou com o grupo que tinham uma debilidade no módulo 3 de direitos cultura e habilidades para a vida se trabalhou um pouco os conceitos. Se combinou que se dá tempo no final se retomaria essa atividade | R99: Se evidenciou que o problema foi que não de trabalhou bem o módulo dos direitos causando um conflito entre os participantes pela forma de falar de alguns que de certa forma discriminava aos outros | S99: Prestar mais atenção na fala dos alunos para fazer as correções pertinentes | T99: O grupo gostou muito da dinâmica em geral e mais da explicação dos direitos das pessoas. | U99: Satisfeito | V99: 5 | W99: https://drive.google.com/open?id=1mttj1qnBlo3-S5kkEkynQnRMUSHzeghp | X99: =IF(U99=[1]base!$C$3,[1]base!$D$3,IF('[1]Respostas ao formulário 1'!U97=[1]base!$C$4,[1]base!$D$4,IF('[1]Respostas ao formulário 1'!U97=[1]base!$C$5,[1]base!$D$5,IF('[1]Respostas ao formulário 1'!U97=[1]base!$C$6,[1]base!$D$6,IF('[1]Respostas ao formulário 1'!U97=[1]base!$C$7,[1]base!$D$7))))) -> 0.75
A100: 2019-09-11T00:21:31.381 | B100: José Belisario | C100: Fabiola Wickert | D100: Futuro | E100: Noite | F100: Leducarr | G100: 2019-09-10 | H100: 17:21:00 | I100: 5 | J100: 5 | K100: https://drive.google.com/open?id=1furHvugKznqKv3bwkPdplxUybwdgp1iL | L100: Foi suficiente | N100: Sim | O100: Se começo o eixo 3 futuro até o futuro acomodado no 3.2 se fez a atividade com material reciclagem | P100: Os participantes começaram a entender que tem que enxergar mais longe que tem que planejar em várias possibilidades de resultados | Q100: Estão sentindo um pouco de desconfiança possivelmente pela pressão de participar no ideatāo | R100: Reforçar a importância do planejamento e do trabalho em equipe mesmo da liderança | S100: A gente conseguiu ver os pontos fracos da turma e falar ao respeito, no caso o trabalho deu certo | T100: O grupo reconheceu suas dificuldade com o tema e vão trabalhar no foco | U100: Satisfeito | V100: 5 | W100: https://drive.google.com/open?id=1HB9leHvuJ23BX9Y1skqvCNy0yTmFtgrg | X100: =IF(U100=[1]base!$C$3,[1]base!$D$3,IF('[1]Respostas ao formulário 1'!U98=[1]base!$C$4,[1]base!$D$4,IF('[1]Respostas ao formulário 1'!U98=[1]base!$C$5,[1]base!$D$5,IF('[1]Respostas ao formulário 1'!U98=[1]base!$C$6,[1]base!$D$6,IF('[1]Respostas ao formulário 1'!U98=[1]base!$C$7,[1]base!$D$7))))) -> 0.75
A101: 2019-09-11T11:08:07.658 | B101: DOMINGO LUIS ANTONIO GONZALEZ PETOT | C101: MARIA GABRIELA VILLALBA | D101: Território | E101: Manhã | F101: SALA 50 CCH UFRR | G101: 2019-09-07 | H101: 08:00:00 | I101: 16 | J101: 8 | K101: https://drive.google.com/open?id=1R46-gY5D7iGFxHd-1CS8cxXEOxBXT0nR | L101: Não foi suficiente | M101: Simplesmente porque a turma toda chegou muito tarde por causa da chuva e da escassez de transporte dos sábados. | N101: Sim | O101: A oficina do sábado pela manha foi difícil por causa de que os alunos chegaram muito tarde por causa da chuva e de falta de transporte, no médio dia foi agradável compartilhar o almoço com a colaboração de todos. Sobre a aula, os alunos terminaram a atividade da aula da sexta sobre a cartografia da sua localidade, conseguiram identificar a maioria das coisas, mas resultou um pouco complicado porque todos moravam em área diferentes motivo pelo qual eligiram apenas uma localidade. Logo continuou a atividade do Museu do Refugiado, um pouco complicado que entenderam a atividade, foi necessário explicar muitas vezes e acompanharmo-os perdem o foco muitas vezes, alguns entenderam que era um museu mas não que era sobre os refugiados e terminavam fazendo algumas coisas muito genéricas, também alguns temas era complicados porque quase não conheciam, por exemplo, da área de Literatura; porém, depois tudo deu certo com o resultado final com a intervenção dos facilitadores para focar na área temática dos refugiados. | P101: O resultado final das atividades se consegue, apesar das dificuldades durante elas. | Q101: Dificuldades para que o grupo consiga-se enfocar em algumas atividades, alguns dos participantes (especialmente dois brasileiros) são pouco participativos e muito passivos, também todos os venezuelanos menos um, não tentam falar em português e as vezes apresentam poco interesse em se esforçar. | R101: A palavra "CURADURÍA" e muito pouco compreensível em espanhol (pagina 77), sería bom substituir por uma palavra mais compreensível. | S101: Cobrar mais aos alunos sobre o cumprimento do horário de inicio ao fim. | T101: Foi média, fizeram o que foi pedido, mas não abrasaram grandemente nem rejeitaram também não. | U101: Indiferente | V101: 4 | W101: https://drive.google.com/open?id=15yTwcy4-3w3nRA-n7MvmK1oDGjHmIu0H | X101: =IF(U101=[1]base!$C$3,[1]base!$D$3,IF('[1]Respostas ao formulário 1'!U99=[1]base!$C$4,[1]base!$D$4,IF('[1]Respostas ao formulário 1'!U99=[1]base!$C$5,[1]base!$D$5,IF('[1]Respostas ao formulário 1'!U99=[1]base!$C$6,[1]base!$D$6,IF('[1]Respostas ao formulário 1'!U99=[1]base!$C$7,[1]base!$D$7))))) -> 0.5
A102: 2019-09-11T11:35:58.166 | B102: DOMINGO LUIS ANTONIO GONZALEZ PETOT | C102: MARIA GABRIELA VILLALBA | D102: Território | E102: Tarde | F102: SALA 50 CCH UFRR | G102: 2019-09-07 | H102: 13:00:00 | I102: 16 | J102: 8 | K102: https://drive.google.com/open?id=1gdfN4m5vqSgls7TGh8lj4r8XEMWxETNw | L102: Foi suficiente | N102: Sim | O102: A oficina inciou um poco lenta, os participantes não são muito ativos, mas sempre faz o que tem que fazer, porem ao final terminou surpreendentemente bem. Iniciou com o modulo de PORTUNHOL, pouco a pouco foram se tornando mais participativos, depois, a gente fez o módulo de TERRITÓRIO GASTRONÓMICO, surpreendentemente abrasaram grandemente a atividade de Master Chef, entenderam muito rápido e ainda mais rápido conseguiram construir um roteiro, dramatização e a receita (possivelmente ajudou que um dos participantes pouco ativo teve que ir embora cedo pela tarde e ficaram só mulheres). | P102: Dramatização de Master Chef | Q102: Um dos alunos (o menos participativo) foi embora cedo por motivos de trabalho,. | R102: Adicionar exemplos de cognatos e falsos cognatos na guia. | S102: Cobrar pelo cumprimento do horário, hueve um aluno que chegou tarde e foi embora cedo | T102: Do primeiro módulo foi uma aceitação "estândar", mas do segundo foi muito boa. | U102: Indiferente | V102: 5 | W102: https://drive.google.com/open?id=1iTbjXKjEcTVT6kCn5j2e8IUJMPxoXnb7 | X102: =IF(U102=[1]base!$C$3,[1]base!$D$3,IF('[1]Respostas ao formulário 1'!U100=[1]base!$C$4,[1]base!$D$4,IF('[1]Respostas ao formulário 1'!U100=[1]base!$C$5,[1]base!$D$5,IF('[1]Respostas ao formulário 1'!U100=[1]base!$C$6,[1]base!$D$6,IF('[1]Respostas ao formulário 1'!U100=[1]base!$C$7,[1]base!$D$7))))) -> 0.5
A103: 2019-09-11T12:10:37.349 | B103: Adriana Duarte | C103: Luz Belisario | D103: Futuro | E103: Noite | F103: Inkisiran Sala 5 UFRR | G103: 2019-09-10 | H103: 17:00:00 | I103: 13 | J103: 9 | K103: https://drive.google.com/open?id=1jnbsCXx8N4-Fyib0EkZbjzW0AVsRWNiH | L103: Foi suficiente | N103: Sim | O103: A turma entendeu o módulo do futuro, eles adoravam aprender algo novo e, precisarom un tempo para aplicar o jogo de baralhas mais conseguiram fazê-lo de maneira eficaz. Eles sentiram que hoje um novo mundo foi aberto para eles e eles foram muito atenciosos | P103: Hoje todos chegaram muito cedo e verificamos que todos os materiais estão finalizados. | Q103: A turma tem pessoas que estão doentes, com gripe forte e, mesmo que desejem terminar o curso, não podem vir. Também é realmente difícil para quem não vem todos os dias entender os módulos mesmo procurando um espaço separado para trabalhar com eles | R103: Gostaríamos de ter os baralhos de recursos para melhorar o jogo de desafios | S103: Estratégias para que todos estejam atualizados, mesmo para as pessoas que não participa de todas as aulas. Tempo extra para eles e para nós dedicarmos | T103: Eles adoraram os futuros exponenciais, especialmente porque eles conseguiram entendê-lo. Eles também adoravam fechar o módulo de território que consideravam ter muitas atividades | U103: Muito satisfeito | V103: 5 | W103: https://drive.google.com/open?id=1YeIAcIFcXV_ZG_KWoAYq5YLWQEflnQsl | X103: =IF(U103=[1]base!$C$3,[1]base!$D$3,IF('[1]Respostas ao formulário 1'!U101=[1]base!$C$4,[1]base!$D$4,IF('[1]Respostas ao formulário 1'!U101=[1]base!$C$5,[1]base!$D$5,IF('[1]Respostas ao formulário 1'!U101=[1]base!$C$6,[1]base!$D$6,IF('[1]Respostas ao formulário 1'!U101=[1]base!$C$7,[1]base!$D$7))))) -> 1
A104: 2019-09-11T13:00:36.243 | B104: Fabíola Wickert | C104: Luz Belisário | D104: Direitos e Deveres | E104: Tarde | F104: Sala 50 Centro de Ciências Humanas - UFRR | G104: 2019-08-31 | H104: 04:00:00 | I104: 13 | J104: 11 | K104: https://drive.google.com/open?id=11TucI8BGN0ba6T6swIdimL7UNFYOf-sI | L104: Foi suficiente | N104: Sim | O104: Foram tratados os módulos 3 e 4 do Eixo de Direitos, seguindo a metodologia proposta, abordando-se todos os temas e realizando-se todas as atividades previstas. | Q104: Foi verificado que muitos cursistas não tinham condições de se alimentarem durante o intervalo entre as atividades o que compromete o rendimento dos cursistas e o aproveitamento do conteúdo. | R104: Informar previamente aos participantes a necessidade de se precaverem quanto à alimentação. | S104: Sem observações | T104: Os participantes aceitaram bem os temas, tendo sido percebidas diferenças culturais quanto à percepção de direitos e deveres, especialmente quanto à proteção legal de minorias, verificando-se pelos comentários dos participantes, a percepção de diferenças culturais. | U104: Muito satisfeito | V104: 5 | W104: https://drive.google.com/open?id=139l2q_s50J16VEq3kwd0J2IjI9JIVdOZZufG-FChZNE | X104: =IF(U104=[1]base!$C$3,[1]base!$D$3,IF('[1]Respostas ao formulário 1'!U102=[1]base!$C$4,[1]base!$D$4,IF('[1]Respostas ao formulário 1'!U102=[1]base!$C$5,[1]base!$D$5,IF('[1]Respostas ao formulário 1'!U102=[1]base!$C$6,[1]base!$D$6,IF('[1]Respostas ao formulário 1'!U102=[1]base!$C$7,[1]base!$D$7))))) -> 1
A105: 2019-09-11T13:36:57.594 | B105: Fabíola Wickert | C105: Cíntia Dias | D105: Território | E105: Tarde | F105: Sala 05 Instituto Insikiran | G105: 2019-09-02 | H105: 04:00:00 | I105: 07 | J105: 07 | K105: https://drive.google.com/open?id=1bbrUUv9RVjNbsTSY3WZfrRqLyc4T8T_y | L105: Foi suficiente | M105: O tempo foi suficiente pois as atividades foram adaptadas | N105: Sim | O105: Realizado módulo 2.2 iniciando com a criação de um autorretrato do grupo de acordo com a proposta, e em seguida foi realizada atividade "Museu do Refugiado" discutindo ao final, como as ações culturais favorecem a valorização das pessoas e sua cultura, permitindo a percepção de mais aspectos culturais pelos participantes. Finalizou-se o módulo com a inclusão de elementos ao território criado pelo grupo no módulo 2.1 atividade Cartografia. Trabalhou-se o módulo 2.3 - Portunhol, a partir da anotação de cognatos e falsos cognatos com a discussão do significado das palavras nos dois idiomas, analisando semelhanças entre os idiomas e a comunicabilidade a partir da percepção de semelhanças entre os idiomas. Foi realizada atividade "HQ" e sua exposição. Ao final, foi discutido uso de tecnologia e a criação de novas relações econômicas. | Q105: Recebi a turma com conteúdo atrasado e foi necessário adaptar as atividades para concluir o curso no período definido; por tratar-se de um grupo pequeno, atrasos dos participantes exigiram um pouco mais de adequação da metodologia para alcançar todos os temas com profundidade, além do atraso do conteúdo, relatado que se iniciou desde o primeiro dia do curso. Foi possível adiantar os conteúdos mas não da maneira ideal (o tempo para realização das atividades foi reduzido). | R105: Organizar melhor os espaços e dividir os participantes desde o primeiro dia de acordo com o horário definido, disponibilizar todo o material (incluindo material digital/virtual antes do início das atividades). | S105: Sem observações | T105: O grupo aceitou bem os temas. | U105: Satisfeito | V105: 5 | W105: https://drive.google.com/open?id=1IbwyLA3eq1pIST9XNZL0rBeXAY5IlMaigRti2LShaUI | X105: =IF(U105=[1]base!$C$3,[1]base!$D$3,IF('[1]Respostas ao formulário 1'!U103=[1]base!$C$4,[1]base!$D$4,IF('[1]Respostas ao formulário 1'!U103=[1]base!$C$5,[1]base!$D$5,IF('[1]Respostas ao formulário 1'!U103=[1]base!$C$6,[1]base!$D$6,IF('[1]Respostas ao formulário 1'!U103=[1]base!$C$7,[1]base!$D$7))))) -> 0.75
A106: 2019-09-11T13:58:15.014 | B106: Fabíola Wickert | C106: Cíntia Dias | D106: Identidade | E106: Tarde | F106: Sala 05 Instituto Insikiran - UFRR | G106: 2019-09-03 | H106: 04:00:00 | I106: 7 | J106: 7 | K106: https://drive.google.com/open?id=1CUT7trByT8WqLPItsvnzAF6U3jdWWW1q | L106: Foi suficiente | N106: Sim | O106: Retomada a discussão sobre o uso de tecnologia, alcançando uma análise sobre os aspectos do empreendedorismo e mercado de trabalho no Brasil e na Venezuela. Realizado o mapeamento do território, foram analisadas possibilidades de inserção dos participantes no mercado local, a partir de seus talentos e competências, pontuando como realizar mapeamento territorial em qualquer lugar. Finalizou-se o módulo com a atividade do painel de talentos, evidenciando que todos possuem habilidades e competências e que possíveis parcerias permitem o alcance de vários objetivos, inclusive a partir da troca de conhecimento. Foi servido lanche com comidas típicas do Brasil e da Venezuela, tendo os participantes relado quais comidas típicas dos dois países já conheciam e atribuindo-lhes classificação: mais gostosa, mais familiar, mais diferente e menos gostosa; a seguir, discutiu-se como a culinária permite conhecer melhor uma cultura, caracterizando-se como uma expressão da identidade territorial, e ainda, como a culinária pode contribuir pára a integração de migrantes, colocação no mercado de trabalho e geração de renda, considerando ainda a possibilidade de unir sabores tradicionais das duas culturas. Foi iniciado o módulo 2.6 com a atividade inicial "Imagem e Ação", discutindo-se os fenômenos de globalização e glocalização. | Q106: A dinâmica das atividades foi adaptada para concluir os temas no prazo estabelecido, iniciei o acompanhamento do grupo em 02/09. | R106: Sem observações | S106: Sem observações | T106: OO grupo aceitou bem os temas apresentados. | U106: Satisfeito | V106: 5 | W106: https://drive.google.com/open?id=1wZRT7k4Kvkv1JpRLcjrarB_NCxH2JCv89JUk6ja01A4 | X106: =IF(U106=[1]base!$C$3,[1]base!$D$3,IF('[1]Respostas ao formulário 1'!U104=[1]base!$C$4,[1]base!$D$4,IF('[1]Respostas ao formulário 1'!U104=[1]base!$C$5,[1]base!$D$5,IF('[1]Respostas ao formulário 1'!U104=[1]base!$C$6,[1]base!$D$6,IF('[1]Respostas ao formulário 1'!U104=[1]base!$C$7,[1]base!$D$7))))) -> 0.75
A107: 2019-09-11T14:16:48.597 | B107: Fabíola Wickert | C107: Cíntia Dias | D107: Território | E107: Tarde | F107: Sala 05 Instituto Insikiran - UFRR | G107: 2019-09-04 | H107: 04:00:00 | I107: 7 | J107: 6 | K107: https://drive.google.com/open?id=10gSzmyUNIJCb-iscJfJ17-_7igN2m_af | L107: Não foi suficiente | M107: A turma estava com conteúdo atrasado | N107: Sim | O107: Realizado debate entre semelhanças e diferenças entre as culturas dos participantes e da comunidade onde vivem, discutindo-se estratégias de integração, contemplando durante a discussão, o preenchimento mapa de empatia da comunidade e em seguida, do plano com estratégias de integração, finalizando-se o módulo 2.6. Foi realizada atividade de aquecimento do módulo 3.1, discutindo-se em seguida, a certeza de mudanças, foco, aprendizagem com os erros e transformação. A atividade central foi adaptada, anotando-se desafios em papéis e recursos no quadro, e após explicar os futuros possíveis, os participantes tiveram que encontrar soluções para os desafios que eram lidos individualmente, recebendo a indicação de um recurso escrito no quadro para utilizar, refletindo-se sobre a aprendizagem com soluções do passado e do presente para o futuro, aspectos/ elementos de uma solução e a maneira como os recursos disponíveis impactam na possibilidade de uma ideia ir para frente. Foi colocado um arranjo improvisado em um copo de iogurte reutilizado, flores, folhas de plantas para discutir a percepção da realidade e como ela é influenciada. Seguindo, os participantes anotaram os futuros possíveis para seus projetos em uma folha de papel e realizaram o desafio de criar uma engenhoca que fosse capaz de se locomover sozinha, usando materiais recicláveis. Após a apresentação da engenhoca, foi discutido com o grupo sobre os sentimentos e pensamentos que tiveram durante a atividade, pontuando-se que é necessário agir para que o futuro seja como desejado, analisando-se como as crenças e comportamentos ampliam ou reduzem as possibilidades de sucesso. Terminou-se o encontro com a escrita de palavras no mural de celebração. | R107: Sem observações | S107: Sem observações | T107: Os participantes aceitaram bem os temas. | U107: Satisfeito | V107: 5 | W107: https://drive.google.com/open?id=1lWF_oJ5OYTthF9OJ0mO96ycF6TrMSleXOnDZkGx0X5A | X107: =IF(U107=[1]base!$C$3,[1]base!$D$3,IF('[1]Respostas ao formulário 1'!U105=[1]base!$C$4,[1]base!$D$4,IF('[1]Respostas ao formulário 1'!U105=[1]base!$C$5,[1]base!$D$5,IF('[1]Respostas ao formulário 1'!U105=[1]base!$C$6,[1]base!$D$6,IF('[1]Respostas ao formulário 1'!U105=[1]base!$C$7,[1]base!$D$7))))) -> 0.75
A108: 2019-09-11T14:20:14.911 | B108: Ângelo | C108: Amanda | D108: Futuro | E108: Manhã | F108: CCLA | G108: 2019-09-11 | H108: 08:00:00 | I108: 18 | J108: 13 | K108: https://drive.google.com/open?id=1yb0bfVDPZZWEX7Nz3WpEVzK0L2A8wy3B | L108: Foi suficiente | N108: Sim | O108: Hoje falamos sobre o futuro acomodado e o possível, devido às dinâmicas das atividades foi um tempo mto refletivo e bem apropriado, pois percebemos na dança o qto a turma está alinhada no entendimento, além da forte participação. | P108: As atividades como um todo | Q108: O tempo pra não ser rápido demais e poder aproveitar mais | R108: Os recursos visuais, pois nas atividades pedem pra passar vídeo e sem o recurso fica bem disperso | S108: O tempo pra não ser rápida demais | T108: Excelente, pois a cada do tem-se descoberto mais que eles podem. | U108: Muito satisfeito | V108: 5 | W108: https://drive.google.com/open?id=16qZGLZj9EodNSYVkh2LUtQyYfUl0Xmun | X108: =IF(U108=[1]base!$C$3,[1]base!$D$3,IF('[1]Respostas ao formulário 1'!U106=[1]base!$C$4,[1]base!$D$4,IF('[1]Respostas ao formulário 1'!U106=[1]base!$C$5,[1]base!$D$5,IF('[1]Respostas ao formulário 1'!U106=[1]base!$C$6,[1]base!$D$6,IF('[1]Respostas ao formulário 1'!U106=[1]base!$C$7,[1]base!$D$7))))) -> 1
A109: 2019-09-11T14:30:10.697 | B109: Fabíola Wickert | C109: Cíntia Dias | D109: Futuro | E109: Tarde | F109: Sala 05 instituto Insikiran - UFRR | G109: 2019-09-05 | H109: 04:00:00 | I109: 7 | J109: 6 | K109: https://drive.google.com/open?id=1nVXf9g9-U1VKbom6Z0rVpBBejNFLbnwz | L109: Foi suficiente | N109: Sim | O109: Iniciou-se o encontro com as atividades "Confiar e Voar" e " Círculo dos Sonhos" e anotando novas palavras no mural de celebração (módulo 3.3). Seguiu-se com a atividade "Futuro Sistêmico" e foi então preenchido o canvas pessoal individualmente a partir da discussão sobre a possibilidade de transformar um sonho individual em coletivo e de ajuda entre os participantes (módulo 3.4). Foi realizada a atividade central do módulo 3.5, analisando os objetivos de cada participante, pedindo que elaborassem um plano de ação para alcançarem seus objetivos. Finalizou-se o encontro com o compartilhamento de sentimentos e percepções e registro de mais palavras no mural de celebração. | R109: Sem observações | S109: Sem observações | T109: O grupo aceitou bem os temas. | U109: Satisfeito | V109: 5 | W109: https://drive.google.com/open?id=1A9FC2IqCu0nH106Wx7kOTE7pciCkXF7A0Mdzgzmxrhs | X109: =IF(U109=[1]base!$C$3,[1]base!$D$3,IF('[1]Respostas ao formulário 1'!U107=[1]base!$C$4,[1]base!$D$4,IF('[1]Respostas ao formulário 1'!U107=[1]base!$C$5,[1]base!$D$5,IF('[1]Respostas ao formulário 1'!U107=[1]base!$C$6,[1]base!$D$6,IF('[1]Respostas ao formulário 1'!U107=[1]base!$C$7,[1]base!$D$7))))) -> 0.75
A110: 2019-09-11T14:36:34.165 | B110: Fabíola Wickert | C110: Cíntia Dias | D110: Futuro | E110: Tarde | F110: Sala 05 Instituto Insikiran - UFRR | G110: 2019-09-06 | H110: 04:00:00 | I110: 7 | J110: 7 | K110: https://drive.google.com/open?id=1WAr4cW2r7ad8985xTUGlBLjyLzha1kDC | L110: Foi suficiente | N110: Sim | O110: Foi realizada atividade inicial e preenchimento do GPS mental, realizando-se a seguir, uma análise de todo o processo, foi concedido tempo para revisar o plano para o futuro e avaliação (em questionário). Para finalizar, foi servido lanche levado pelo grupo e pelas facilitadoras e feito um breve relato pelos participantes. | P110: Os participantes comentaram durante o preenchimento do formulário, que perceberam mudanças nas próprias respostas, tendo sido explicado que faz parte do processo e que mostra a evolução de cada um. | R110: Sem observações | S110: Sem observações | T110: Os participantes aceitaram bem os temas. | U110: Satisfeito | V110: 5 | W110: https://drive.google.com/open?id=1R24762GFdhJFF0VC6RU3M1-S0t1lUij-oiPWq4YJ_Yk | X110: =IF(U110=[1]base!$C$3,[1]base!$D$3,IF('[1]Respostas ao formulário 1'!U108=[1]base!$C$4,[1]base!$D$4,IF('[1]Respostas ao formulário 1'!U108=[1]base!$C$5,[1]base!$D$5,IF('[1]Respostas ao formulário 1'!U108=[1]base!$C$6,[1]base!$D$6,IF('[1]Respostas ao formulário 1'!U108=[1]base!$C$7,[1]base!$D$7))))) -> 0.75
A111: 2019-09-11T19:22:41.875 | B111: Angelo | C111: Amanda | D111: Futuro | E111: Manhã | F111: CCLA 143 | G111: 2019-09-11 | H111: 08:12:00 | I111: 27 | J111: 13 | K111: https://drive.google.com/open?id=13l2AA9m5Wnya_axopn5ep4I-PxoecKSu | L111: Foi suficiente | N111: Sim | O111: Foi dado o módulo 3.2 com as diferentes dínamicas sobre percepção (flor no copo, vídeo dos passes de bola) logo foi feita a dinâmica dos futuros possiveis, os presentes fizeram brinquedos com sucata. Continuamos com o futuro possível iniciou com confiar e voar, continuamos com o círculo dos sonhos a qual foi emotiva e houve choros. Finalizamos com a celebração do dia. | R111: Dar uma opção 2 caso não se poda assistir o video | S111: Postura e linguagem corporal | T111: Boa | U111: Satisfeito | V111: 5 | W111: https://drive.google.com/open?id=1Zl1H10WXD4Q-Lr9tB-TwEyOTSy0wongu | X111: =IF(U111=[1]base!$C$3,[1]base!$D$3,IF('[1]Respostas ao formulário 1'!U109=[1]base!$C$4,[1]base!$D$4,IF('[1]Respostas ao formulário 1'!U109=[1]base!$C$5,[1]base!$D$5,IF('[1]Respostas ao formulário 1'!U109=[1]base!$C$6,[1]base!$D$6,IF('[1]Respostas ao formulário 1'!U109=[1]base!$C$7,[1]base!$D$7))))) -> 0.75
A112: 2019-09-11T22:45:37.727 | B112: Maria Gabriela Villalba | C112: Maria Gabriela Villalba | D112: Território | E112: Manhã | F112: CCLA 140 | G112: 2019-08-31 | H112: 08:00:00 | I112: 21 | J112: 18 | K112: https://drive.google.com/open?id=1Z73CH7OZEhdkKuNgm-VgdKJl_O7alUW3, https://drive.google.com/open?id=1vCQL7Yh3l92OocJM-vXP4xIk-dwYOR02 | L112: Foi suficiente | N112: Sim | O112: A manhã começou com a UE, COMUNIDADES E OPORTUNIDADES, para continuar com o Eixo 2. Esta etapa foi muito importante para os alunos, porque eles não tiveram a oportunidade de falar e se expressar, até agora eles não tiveram tempo de integrar como grupo, a primeira semana foi rígida, rigorosa, algumas dinâmicas mudaram, eles pararam de fazer dinâmicas que eram importantes para eles, mais a evolução deste dia os preparou para a próxima mudança de treinador. | P112: Eles conseguiram entender o território e as oportunidades que ele oferece, enraizadas em seus talentos, começaram a desenvolver seus objetivos. | Q112: Este módulo foi muito bem-sucedido para eles, pois eles não lidam com muita informação sobre onde estão morando, especialmente aqueles que estão em abrigos. Não havia muitas dúvidas porque estavam descobrindo algo novo em si mesmas, apenas uma pessoa teve dificuldade em se adaptar ao trabalho em equipe, as outras foram entregues ao treinamento realizando cada atividade com entusiasmo. No formulário de presença, ocorreu um erro numérico em relação ao número do quarto, é 140 e não 142. E a pessoa que preencheu sua assinatura adicionando outra barra para o número 16, não percebeu que estava do outro lado da folha, este escreveu seu nome duas vezes. O nome dessa pessoa é Elyoris Moreno e, da mesma forma, o número de assistências daquele dia foi passado correitamente. | R112: Na parte teórica deste módulo, é perfeito, se possível, modificar algumas dinâmicas para melhorar a percepção do que você precisa expor sobre seu eu interno. E talvez vocês possam mudar um pouco a sequência de as dinamicas. | S112: melhorar meu portugues | T112: Optimo | U112: Muito satisfeito | V112: 5 | W112: https://drive.google.com/open?id=1GSMcs6xTSkGLY1RKae1FspW7PzZ1P6Ai | X112: =IF(U112=[1]base!$C$3,[1]base!$D$3,IF('[1]Respostas ao formulário 1'!U110=[1]base!$C$4,[1]base!$D$4,IF('[1]Respostas ao formulário 1'!U110=[1]base!$C$5,[1]base!$D$5,IF('[1]Respostas ao formulário 1'!U110=[1]base!$C$6,[1]base!$D$6,IF('[1]Respostas ao formulário 1'!U110=[1]base!$C$7,[1]base!$D$7))))) -> 1
A113: 2019-09-12T00:48:04.220 | B113: DOMINGO LUIS ANTONIO GONZALEZ PETOT | C113: MARIA GABRIELA VILLALBA | D113: Identidade | E113: Tarde | F113: SALA 716 BLOCO VII UFRR | G113: 2019-09-06 | H113: 13:00:00 | I113: 16 | J113: 9 | K113: https://drive.google.com/open?id=10i5cgSfVvUuYXVJYRgpaByihO3gwB0Fs | L113: Não foi suficiente | M113: Demoraram muito no exercício de cartografia porque todos moravam em locais diferentes, escolher um área foi complicado, também aconteceu que tem alunos pouco participativos o qual faz demorado o avanço dos trabalhos na sala. | N113: Sim | O113: A oficina foi satisfatória, mas também complicada. No módulos EU, COMUNIDADES E OPORTUNIDADES, resultou surpreendente no aquecimento as dificuldades apresentadas por todos para criar um título de jornal (ainda tendo pessoas formadas em letras e idiomas), praticamente ao final o facilitador teve que escrever no quadro a adaptação na escrita do jornalista de como ficariam as situações que eles colocaram. Se acredita que a dificuldade pode ser tido influenciada por causa apatia e passividade de várias pessoas que faz o mínimo esforço nas atividades. Da atividade central foi um poco complicada para a turma, mas interessante, experimentaram dificuldades em identificar adequadamente "o que eu ofereço", "o que a comunidade me oferece" e o match de "oportunidades", porem, resultou muito bom como uma das primeiras aproximações práticas de suas ideias de empreendedorismo (ja várias vezes tenham cobrado um pouco sobre ter conteúdo mais próximo aos empreendimentos). Se fechou o Eixo IDENTIDADE e iniciou-se o Eixo do TERRITÓRIO, com o módulo 2.1 TERRITÓRIO: AS FRONTEIRAS QUE NOS UNEM, se iniciou a Cartografia o qual ficou incompleto. | P113: Iniciar as primeiras aproximações relacionadas com o empreendimento identificando "oportunidades" segundo o que eu ofereço e as necessidades da comunidade. | Q113: Dificuldades de vários alunos para se enfocar nas indicações dos exercícios. | R113: Ter a versão em português do poema de Pablo Neruda "Pequeña América", também a atividade de "CARTOGRAFIA" resultou complicada trabalhar-o em equipes, pois todos moram em locais diferentes motivo pelo qual tem que escolher alguma área de apenas um dos participantes. | S113: Meu portunhol. | T113: Foi bem recebedo, mas a contextualização da importância explicada pelo facilitador foi necessária. | U113: Indiferente | V113: 4 | W113: https://drive.google.com/open?id=19t4a4w8z4h_3dzju0fmCNBetOe7pskKA | X113: =IF(U113=[1]base!$C$3,[1]base!$D$3,IF('[1]Respostas ao formulário 1'!U111=[1]base!$C$4,[1]base!$D$4,IF('[1]Respostas ao formulário 1'!U111=[1]base!$C$5,[1]base!$D$5,IF('[1]Respostas ao formulário 1'!U111=[1]base!$C$6,[1]base!$D$6,IF('[1]Respostas ao formulário 1'!U111=[1]base!$C$7,[1]base!$D$7))))) -> 0.5
A114: 2019-09-12T07:00:57.103 | B114: Adriana Duarte | C114: Luz Belisario | D114: Futuro | E114: Noite | F114: Inkisiran Sala 5 - UFRR | G114: 2019-09-11 | H114: 17:00:00 | I114: 13 | J114: 11 | K114: https://drive.google.com/open?id=1OnBh1mOuDhtX20Fq3adNuzX5wlmHckQD | L114: Foi suficiente | N114: Sim | O114: Compreender o futuro está sendo um processo passo a passo. A experiência de construir o carro, se deixar levar e a dinâmica em círculos deu-lhes muita força, graça e foco. A turma é junta e fica feliz em ver, compartilhar e fazer parceria. Eles encheram seu manual com perseverança | P114: Eles começam a ser claros sobre o que querem e como obtê-lo | Q114: Dois estudantes que nunca desapareceram e agora um está com gripe e outro com conjuntivite (eles enviaram seu descanso médico). | R114: Nestes últimos capítulos, o manual do professor possui muitas informações que o manual do aluno não possui (Seção: Saiba mais). Acreditamos que é muito importante que essas informações estejam no manual do aluno, porque a aula é muito rápida e não lhes dá tempo para assimilar tudoMelhorar o uso dos tempos | S114: Melhorar o uso dos tempos | T114: Futuros exponenciais não são tão simples para eles, mas adoram o conteúdo desta última parte | U114: Indiferente | V114: 5 | W114: https://drive.google.com/open?id=1mlCoNP9ziNBssv1nWEuotWL2NdMAIHPr | X114: =IF(U114=[1]base!$C$3,[1]base!$D$3,IF('[1]Respostas ao formulário 1'!U112=[1]base!$C$4,[1]base!$D$4,IF('[1]Respostas ao formulário 1'!U112=[1]base!$C$5,[1]base!$D$5,IF('[1]Respostas ao formulário 1'!U112=[1]base!$C$6,[1]base!$D$6,IF('[1]Respostas ao formulário 1'!U112=[1]base!$C$7,[1]base!$D$7))))) -> 0.5
A115: 2019-09-12T07:02:18.732 | B115: Jose Belisario | C115: Fabiola Wickert | D115: Futuro | E115: Noite | F115: Leducarr 117 | G115: 2019-09-11 | H115: 17:21:00 | I115: 5 | J115: 5 | K115: https://drive.google.com/open?id=1wQ-OlHWbQZ_KKZBysoJDI5y2pnQvqWH8 | L115: Foi suficiente | N115: Sim | O115: Se continuo o eixo futuro até o módulo 3.5 e como ficou um tempo se aproveito de retomar a atividade do módulo 4 do primeiro eixo dos direitos e cultura porque os participantes não fizeram essa atividade | P115: Os participantes estão mais participativos e prestos para dinámicas en grupales | R115: Todo informações foi dada de forma certa | S115: Foi um bom trabalho | T115: Gostaram da atividade já que os prepara para o final e a apresentação de seu plano de vida | U115: Satisfeito | V115: 5 | W115: https://drive.google.com/open?id=1QXyJVK_9AUaIhVQ4WWZVoHTrD6uk7-6O | X115: =IF(U115=[1]base!$C$3,[1]base!$D$3,IF('[1]Respostas ao formulário 1'!U113=[1]base!$C$4,[1]base!$D$4,IF('[1]Respostas ao formulário 1'!U113=[1]base!$C$5,[1]base!$D$5,IF('[1]Respostas ao formulário 1'!U113=[1]base!$C$6,[1]base!$D$6,IF('[1]Respostas ao formulário 1'!U113=[1]base!$C$7,[1]base!$D$7))))) -> 0.75
A116: 2019-09-12T11:48:25.105 | B116: DOMINGO LUIS ANTONIO GONZALEZ PETOT | C116: MARÍA GABRIELA VILLALBA | D116: Identidade | E116: Tarde | F116: SALA 716 BLOCO VII UFRR | G116: 2019-09-05 | H116: 13:00:00 | I116: 16 | J116: 6 | K116: https://drive.google.com/open?id=1u9WfXVq1YA15t1qE-S1RbZSrRIYgECNm | L116: Foi suficiente | N116: Sim | O116: Foi uma oficina muito divertida com a atividade de NOSSA VIDA E UM FILME, as pessoas conseguíram se integrar e desenvolver uma dramatização ficada na questão migratória. Também foi feita a a dinâmica do módulo NOSSA CULTURA NOSSA IDENTIDADE onde foi dividido venezuelanos e brasileiros em duas equipes, a equipe de venezuelanos conseguiu colocar muitos elementos de identidade para que futuras gerações saibam o que era esse pais e seus valores, os brasileiros também conseguiram, mas ficou mais pobre em elementos. | P116: Divertido, jovial. | Q116: Alguns participantes são calados ou tímidos nas atividades. | R116: Nada | S116: Alguma forma de inspirar mais a participantes apáticos. | T116: Muito bom, só as vezes uma pessoa tem inquietude de inciar o plano de negócios. | U116: Muito satisfeito | V116: 5 | W116: https://drive.google.com/open?id=1y851C1_cn61OQi-2d74JjkZWDiw62-b7 | X116: =IF(U116=[1]base!$C$3,[1]base!$D$3,IF('[1]Respostas ao formulário 1'!U114=[1]base!$C$4,[1]base!$D$4,IF('[1]Respostas ao formulário 1'!U114=[1]base!$C$5,[1]base!$D$5,IF('[1]Respostas ao formulário 1'!U114=[1]base!$C$6,[1]base!$D$6,IF('[1]Respostas ao formulário 1'!U114=[1]base!$C$7,[1]base!$D$7))))) -> 1
A117: 2019-09-12T13:13:54.614 | B117: Ângelo | C117: Amanda | D117: Futuro | E117: Manhã | F117: CCLA | G117: 2019-09-12 | H117: 08:00:00 | I117: 18 | J117: 16 | K117: https://drive.google.com/open?id=14WTSwq_neKvMHb6XyqvEbOPXQVTcRVn_ | L117: Foi suficiente | N117: Sim | O117: Dando continuidade ao eixo futuro falamos do módulo 3.4 e 3.5, foi mto bom o que conseguiram extrair de si mesmo através das dinâmicas e reflexões, principalmente sobre o outro, como pode ser colaborativo mesmo sendo crítico para a.construção do projeto pessoal. | P117: As dinâmicas e as reflexões | R117: Os recursos para as atividades ficarem como deve de acordo com o Manual | S117: Hoje foi 1 dia perfeito, então pra melhorar somente agindo melhor que hoje | T117: Maravilhosa. | U117: Muito satisfeito | V117: 5 | W117: https://drive.google.com/open?id=1be3ANHrP758Jf26-suOzMZTmZjwrRIzM | X117: =IF(U117=[1]base!$C$3,[1]base!$D$3,IF('[1]Respostas ao formulário 1'!U115=[1]base!$C$4,[1]base!$D$4,IF('[1]Respostas ao formulário 1'!U115=[1]base!$C$5,[1]base!$D$5,IF('[1]Respostas ao formulário 1'!U115=[1]base!$C$6,[1]base!$D$6,IF('[1]Respostas ao formulário 1'!U115=[1]base!$C$7,[1]base!$D$7))))) -> 1
A118: 2019-09-12T16:09:35.186 | B118: Angelo | C118: Amanda | D118: Futuro | E118: Manhã | F118: CCLA | G118: 2019-09-12 | H118: 08:12:00 | I118: 27 | J118: 16 | K118: https://drive.google.com/open?id=1f5cGx9sAA-pRIrM9ydHdRdCPlBENW3yg | L118: Foi suficiente | N118: Sim | O118: A aula iniciou com o aquecimento "futuro sistêmico", continuamos com "futuros conectados". Depois o aquecimento "juntos e tecnológicos a gente vai" depois a atividade central 1 "futuros possíveis envolvendo as TICs", a atividade central 2. Por último a atividade final "muro de celebração". | P118: Aula participativa, motivada, alegre. | R118: A ofina foi ótima. Só faltaram recursos didáticos. | S118: Ir menos apressado, falar mais ousadamente. | T118: Ótima | U118: Muito satisfeito | V118: 5 | W118: https://drive.google.com/open?id=1ndF_UUFkhm1VgvA-Ptqlsftf1MopSAi_ | X118: =IF(U118=[1]base!$C$3,[1]base!$D$3,IF('[1]Respostas ao formulário 1'!U116=[1]base!$C$4,[1]base!$D$4,IF('[1]Respostas ao formulário 1'!U116=[1]base!$C$5,[1]base!$D$5,IF('[1]Respostas ao formulário 1'!U116=[1]base!$C$6,[1]base!$D$6,IF('[1]Respostas ao formulário 1'!U116=[1]base!$C$7,[1]base!$D$7))))) -> 1
A119: 2019-09-13T12:24:56.863 | B119: DOMINGO LUIS ANTONIO GONZALEZ PETOT | C119: MARIA GABRIELA VILLALBA | D119: Cultura e Costumes | E119: Tarde | F119: SALA 716 BLOCO VII UFRR | G119: 2019-09-02 | H119: 13:00:00 | I119: 16 | J119: 12 | K119: https://drive.google.com/open?id=1ahV_W35huIW9BQx1Pktf1KryqsBLjfN2 | L119: Foi suficiente | N119: Sim | O119: Foi uma oficina um pouco esquisita porque houve uma mudança repentina, o grupo estava com uma facilitadora brasileira que logo foi mudada para uma outra turma, iniciou a aula com ela e minutos depois aconteceu a chegada da gente. Isso gerou um pouco de inconformidade em algumas pessoas da turma, porem, o conteúdo foi bem desenvolvido. | P119: Se conseguiu desenvolver os módulos sem problemas. | Q119: Mudanças de ultimo minuto dos facilitadores. | R119: Planejar melhor quais facilitadores vão subministrar a aula para evitar mudanças de ultimo minuto, foi muito confuso tanto para os cursistas quanto para os facilitadores. | S119: Desenvolver uma aula mais dinâmica (ainda), o pessoal da tarde aparenta estar com menos energia do que de manha. Ter café ajuda um pouco para acordar aos cursistas. | T119: Tudo bem com o tema. | U119: Satisfeito | V119: 5 | W119: https://drive.google.com/open?id=1qDGwSGsKaFwvBG4FmD02KhRyTjpvoJ55 | X119: =IF(U119=[1]base!$C$3,[1]base!$D$3,IF('[1]Respostas ao formulário 1'!U117=[1]base!$C$4,[1]base!$D$4,IF('[1]Respostas ao formulário 1'!U117=[1]base!$C$5,[1]base!$D$5,IF('[1]Respostas ao formulário 1'!U117=[1]base!$C$6,[1]base!$D$6,IF('[1]Respostas ao formulário 1'!U117=[1]base!$C$7,[1]base!$D$7))))) -> 0.75
A120: 2019-09-13T12:34:08.999 | B120: DOMINGO LUIS ANTONIO GONZALEZ PETOT | C120: MARIA GABRIELA VILLALBA | D120: Identidade | E120: Tarde | F120: SALA 716 BLOCO VII UFRR | G120: 2019-09-03 | H120: 13:00:00 | I120: 16 | J120: 8 | K120: https://drive.google.com/open?id=1eMA7h4MUnR_oOWO2pWkJhQErKeuODnEC | L120: Foi suficiente | N120: Sim | O120: A oficina foi muito boa com o início do arvore da vida e depois o bosque. Foi um momento muito profundo para vários dos cursistas, também emotivo, de lembrar experiencias passadas. Ressaltou uma experiencia muito forte de uma cursistas que cuidava crianças com câncer, uma delas faleceu, ela teve que poer as roupas porque ninguém da família tomou essa responsabilidades, soltou algumas lágrimas. | P120: A atividade tocou a fibra de vários cursistas. | Q120: Alguns esqueceram colocar alguns elementos como os insetos, falta de atenção das instruções. | R120: Da aula subministrada tudo estava coberto. | S120: Fazer enfases nas instruções, repetir mais um pouco. | T120: Muito boa. | U120: Muito satisfeito | V120: 5 | W120: https://drive.google.com/open?id=10GAxk16jbXC04j4U3uDceNY3kgH9TuGr | X120: =IF(U120=[1]base!$C$3,[1]base!$D$3,IF('[1]Respostas ao formulário 1'!U118=[1]base!$C$4,[1]base!$D$4,IF('[1]Respostas ao formulário 1'!U118=[1]base!$C$5,[1]base!$D$5,IF('[1]Respostas ao formulário 1'!U118=[1]base!$C$6,[1]base!$D$6,IF('[1]Respostas ao formulário 1'!U118=[1]base!$C$7,[1]base!$D$7))))) -> 1
A121: 2019-09-13T12:42:24.916 | B121: DOMINGO LUIS ANTONIO GONZALEZ PETOT | C121: MARIA GABRIELA VILLALBA | D121: Identidade | E121: Tarde | F121: SALA 716 BLOCO VII UFRR | G121: 2019-09-04 | H121: 13:00:00 | I121: 16 | J121: 10 | K121: https://drive.google.com/open?id=1yn1_nBV-OGXKnVjnDg9lFDZBalpVToA- | L121: Foi suficiente | N121: Sim | O121: As oficina que incluiu os modulo das MINHA VIDA É UM FILME e NOSSA VIDA E UM FILME resultou muito boa, no início foi lenta quando os facilitadores preguntaram sobre os filmes que tinham assistidos, quase ninguém lembrava, porem, mais pra frente entenderam a teoria e fizeram muito bem tanto a atividade individual quanto grupal. A dramatização foi muito divertida. | P121: Abrasaram e entenderam as atividades. | Q121: Presentam algumas dificuldades para se enfocar algumas pessoas. | R121: Tudo bem. | S121: Nada em especial | T121: Ótima | U121: Muito satisfeito | V121: 5 | W121: https://drive.google.com/open?id=1oYAWd5UFLuuUgcPYwTRGjtdq95SUXAac | X121: =IF(U121=[1]base!$C$3,[1]base!$D$3,IF('[1]Respostas ao formulário 1'!U119=[1]base!$C$4,[1]base!$D$4,IF('[1]Respostas ao formulário 1'!U119=[1]base!$C$5,[1]base!$D$5,IF('[1]Respostas ao formulário 1'!U119=[1]base!$C$6,[1]base!$D$6,IF('[1]Respostas ao formulário 1'!U119=[1]base!$C$7,[1]base!$D$7))))) -> 1
A122: 2019-09-13T13:21:48.513 | B122: Ângelo | C122: Amanda | D122: Futuro | E122: Manhã | F122: CCLA | G122: 2019-09-13 | H122: 08:00:00 | I122: 18 | J122: 16 | K122: https://drive.google.com/open?id=1Z5ESLI565yRE3kiK74LcbdQurTH3z9bg | L122: Foi suficiente | N122: Sim | O122: Fechamento do curso, com a grande celebração, todas as atividades realizadas com êxito, turma participativa, colaborativa, empenhada, então tivemos facilidade na condução e encerramos celebrando o futuro que nos espera. | P122: Poder celebrar cada etapa | R122: Faltou 1 formulário para preenchimento, então pra facilitar era mais fácil receber um dia antes, pois chegou na hora que estávamos em atividade e o formador 1 não teve tempo de contar na hora. | S122: Ser melhor sempre | T122: Excelente | U122: Muito satisfeito | V122: 5 | W122: https://drive.google.com/open?id=1YGfRPVQZBebU73sgXSWMgGp_ajQzn1N0 | X122: =IF(U122=[1]base!$C$3,[1]base!$D$3,IF('[1]Respostas ao formulário 1'!U120=[1]base!$C$4,[1]base!$D$4,IF('[1]Respostas ao formulário 1'!U120=[1]base!$C$5,[1]base!$D$5,IF('[1]Respostas ao formulário 1'!U120=[1]base!$C$6,[1]base!$D$6,IF('[1]Respostas ao formulário 1'!U120=[1]base!$C$7,[1]base!$D$7))))) -> 1
A123: 2019-09-13T15:53:14.156 | B123: Adriana Duarte | C123: Luz Belisario | D123: Futuro | E123: Noite | F123: Inkisiran Sala 5 UFRR | G123: 2019-09-12 | H123: 17:00:00 | I123: 13 | J123: 11 | K123: https://drive.google.com/open?id=1eXqDA0lKWUETeQfjpRiEdlwwW9F6fl_C | L123: Foi suficiente | N123: Sim | O123: O grupo trabalhou duro. Alguns perceberam que seus projetos não eram seus sonhos, outros que estavam colocando muitos obstáculos para alcançá-los. Foi difícil para eles ver a rede, a possibilidade de trabalhar coletivamente em termos práticos, mas eles fizeram um grande progresso em seu próprio trabalho interior e plano de vida. | P123: A metodologia é muito bem-sucedida, eles conseguem reconhecer o quão bem ela é projetada e entender a importância de mudar o paradigma ou perspectiva para alcançar seus objetivos. | Q123: Alguns estudantes, como José, Diógenes e Francis, até pediram licença médica. Eles realizam todas as atividades dos manuais, mas estão preocupados porque perderam muitas aulas por estar doentes. | R123: Seria maravilhoso ter mais apoio ao fechamento do curso, poder dar os certificados em física e, acima de tudo, promover um espaço de reunião para todas as turmas para que eles pudessem fazer alianças por projetos. Quanto ao desenvolvimento da formação, acredito que se vocês teria permitido aconselhar e apoiar mais, teria sido muito mais organizado. Foi uma experiência maravilhosa e exigente. | S123: Nessa oficina, eu estava muito cansada, tive dificuldade em levá-la de bom humor. Temos que estar preparadas para dias como este | T123: Realmente ótima | U123: Muito satisfeito | V123: 5 | W123: https://drive.google.com/open?id=1LN6N4Paohc33Odi2YcwToLH4qFCkevSA | X123: =IF(U123=[1]base!$C$3,[1]base!$D$3,IF('[1]Respostas ao formulário 1'!U121=[1]base!$C$4,[1]base!$D$4,IF('[1]Respostas ao formulário 1'!U121=[1]base!$C$5,[1]base!$D$5,IF('[1]Respostas ao formulário 1'!U121=[1]base!$C$6,[1]base!$D$6,IF('[1]Respostas ao formulário 1'!U121=[1]base!$C$7,[1]base!$D$7))))) -> 1
A124: 2019-09-13T17:19:44.083 | B124: Angelo | C124: Amanda | D124: Futuro | E124: Manhã | F124: CCLA 143 | G124: 2019-09-13 | H124: 08:12:00 | I124: 27 | J124: 16 | K124: https://drive.google.com/open?id=1z7UfKumdBnbidfSXzv7wNkaCbNdWNCjt | L124: Foi suficiente | N124: Sim | O124: Iniciamos com "Futuro preferível" com a atividade de aquecimento "Estrategiando" contuamos com a atividade centra "GPS" e logo depois foi feito um mural de "celebrações do dia". Finalmente foi feita a "Grande Celebração" os alunos fizeram um círculo e quase todos deram seus planos sobre o futuro, e deram suas opiniões sobre o curso. Finalemente, foi feito um pequeno compartir entre os alunos e os formadores. | P124: A maioria dos alunos saíram do curso com um plano de vida, e uma estratégia para realizar os seus sonhos. | Q124: Alguns alunos se sentiam seguros sobre o seu futuro ainda. | R124: Criar um meio de contato, não só entre os alunos e o formador, mais também entre os alunos e o CIEDS, para que possam dar suas opiniões, fazer questionamentos e dar testemunhas sobre seus projetos através do tempo. | S124: Ser mais organizado. Falar mais de vagar. | T124: Ótima. | U124: Muito satisfeito | V124: 5 | W124: https://drive.google.com/open?id=1-Q1Nd5Xh4TK3-NfX9yHKwHKqesb7f-4f | X124: =IF(U124=[1]base!$C$3,[1]base!$D$3,IF('[1]Respostas ao formulário 1'!U122=[1]base!$C$4,[1]base!$D$4,IF('[1]Respostas ao formulário 1'!U122=[1]base!$C$5,[1]base!$D$5,IF('[1]Respostas ao formulário 1'!U122=[1]base!$C$6,[1]base!$D$6,IF('[1]Respostas ao formulário 1'!U122=[1]base!$C$7,[1]base!$D$7))))) -> 1
A125: 2019-09-13T20:35:09.686 | B125: Carla Aparecida Domingues Rocha | C125: Alejandro Omar Molero | D125: Direitos e Deveres | E125: Tarde | F125: Universidade Federal de Roraima | G125: 2019-08-24 | H125: 13:00:00 | I125: 30 | J125: 13 | K125: https://drive.google.com/open?id=1Fk925Kh39U0YXWZdPWcVAUTt9WnFsVru | L125: Foi suficiente | N125: Sim | O125: Ao abordarmos o tema violência contra mulher ouvimos um relato emocionado de uma jovem que fez vários questionamentos sobre o tema. | P125: A informação sobre os direitos aos quais os refugiados e brasileiros têm direito foi importante na construção do entendimento do que é sujeito de Direito. | Q125: Com as vítimas de violência, pois não podemos ignora-las nem tampouco tornar seu relato o ponto de atenção da oficina, ou seja, o facilitador tem que lidar com a situação de forma ética e profissional. | R125: A atenção a vítimas de violência embora o foco da oficina não seja esse. | S125: Faço minhas as considerações do relatório entregue pela manhã. | T125: Muito bom | U125: Muito satisfeito | V125: 5 | W125: https://drive.google.com/open?id=1HtCFXsctvkrCyZ5Q-1I4IhknVV7t0xpH_I8E9QIqVWM | X125: =IF(U125=[1]base!$C$3,[1]base!$D$3,IF('[1]Respostas ao formulário 1'!U123=[1]base!$C$4,[1]base!$D$4,IF('[1]Respostas ao formulário 1'!U123=[1]base!$C$5,[1]base!$D$5,IF('[1]Respostas ao formulário 1'!U123=[1]base!$C$6,[1]base!$D$6,IF('[1]Respostas ao formulário 1'!U123=[1]base!$C$7,[1]base!$D$7))))) -> 1
A126: 2019-09-13T21:07:07.979 | B126: Carla Aparecida Domingues Rocha | C126: Alejandro Omar | D126: Território | E126: Tarde | F126: Universidade Federal de Roraima | G126: 2019-08-31 | H126: 13:00:00 | I126: 30 | J126: 20 | K126: https://drive.google.com/open?id=10cR-k7bp0x8y53mxBYQbYEQt8-lgQZ_k | L126: Não foi suficiente | M126: Penso que esse conteúdo requer um pouco mais de tempo para ser trabalhado. | N126: Sim | O126: Após o almoço demos continuidade aos trabalhos fazendo a introdução para o território gastronômico. | P126: A interação entre os cursistas. | Q126: Com as pessoas que têm dificuldades de entender o significado de território. | R126: O tempo de intervalo entre as aulas. | S126: Preciso otimizar mais os tempos entre um subtema e outro. | T126: Excelente. Eles gostaram do tema, por isso penso que deveria ter mais tempo para ser trabalhado. | U126: Muito satisfeito | V126: 5 | W126: https://drive.google.com/open?id=1rV0wK_T-yYKgVrrWBxNE9PDEdNMowHUgX8oCvJjPaHw | X126: =IF(U126=[1]base!$C$3,[1]base!$D$3,IF('[1]Respostas ao formulário 1'!U124=[1]base!$C$4,[1]base!$D$4,IF('[1]Respostas ao formulário 1'!U124=[1]base!$C$5,[1]base!$D$5,IF('[1]Respostas ao formulário 1'!U124=[1]base!$C$6,[1]base!$D$6,IF('[1]Respostas ao formulário 1'!U124=[1]base!$C$7,[1]base!$D$7))))) -> 1
A127: 2019-09-14T14:05:10.007 | B127: Jose Belisario | C127: Fabiola Wickert | D127: Futuro | E127: Noite | F127: Leducarr | G127: 2019-09-13 | H127: 17:21:00 | I127: 5 | J127: 4 | K127: https://drive.google.com/open?id=1a5X46m8vW1zIn1EvWcyjhqVzlPH0Wy8M | L127: Foi suficiente | N127: Sim | O127: Se terminou o eixo futuro o módulo 3.7 e se fez a avaliação. Se fez outras dinâmicas e atividades | P127: O grupo atingiu a meta e objetivos encerrando todo o programa com todos seus conteúdos | R127: Melhorar a logística para os próximos cursos para não criar frustração | S127: Todo foi segundo o previsto | T127: Muito bem recebido, os participantes estavam contentes pelas atividades e o material | U127: Muito satisfeito | V127: 5 | W127: https://drive.google.com/open?id=1tFtox3Y7GFikgRplYAxdMbjAfJK919OK | X127: =IF(U127=[1]base!$C$3,[1]base!$D$3,IF('[1]Respostas ao formulário 1'!U125=[1]base!$C$4,[1]base!$D$4,IF('[1]Respostas ao formulário 1'!U125=[1]base!$C$5,[1]base!$D$5,IF('[1]Respostas ao formulário 1'!U125=[1]base!$C$6,[1]base!$D$6,IF('[1]Respostas ao formulário 1'!U125=[1]base!$C$7,[1]base!$D$7))))) -> 1
A128: 2019-09-14T15:11:01.543 | B128: Adriana Duarte | C128: Luz Belisario | D128: Futuro | E128: Noite | F128: Inkisiran Sala 5 UFRR | G128: 2019-09-13 | H128: 17:00:00 | I128: 13 | J128: 12 | K128: https://drive.google.com/open?id=1HtqUD54OW9idbqtoQNW9bS-a89pR1vjG | L128: Não foi suficiente | M128: O formulário "como o aluno mudou após o curso" leva muito tempo para ser preenchido, assim como a inscrição em Ideação.Muitos dos venezuelanos da minha turma (e representam a maioria dos que migram) não têm um telefone inteligente ou não sabem lidar com as TIC. Eles precisam de suporte para esses processos. Devido às muitas dúvidas que surgiram sobre como preencher o formulário da Ideação, o formulário foi definido neste dia. | N128: Sim | O128: O grupo amou ver a sala decorada, todos troxeram comida para compartilhar, todos lutaram para melhorar seu projeto e trabalhamos muito, sem descanso. Então, na verdade, a oficina foi menos atenciosa e mais produtiva. Não havia muito tempo para compartilhar sentimentos, mas estávamos todos ansiosos por novos encontros, felizes e agradecidos pela experiência. Quase todo o grupo acabou bebendo cerveja e seguindo o processo de registro em Ideação (do meu telefone) até 23:30 perto da UFRR | P128: O desejo de seguir processos formativos e amigáveis | Q128: Fabiana e Diógenes terminaram com 73% de participação (não atingiram 75%), mas merecem ser certificados. Todo o grupo deseja ter o certificado em físico | R128: Permitir que o equipo de roraimenses e venezuelanos tomem decisões sobre a convocação e a organização da atividade levará em conta muitos fatores que não estavam previstos e melhorará os resultados quantitativos e qualitativos do CIEDS | S128: Acompanhe cada participante desde o início | T128: Eles mencionaram que foi um desafio não desistir, que foi difícil ver a primeira semana em que a metodologia estava apontando e poder confiar nela em meio a tantos problemas pessoais, mas todos provam que valeu a pena, que são pessoas novas cheias de esperança e clareza | U128: Muito satisfeito | V128: 4 | W128: https://drive.google.com/open?id=1r3SahbeyWDknqSqJ9gzA05X-JejKx0lQ | X128: =IF(U128=[1]base!$C$3,[1]base!$D$3,IF('[1]Respostas ao formulário 1'!U126=[1]base!$C$4,[1]base!$D$4,IF('[1]Respostas ao formulário 1'!U126=[1]base!$C$5,[1]base!$D$5,IF('[1]Respostas ao formulário 1'!U126=[1]base!$C$6,[1]base!$D$6,IF('[1]Respostas ao formulário 1'!U126=[1]base!$C$7,[1]base!$D$7))))) -> 1
A129: 2019-09-14T17:31:40.316 | B129: Angelo | C129: Angelo | D129: Território | E129: Tarde | F129: CCH | G129: 2019-09-07 | H129: 14:00:00 | I129: 27 | J129: 14 | K129: https://drive.google.com/open?id=14KSSq9A-slc-s1U-oBAGrURnIVb9a06g | L129: Foi suficiente | N129: Sim | O129: Foram dados os módulos 2.3 e 2.4. Os alunos tiveram facilidade para desenvolver suas história de quadrinhos e depois, todos participaram da criação do master chef. | P129: Os alunos de divertiram muito, a aula foi marcadamente alegre. | R129: A história de quadrinhos pode tardar, então pode ser feita uma história pré-desenhada na qual os alunos só coloquem os diálogos. | S129: Controlar melhor o tempo de criação do vídeo. | T129: Ótima | U129: Muito satisfeito | V129: 5 | W129: https://drive.google.com/open?id=14QiVLYV7vCaaO7jpugU-dqODaup_tfZM | X129: =IF(U129=[1]base!$C$3,[1]base!$D$3,IF('[1]Respostas ao formulário 1'!U127=[1]base!$C$4,[1]base!$D$4,IF('[1]Respostas ao formulário 1'!U127=[1]base!$C$5,[1]base!$D$5,IF('[1]Respostas ao formulário 1'!U127=[1]base!$C$6,[1]base!$D$6,IF('[1]Respostas ao formulário 1'!U127=[1]base!$C$7,[1]base!$D$7))))) -> 1
A130: 2019-09-14T19:23:21.795 | B130: Fabíola Wickert | C130: Jaidan | D130: Cultura e Costumes | E130: Manhã | F130: Sala 142 Centro de Comunicação Social, Letras e Artes - CCLA/UFRR | G130: 2019-08-26 | H130: 04:00:00 | I130: 22 | J130: 21 | K130: https://drive.google.com/open?id=1xTgV5g-noXZkXdslW63au52ICFD6XvMa | L130: Foi suficiente | N130: Sim | O130: Realizados os módulos 5 e 6, abordando-se os conceitos de cultura, transculturação, regras de vestimenta em diferentes ambientes, características culturais e geográficas das regiões do Brasil, desenvolvendo-se todas as atividades previstas. | R130: Sem observações | S130: Sem observações | T130: O grupo aceitou bem os temas propostos | U130: Satisfeito | V130: 5 | W130: https://drive.google.com/open?id=1jynpcXJFlDUjgv7VvmZeF6yf2LqN9-2yMQQAUbEzWNY | X130: =IF(U130=[1]base!$C$3,[1]base!$D$3,IF('[1]Respostas ao formulário 1'!U128=[1]base!$C$4,[1]base!$D$4,IF('[1]Respostas ao formulário 1'!U128=[1]base!$C$5,[1]base!$D$5,IF('[1]Respostas ao formulário 1'!U128=[1]base!$C$6,[1]base!$D$6,IF('[1]Respostas ao formulário 1'!U128=[1]base!$C$7,[1]base!$D$7))))) -> 0.75
A131: 2019-09-14T19:35:31.313 | B131: Fabíola Wickert | C131: Maria Gabriela Villaba | D131: Identidade | E131: Manhã | F131: Sala 140 CCLA/UFRR | G131: 2019-08-30 | H131: 04:00:00 | I131: 20 | J131: 20 | K131: https://drive.google.com/open?id=1z1y50G8ybN3to1mDFVcOdQoMAR-6U0r1 | L131: Foi suficiente | N131: Sim | O131: Foram realizados os módulos 1.5 e 1.6 com todas as atividades previstas. Discutiu-se a percepção de si e de estrangeiros/migrantes, construção de pré-conceitos e elementos etnográficos, alcançando todas os debates propostos. Foram discutidas ideias comuns, explicações de culturas por meio de elementos etnográficos. | R131: Sem observações | S131: Sem observações | T131: Sem observações | U131: Indiferente | V131: 5 | W131: https://drive.google.com/open?id=1rXI_gQPgC_tcN0efUHQ75NFmBvTG_SlmBE_nZLEZ8is | X131: =IF(U131=[1]base!$C$3,[1]base!$D$3,IF('[1]Respostas ao formulário 1'!U129=[1]base!$C$4,[1]base!$D$4,IF('[1]Respostas ao formulário 1'!U129=[1]base!$C$5,[1]base!$D$5,IF('[1]Respostas ao formulário 1'!U129=[1]base!$C$6,[1]base!$D$6,IF('[1]Respostas ao formulário 1'!U129=[1]base!$C$7,[1]base!$D$7))))) -> 0.5
A132: 2019-09-14T19:43:28.851 | B132: Fabíola Wickert | C132: xxx | D132: Futuro | E132: Noite | F132: Sala 117 Leducarr | G132: 2019-09-12 | H132: 04:00:00 | I132: 5 | J132: 5 | K132: https://drive.google.com/open?id=1pvBJ9z07Qik6FaAp4QpY-Dsao7Pbk5ND | L132: Foi suficiente | N132: Sim | O132: Foram realizadas as atividades dos módulos 3.5 e 3.6, analisando-se a aplicação de recursos disponíveis e tecnologias para solucionar desafios, bem como a análise de projetos sob uma ótica positiva, realista e critica; realizou-se o preenchimento da atividade GPS mental. Ao final, foram acrescentadas palavras no mural de celebração. | R132: Sem observações | S132: Sem observações | T132: O grupo aceitou bem os temas propostos | U132: Satisfeito | V132: 5 | W132: https://drive.google.com/open?id=1RTAZ0iI3tkJbJhuQktKLDzQhPYNOM-rPrn89KpXcGRE | X132: =IF(U132=[1]base!$C$3,[1]base!$D$3,IF('[1]Respostas ao formulário 1'!U130=[1]base!$C$4,[1]base!$D$4,IF('[1]Respostas ao formulário 1'!U130=[1]base!$C$5,[1]base!$D$5,IF('[1]Respostas ao formulário 1'!U130=[1]base!$C$6,[1]base!$D$6,IF('[1]Respostas ao formulário 1'!U130=[1]base!$C$7,[1]base!$D$7))))) -> 0.75
A133: 2019-09-14T19:52:10.224 | B133: Fabíola Wickert/ José Belisário | C133: xxxxx | D133: Futuro | E133: Noite | F133: Sala 117 Leducarr | G133: 2019-09-13 | H133: 04:00:00 | I133: 5 | J133: 4 | K133: https://drive.google.com/open?id=1eUXKToAEh1dGXMBCMsgECSzPd8_KTJ1_ | L133: Foi suficiente | N133: Sim | O133: Foi realizado diálogo de análise da evolução dos participantes, evidenciando-se que apesar das diferenças entre os participantes, perceberam que era possível alcançar seus objetivos. Foi confidenciado por alguns participantes que havia a intenção do grupo de pedir a retirada de uma das participantes da turma, pois os demais sentiam-se desconfortáveis com sua maneira de agir nas atividades, tendo sido pontuado que todos tiveram um grande aprendizado ao perceber que todos conseguiram atuar juntos e chegar ao final do curso com aproveitamento. Foi realizada pesquisa final do processo, tendo os participantes relatado que percebiam mudanças nas respostas que inseriam no questionário, tendo sido comentado que isso mostra que de fato houve uma mudança/transformação. Realizou-se uma dinâmica para trabalhar o pensamento ganha/ganha na atuação dos participantes. | R133: Sem observações | S133: Sem observações | T133: O grupo aceitou bem as atividades | U133: Satisfeito | V133: 5 | W133: https://drive.google.com/open?id=17m75GAT4XHjJ5Tz9RK-aGYNUOYsXvPCOH-Fjh19ZoO8 | X133: =IF(U133=[1]base!$C$3,[1]base!$D$3,IF('[1]Respostas ao formulário 1'!U131=[1]base!$C$4,[1]base!$D$4,IF('[1]Respostas ao formulário 1'!U131=[1]base!$C$5,[1]base!$D$5,IF('[1]Respostas ao formulário 1'!U131=[1]base!$C$6,[1]base!$D$6,IF('[1]Respostas ao formulário 1'!U131=[1]base!$C$7,[1]base!$D$7))))) -> 0.75
A134: 2019-09-14T22:27:57.425 | B134: Angelo | C134: Cíntia | D134: Cultura e Costumes | E134: Tarde | F134: Isikiram | G134: 2019-08-27 | H134: 14:00:00 | I134: 10 | J134: 6 | K134: https://drive.google.com/open?id=1kOewc3UVE8arCdVeeEKvNoDvFZYV3hPG | L134: Foi suficiente | N134: Sim | O134: Foi dada o módulo 5 . Iniciando com a atividade "por causa de você", foi exposta a disfunção teórica, enfatizando no conceito de cultura e transculturção. Continuamos com o módulo 6, neste módulo os alunos fizeram cartazes mostrando as semelhanças e diferenças entre a cultira Brasileira e Venezuelana. | P134: A barreira das nacionalidades foi deixada de lado e os alunos trabalharam juntos como uma só equipe. | R134: Usar outro material que não seja tão contaminante quanto o papel. | S134: Desenvolver estratégias para integrar melhor aos alunos mais tímidos. | T134: Muito boa | U134: Muito satisfeito | V134: 5 | W134: https://drive.google.com/open?id=1j9AO9FIeomSyH04o_q0HNb8sYafuMu-9 | X134: =IF(U134=[1]base!$C$3,[1]base!$D$3,IF('[1]Respostas ao formulário 1'!U132=[1]base!$C$4,[1]base!$D$4,IF('[1]Respostas ao formulário 1'!U132=[1]base!$C$5,[1]base!$D$5,IF('[1]Respostas ao formulário 1'!U132=[1]base!$C$6,[1]base!$D$6,IF('[1]Respostas ao formulário 1'!U132=[1]base!$C$7,[1]base!$D$7))))) -> 1
A135: 2019-09-15T11:18:34.339 | B135: DOMINGO LUIS ANTONIO GONZALEZ PETOT | C135: MARIA GABRIELA VILLALBA | D135: Futuro | E135: Tarde | F135: SALA 716 BLOCO VII UFRR | G135: 2019-09-13 | H135: 13:00:00 | I135: 16 | J135: 8 | K135: https://drive.google.com/open?id=1Smrwo_4jnssL2Z3dhlDidrfDbmGqH3TZ | L135: Foi suficiente | N135: Sim | O135: Foi a oficina de encerramento, os cursistas ficaram muito contentes com o curso, mas também com muita inquietude dos próximos eventos e cursos para desenvolver a suas ideias de empreendimento social ou de negócio. | P135: Todos ficaram muito contentes, trazerem comida e foi muito significativa a socialização. | Q135: Houve um aluno (Aluisio) que os últimos dias e no sábado tinha compromissos de trabalho e praticamente nunca estava na aula enteia, o ultimo dia só assinou e foi embora, o dia sábado foi embora antes das 16h, também chegou tarde, como as 10h, era incômodo para os outros cursistas essa situação. | R135: Maior informação sobre os seguintes cursos para desenvolver as ideias de negócio, está muito confuso sobre a atividade de Dia de Ideação. Também a guia do aluno, nos últimos eixos, quase não tem informação, só folhas para exercícios | S135: Dar maior informação para que desenvolvam os projetos. | T135: Ótima | U135: Muito satisfeito | V135: 5 | W135: https://drive.google.com/open?id=16Xa4GGnK_-1GK_9nMVyNRCbfj50UNSO7 | X135: =IF(U135=[1]base!$C$3,[1]base!$D$3,IF('[1]Respostas ao formulário 1'!U133=[1]base!$C$4,[1]base!$D$4,IF('[1]Respostas ao formulário 1'!U133=[1]base!$C$5,[1]base!$D$5,IF('[1]Respostas ao formulário 1'!U133=[1]base!$C$6,[1]base!$D$6,IF('[1]Respostas ao formulário 1'!U133=[1]base!$C$7,[1]base!$D$7))))) -> 1
A136: 2019-09-15T11:36:36.820 | B136: DOMINGO LUIS ANTONIO GONZÁLEZ PETOT | C136: MARIA GABRIELA VILLALBA | D136: Futuro | E136: Tarde | F136: SALA 716 BLOCO VII UFRR | G136: 2019-09-12 | H136: 13:00:00 | I136: 16 | J136: 8 | K136: https://drive.google.com/open?id=1XCuyfZ9PS-8xr8v7G3P6SqlGLjwd95Xb | L136: Foi suficiente | N136: Sim | O136: Foi uma boa oficina, o trabalho em grupo foi muito bem desenvolvido, apenas aquela atividade das minas foi um pouco difícil, havia focos de descoordinacao e tiveram que repetir muitas vezes até conseguir finalizar. Porem, foi muito bom para refletir sobre "estrategia", alem de só o trabalho em equipe, quando tem um recurso específico só e tem que se entender com eles, cumprindo com alvos e tempos específico, algo mais perto da realidade.e. | P136: O aprendizado sobre como trabalhar em equipe, com estrategia e pressão, onde as situações não são perfeitas, tem que trabalhar com o que tem. | Q136: Um dos cursistas, Alusio, abandonou a atividade porque estava se sentindo mal e falou que era uma bobada. A equipe não animou a ele para retornar, porem, ele sempre presenta apatia para a maioria das atividades. A dinâmica de triangulo SONHADOR-REALISTA-CRITICO experimentaram muita dificuldades para se enfocar, tanto no problema planteado quanto nas soluções segundo no vértice do triangulo onde estavam, o facilitador teve que estar acompanhando de perto e ajudando. | R136: Maior clareza para a atividade do GPS, não fica clara na guia. | S136: Nada | T136: Exceptuando a Aluisio com a atividade das minas, foi boa a aceitação. | U136: Indiferente | V136: 5 | W136: https://drive.google.com/open?id=1UTqKFNg98FondVHMLEOIGcwPcNSNhj3y | X136: =IF(U136=[1]base!$C$3,[1]base!$D$3,IF('[1]Respostas ao formulário 1'!U134=[1]base!$C$4,[1]base!$D$4,IF('[1]Respostas ao formulário 1'!U134=[1]base!$C$5,[1]base!$D$5,IF('[1]Respostas ao formulário 1'!U134=[1]base!$C$6,[1]base!$D$6,IF('[1]Respostas ao formulário 1'!U134=[1]base!$C$7,[1]base!$D$7))))) -> 0.5
A137: 2019-09-15T11:49:57.718 | B137: DOMINGO LUIS ANTONIO GONZALEZ PETOT | C137: MARIA GABRIELA VILLALBA | D137: Futuro | E137: Tarde | F137: SALA 716 BLOCO VII UFRR | G137: 2019-09-12 | H137: 13:00:00 | I137: 16 | J137: 8 | K137: https://drive.google.com/open?id=1dUDPXk2v33P6ZCjQHltLP1IVs2X4AROD | L137: Foi suficiente | N137: Sim | O137: Oficina boa, o grupo está um pouco mais próximo e confortáveis entre eles. A dinâmica de "Confiar e Voar" foi ótima para gerar confiança entre eles, se deixando guiar com os olhos fechados por outra pessoa, logo o "Circulo dos sonhos" foi bem desenvolvida, a dinâmica de "Futuro sistêmico" também foi muito bom, a ultima atividade de futuro conetados com o quadro "Bussines model you - Canvas" foi necessária muito orientação, tanto na guia do facilitador quanto dos alunos tem uma explicação muito pobre. | P137: Todas as atividades conseguiram chegar aos participantes | Q137: O quadro "Bussines model you - Canvas" foi necessária muito orientação, tanto na guia do facilitador quanto dos alunos tem uma explicação muito pobre. | R137: Maior explicação do quadro "Bussines model you - Canvas" | S137: Maior destrezas para as atividades de visualização onde as pessoas tem que fechar os olhos para ser mai convincente. | T137: Muito boa. | U137: Muito satisfeito | V137: 5 | W137: https://drive.google.com/open?id=1ZidHMYLBseaGP5Hd2E1ZOQ9k4_tUJLne | X137: =IF(U137=[1]base!$C$3,[1]base!$D$3,IF('[1]Respostas ao formulário 1'!U135=[1]base!$C$4,[1]base!$D$4,IF('[1]Respostas ao formulário 1'!U135=[1]base!$C$5,[1]base!$D$5,IF('[1]Respostas ao formulário 1'!U135=[1]base!$C$6,[1]base!$D$6,IF('[1]Respostas ao formulário 1'!U135=[1]base!$C$7,[1]base!$D$7))))) -> 1
T138: IDEAÇÃO COLETIVA - EQUIVALÊNCIAS - EMPREENDEDORES | X138: =IF(U138=[1]base!$C$3,[1]base!$D$3,IF('[1]Respostas ao formulário 1'!U136=[1]base!$C$4,[1]base!$D$4,IF('[1]Respostas ao formulário 1'!U136=[1]base!$C$5,[1]base!$D$5,IF('[1]Respostas ao formulário 1'!U136=[1]base!$C$6,[1]base!$D$6,IF('[1]Respostas ao formulário 1'!U136=[1]base!$C$7,[1]base!$D$7))))) -> FALSE | Z138: Taxa de SATISFAÇÃO IDT
T139: 1 | U139: Satisfeito | X139: =IF(U139=[1]base!$C$3,[1]base!$D$3,IF('[1]Respostas ao formulário 1'!U137=[1]base!$C$4,[1]base!$D$4,IF('[1]Respostas ao formulário 1'!U137=[1]base!$C$5,[1]base!$D$5,IF('[1]Respostas ao formulário 1'!U137=[1]base!$C$6,[1]base!$D$6,IF('[1]Respostas ao formulário 1'!U137=[1]base!$C$7,[1]base!$D$7))))) -> 0.75 | Z139: Taxa de satisfação | AA139: =AVERAGE(AA140:AA141) -> 0.9982394366
T140: 2 | U140: Muito satisfeito | X140: =IF(U140=[1]base!$C$3,[1]base!$D$3,IF('[1]Respostas ao formulário 1'!U138=[1]base!$C$4,[1]base!$D$4,IF('[1]Respostas ao formulário 1'!U138=[1]base!$C$5,[1]base!$D$5,IF('[1]Respostas ao formulário 1'!U138=[1]base!$C$6,[1]base!$D$6,IF('[1]Respostas ao formulário 1'!U138=[1]base!$C$7,[1]base!$D$7))))) -> 1 | Z140: Taxa de Satisfação da Banca | AA140: =AVERAGE(X212:X219) -> 1
T141: 3 | U141: Muito satisfeito | X141: =IF(U141=[1]base!$C$3,[1]base!$D$3,IF('[1]Respostas ao formulário 1'!U139=[1]base!$C$4,[1]base!$D$4,IF('[1]Respostas ao formulário 1'!U139=[1]base!$C$5,[1]base!$D$5,IF('[1]Respostas ao formulário 1'!U139=[1]base!$C$6,[1]base!$D$6,IF('[1]Respostas ao formulário 1'!U139=[1]base!$C$7,[1]base!$D$7))))) -> 1 | Z141: Taxa de Satisfação dos Parcipantes | AA141: =AVERAGE(X139:X210) -> 0.9964788732
T142: 4 | U142: Muito satisfeito | X142: =IF(U142=[1]base!$C$3,[1]base!$D$3,IF('[1]Respostas ao formulário 1'!U140=[1]base!$C$4,[1]base!$D$4,IF('[1]Respostas ao formulário 1'!U140=[1]base!$C$5,[1]base!$D$5,IF('[1]Respostas ao formulário 1'!U140=[1]base!$C$6,[1]base!$D$6,IF('[1]Respostas ao formulário 1'!U140=[1]base!$C$7,[1]base!$D$7))))) -> 1
T143: 5 | U143: Muito satisfeito | X143: =IF(U143=[1]base!$C$3,[1]base!$D$3,IF('[1]Respostas ao formulário 1'!U141=[1]base!$C$4,[1]base!$D$4,IF('[1]Respostas ao formulário 1'!U141=[1]base!$C$5,[1]base!$D$5,IF('[1]Respostas ao formulário 1'!U141=[1]base!$C$6,[1]base!$D$6,IF('[1]Respostas ao formulário 1'!U141=[1]base!$C$7,[1]base!$D$7))))) -> 1
T144: 6 | U144: Muito satisfeito | X144: =IF(U144=[1]base!$C$3,[1]base!$D$3,IF('[1]Respostas ao formulário 1'!U142=[1]base!$C$4,[1]base!$D$4,IF('[1]Respostas ao formulário 1'!U142=[1]base!$C$5,[1]base!$D$5,IF('[1]Respostas ao formulário 1'!U142=[1]base!$C$6,[1]base!$D$6,IF('[1]Respostas ao formulário 1'!U142=[1]base!$C$7,[1]base!$D$7))))) -> 1
T145: 7 | U145: Muito satisfeito | X145: =IF(U145=[1]base!$C$3,[1]base!$D$3,IF('[1]Respostas ao formulário 1'!U143=[1]base!$C$4,[1]base!$D$4,IF('[1]Respostas ao formulário 1'!U143=[1]base!$C$5,[1]base!$D$5,IF('[1]Respostas ao formulário 1'!U143=[1]base!$C$6,[1]base!$D$6,IF('[1]Respostas ao formulário 1'!U143=[1]base!$C$7,[1]base!$D$7))))) -> 1
T146: 8 | U146: Muito satisfeito | X146: =IF(U146=[1]base!$C$3,[1]base!$D$3,IF('[1]Respostas ao formulário 1'!U144=[1]base!$C$4,[1]base!$D$4,IF('[1]Respostas ao formulário 1'!U144=[1]base!$C$5,[1]base!$D$5,IF('[1]Respostas ao formulário 1'!U144=[1]base!$C$6,[1]base!$D$6,IF('[1]Respostas ao formulário 1'!U144=[1]base!$C$7,[1]base!$D$7))))) -> 1
T147: 9 | U147: Muito satisfeito | X147: =IF(U147=[1]base!$C$3,[1]base!$D$3,IF('[1]Respostas ao formulário 1'!U145=[1]base!$C$4,[1]base!$D$4,IF('[1]Respostas ao formulário 1'!U145=[1]base!$C$5,[1]base!$D$5,IF('[1]Respostas ao formulário 1'!U145=[1]base!$C$6,[1]base!$D$6,IF('[1]Respostas ao formulário 1'!U145=[1]base!$C$7,[1]base!$D$7))))) -> 1
T148: 10 | U148: Muito satisfeito | X148: =IF(U148=[1]base!$C$3,[1]base!$D$3,IF('[1]Respostas ao formulário 1'!U146=[1]base!$C$4,[1]base!$D$4,IF('[1]Respostas ao formulário 1'!U146=[1]base!$C$5,[1]base!$D$5,IF('[1]Respostas ao formulário 1'!U146=[1]base!$C$6,[1]base!$D$6,IF('[1]Respostas ao formulário 1'!U146=[1]base!$C$7,[1]base!$D$7))))) -> 1
T149: 11 | U149: Muito satisfeito | X149: =IF(U149=[1]base!$C$3,[1]base!$D$3,IF('[1]Respostas ao formulário 1'!U147=[1]base!$C$4,[1]base!$D$4,IF('[1]Respostas ao formulário 1'!U147=[1]base!$C$5,[1]base!$D$5,IF('[1]Respostas ao formulário 1'!U147=[1]base!$C$6,[1]base!$D$6,IF('[1]Respostas ao formulário 1'!U147=[1]base!$C$7,[1]base!$D$7))))) -> 1
T150: 12 | U150: Muito satisfeito | X150: =IF(U150=[1]base!$C$3,[1]base!$D$3,IF('[1]Respostas ao formulário 1'!U148=[1]base!$C$4,[1]base!$D$4,IF('[1]Respostas ao formulário 1'!U148=[1]base!$C$5,[1]base!$D$5,IF('[1]Respostas ao formulário 1'!U148=[1]base!$C$6,[1]base!$D$6,IF('[1]Respostas ao formulário 1'!U148=[1]base!$C$7,[1]base!$D$7))))) -> 1
T151: 13 | U151: Muito satisfeito | X151: =IF(U151=[1]base!$C$3,[1]base!$D$3,IF('[1]Respostas ao formulário 1'!U149=[1]base!$C$4,[1]base!$D$4,IF('[1]Respostas ao formulário 1'!U149=[1]base!$C$5,[1]base!$D$5,IF('[1]Respostas ao formulário 1'!U149=[1]base!$C$6,[1]base!$D$6,IF('[1]Respostas ao formulário 1'!U149=[1]base!$C$7,[1]base!$D$7))))) -> 1
T152: 14 | U152: Muito satisfeito | X152: =IF(U152=[1]base!$C$3,[1]base!$D$3,IF('[1]Respostas ao formulário 1'!U150=[1]base!$C$4,[1]base!$D$4,IF('[1]Respostas ao formulário 1'!U150=[1]base!$C$5,[1]base!$D$5,IF('[1]Respostas ao formulário 1'!U150=[1]base!$C$6,[1]base!$D$6,IF('[1]Respostas ao formulário 1'!U150=[1]base!$C$7,[1]base!$D$7))))) -> 1
T153: 15 | U153: Muito satisfeito | X153: =IF(U153=[1]base!$C$3,[1]base!$D$3,IF('[1]Respostas ao formulário 1'!U151=[1]base!$C$4,[1]base!$D$4,IF('[1]Respostas ao formulário 1'!U151=[1]base!$C$5,[1]base!$D$5,IF('[1]Respostas ao formulário 1'!U151=[1]base!$C$6,[1]base!$D$6,IF('[1]Respostas ao formulário 1'!U151=[1]base!$C$7,[1]base!$D$7))))) -> 1
T154: 16 | U154: Muito satisfeito | X154: =IF(U154=[1]base!$C$3,[1]base!$D$3,IF('[1]Respostas ao formulário 1'!U152=[1]base!$C$4,[1]base!$D$4,IF('[1]Respostas ao formulário 1'!U152=[1]base!$C$5,[1]base!$D$5,IF('[1]Respostas ao formulário 1'!U152=[1]base!$C$6,[1]base!$D$6,IF('[1]Respostas ao formulário 1'!U152=[1]base!$C$7,[1]base!$D$7))))) -> 1
T155: 17 | U155: Muito satisfeito | X155: =IF(U155=[1]base!$C$3,[1]base!$D$3,IF('[1]Respostas ao formulário 1'!U153=[1]base!$C$4,[1]base!$D$4,IF('[1]Respostas ao formulário 1'!U153=[1]base!$C$5,[1]base!$D$5,IF('[1]Respostas ao formulário 1'!U153=[1]base!$C$6,[1]base!$D$6,IF('[1]Respostas ao formulário 1'!U153=[1]base!$C$7,[1]base!$D$7))))) -> 1
T156: 18 | U156: Muito satisfeito | X156: =IF(U156=[1]base!$C$3,[1]base!$D$3,IF('[1]Respostas ao formulário 1'!U154=[1]base!$C$4,[1]base!$D$4,IF('[1]Respostas ao formulário 1'!U154=[1]base!$C$5,[1]base!$D$5,IF('[1]Respostas ao formulário 1'!U154=[1]base!$C$6,[1]base!$D$6,IF('[1]Respostas ao formulário 1'!U154=[1]base!$C$7,[1]base!$D$7))))) -> 1
T157: 19 | U157: Muito satisfeito | X157: =IF(U157=[1]base!$C$3,[1]base!$D$3,IF('[1]Respostas ao formulário 1'!U155=[1]base!$C$4,[1]base!$D$4,IF('[1]Respostas ao formulário 1'!U155=[1]base!$C$5,[1]base!$D$5,IF('[1]Respostas ao formulário 1'!U155=[1]base!$C$6,[1]base!$D$6,IF('[1]Respostas ao formulário 1'!U155=[1]base!$C$7,[1]base!$D$7))))) -> 1
T158: 20 | U158: Muito satisfeito | X158: =IF(U158=[1]base!$C$3,[1]base!$D$3,IF('[1]Respostas ao formulário 1'!U156=[1]base!$C$4,[1]base!$D$4,IF('[1]Respostas ao formulário 1'!U156=[1]base!$C$5,[1]base!$D$5,IF('[1]Respostas ao formulário 1'!U156=[1]base!$C$6,[1]base!$D$6,IF('[1]Respostas ao formulário 1'!U156=[1]base!$C$7,[1]base!$D$7))))) -> 1
T159: 21 | U159: Muito satisfeito | X159: =IF(U159=[1]base!$C$3,[1]base!$D$3,IF('[1]Respostas ao formulário 1'!U157=[1]base!$C$4,[1]base!$D$4,IF('[1]Respostas ao formulário 1'!U157=[1]base!$C$5,[1]base!$D$5,IF('[1]Respostas ao formulário 1'!U157=[1]base!$C$6,[1]base!$D$6,IF('[1]Respostas ao formulário 1'!U157=[1]base!$C$7,[1]base!$D$7))))) -> 1
T160: 22 | U160: Muito satisfeito | X160: =IF(U160=[1]base!$C$3,[1]base!$D$3,IF('[1]Respostas ao formulário 1'!U158=[1]base!$C$4,[1]base!$D$4,IF('[1]Respostas ao formulário 1'!U158=[1]base!$C$5,[1]base!$D$5,IF('[1]Respostas ao formulário 1'!U158=[1]base!$C$6,[1]base!$D$6,IF('[1]Respostas ao formulário 1'!U158=[1]base!$C$7,[1]base!$D$7))))) -> 1
T161: 23 | U161: Muito satisfeito | X161: =IF(U161=[1]base!$C$3,[1]base!$D$3,IF('[1]Respostas ao formulário 1'!U159=[1]base!$C$4,[1]base!$D$4,IF('[1]Respostas ao formulário 1'!U159=[1]base!$C$5,[1]base!$D$5,IF('[1]Respostas ao formulário 1'!U159=[1]base!$C$6,[1]base!$D$6,IF('[1]Respostas ao formulário 1'!U159=[1]base!$C$7,[1]base!$D$7))))) -> 1
T162: 24 | U162: Muito satisfeito | X162: =IF(U162=[1]base!$C$3,[1]base!$D$3,IF('[1]Respostas ao formulário 1'!U160=[1]base!$C$4,[1]base!$D$4,IF('[1]Respostas ao formulário 1'!U160=[1]base!$C$5,[1]base!$D$5,IF('[1]Respostas ao formulário 1'!U160=[1]base!$C$6,[1]base!$D$6,IF('[1]Respostas ao formulário 1'!U160=[1]base!$C$7,[1]base!$D$7))))) -> 1
T163: 25 | U163: Muito satisfeito | X163: =IF(U163=[1]base!$C$3,[1]base!$D$3,IF('[1]Respostas ao formulário 1'!U161=[1]base!$C$4,[1]base!$D$4,IF('[1]Respostas ao formulário 1'!U161=[1]base!$C$5,[1]base!$D$5,IF('[1]Respostas ao formulário 1'!U161=[1]base!$C$6,[1]base!$D$6,IF('[1]Respostas ao formulário 1'!U161=[1]base!$C$7,[1]base!$D$7))))) -> 1
T164: 26 | U164: Muito satisfeito | X164: =IF(U164=[1]base!$C$3,[1]base!$D$3,IF('[1]Respostas ao formulário 1'!U162=[1]base!$C$4,[1]base!$D$4,IF('[1]Respostas ao formulário 1'!U162=[1]base!$C$5,[1]base!$D$5,IF('[1]Respostas ao formulário 1'!U162=[1]base!$C$6,[1]base!$D$6,IF('[1]Respostas ao formulário 1'!U162=[1]base!$C$7,[1]base!$D$7))))) -> 1
T165: 27 | U165: Muito satisfeito | X165: =IF(U165=[1]base!$C$3,[1]base!$D$3,IF('[1]Respostas ao formulário 1'!U163=[1]base!$C$4,[1]base!$D$4,IF('[1]Respostas ao formulário 1'!U163=[1]base!$C$5,[1]base!$D$5,IF('[1]Respostas ao formulário 1'!U163=[1]base!$C$6,[1]base!$D$6,IF('[1]Respostas ao formulário 1'!U163=[1]base!$C$7,[1]base!$D$7))))) -> 1
T166: 28 | U166: Muito satisfeito | X166: =IF(U166=[1]base!$C$3,[1]base!$D$3,IF('[1]Respostas ao formulário 1'!U164=[1]base!$C$4,[1]base!$D$4,IF('[1]Respostas ao formulário 1'!U164=[1]base!$C$5,[1]base!$D$5,IF('[1]Respostas ao formulário 1'!U164=[1]base!$C$6,[1]base!$D$6,IF('[1]Respostas ao formulário 1'!U164=[1]base!$C$7,[1]base!$D$7))))) -> 1
T167: 29 | U167: Muito satisfeito | X167: =IF(U167=[1]base!$C$3,[1]base!$D$3,IF('[1]Respostas ao formulário 1'!U165=[1]base!$C$4,[1]base!$D$4,IF('[1]Respostas ao formulário 1'!U165=[1]base!$C$5,[1]base!$D$5,IF('[1]Respostas ao formulário 1'!U165=[1]base!$C$6,[1]base!$D$6,IF('[1]Respostas ao formulário 1'!U165=[1]base!$C$7,[1]base!$D$7))))) -> 1
T168: 30 | U168: Muito satisfeito | X168: =IF(U168=[1]base!$C$3,[1]base!$D$3,IF('[1]Respostas ao formulário 1'!U166=[1]base!$C$4,[1]base!$D$4,IF('[1]Respostas ao formulário 1'!U166=[1]base!$C$5,[1]base!$D$5,IF('[1]Respostas ao formulário 1'!U166=[1]base!$C$6,[1]base!$D$6,IF('[1]Respostas ao formulário 1'!U166=[1]base!$C$7,[1]base!$D$7))))) -> 1
T169: 31 | U169: Muito satisfeito | X169: =IF(U169=[1]base!$C$3,[1]base!$D$3,IF('[1]Respostas ao formulário 1'!U167=[1]base!$C$4,[1]base!$D$4,IF('[1]Respostas ao formulário 1'!U167=[1]base!$C$5,[1]base!$D$5,IF('[1]Respostas ao formulário 1'!U167=[1]base!$C$6,[1]base!$D$6,IF('[1]Respostas ao formulário 1'!U167=[1]base!$C$7,[1]base!$D$7))))) -> 1
T170: 32 | U170: Muito satisfeito | X170: =IF(U170=[1]base!$C$3,[1]base!$D$3,IF('[1]Respostas ao formulário 1'!U168=[1]base!$C$4,[1]base!$D$4,IF('[1]Respostas ao formulário 1'!U168=[1]base!$C$5,[1]base!$D$5,IF('[1]Respostas ao formulário 1'!U168=[1]base!$C$6,[1]base!$D$6,IF('[1]Respostas ao formulário 1'!U168=[1]base!$C$7,[1]base!$D$7))))) -> 1
T171: 33 | U171: Muito satisfeito | X171: =IF(U171=[1]base!$C$3,[1]base!$D$3,IF('[1]Respostas ao formulário 1'!U169=[1]base!$C$4,[1]base!$D$4,IF('[1]Respostas ao formulário 1'!U169=[1]base!$C$5,[1]base!$D$5,IF('[1]Respostas ao formulário 1'!U169=[1]base!$C$6,[1]base!$D$6,IF('[1]Respostas ao formulário 1'!U169=[1]base!$C$7,[1]base!$D$7))))) -> 1
T172: 34 | U172: Muito satisfeito | X172: =IF(U172=[1]base!$C$3,[1]base!$D$3,IF('[1]Respostas ao formulário 1'!U170=[1]base!$C$4,[1]base!$D$4,IF('[1]Respostas ao formulário 1'!U170=[1]base!$C$5,[1]base!$D$5,IF('[1]Respostas ao formulário 1'!U170=[1]base!$C$6,[1]base!$D$6,IF('[1]Respostas ao formulário 1'!U170=[1]base!$C$7,[1]base!$D$7))))) -> 1
T173: 35 | U173: Muito satisfeito | X173: =IF(U173=[1]base!$C$3,[1]base!$D$3,IF('[1]Respostas ao formulário 1'!U171=[1]base!$C$4,[1]base!$D$4,IF('[1]Respostas ao formulário 1'!U171=[1]base!$C$5,[1]base!$D$5,IF('[1]Respostas ao formulário 1'!U171=[1]base!$C$6,[1]base!$D$6,IF('[1]Respostas ao formulário 1'!U171=[1]base!$C$7,[1]base!$D$7))))) -> 1
T174: 36 | U174: Muito satisfeito | X174: =IF(U174=[1]base!$C$3,[1]base!$D$3,IF('[1]Respostas ao formulário 1'!U172=[1]base!$C$4,[1]base!$D$4,IF('[1]Respostas ao formulário 1'!U172=[1]base!$C$5,[1]base!$D$5,IF('[1]Respostas ao formulário 1'!U172=[1]base!$C$6,[1]base!$D$6,IF('[1]Respostas ao formulário 1'!U172=[1]base!$C$7,[1]base!$D$7))))) -> 1
T175: 37 | U175: Muito satisfeito | X175: =IF(U175=[1]base!$C$3,[1]base!$D$3,IF('[1]Respostas ao formulário 1'!U173=[1]base!$C$4,[1]base!$D$4,IF('[1]Respostas ao formulário 1'!U173=[1]base!$C$5,[1]base!$D$5,IF('[1]Respostas ao formulário 1'!U173=[1]base!$C$6,[1]base!$D$6,IF('[1]Respostas ao formulário 1'!U173=[1]base!$C$7,[1]base!$D$7))))) -> 1
T176: 38 | U176: Muito satisfeito | X176: =IF(U176=[1]base!$C$3,[1]base!$D$3,IF('[1]Respostas ao formulário 1'!U174=[1]base!$C$4,[1]base!$D$4,IF('[1]Respostas ao formulário 1'!U174=[1]base!$C$5,[1]base!$D$5,IF('[1]Respostas ao formulário 1'!U174=[1]base!$C$6,[1]base!$D$6,IF('[1]Respostas ao formulário 1'!U174=[1]base!$C$7,[1]base!$D$7))))) -> 1
T177: 39 | U177: Muito satisfeito | X177: =IF(U177=[1]base!$C$3,[1]base!$D$3,IF('[1]Respostas ao formulário 1'!U175=[1]base!$C$4,[1]base!$D$4,IF('[1]Respostas ao formulário 1'!U175=[1]base!$C$5,[1]base!$D$5,IF('[1]Respostas ao formulário 1'!U175=[1]base!$C$6,[1]base!$D$6,IF('[1]Respostas ao formulário 1'!U175=[1]base!$C$7,[1]base!$D$7))))) -> 1
T178: 40 | U178: Muito satisfeito | X178: =IF(U178=[1]base!$C$3,[1]base!$D$3,IF('[1]Respostas ao formulário 1'!U176=[1]base!$C$4,[1]base!$D$4,IF('[1]Respostas ao formulário 1'!U176=[1]base!$C$5,[1]base!$D$5,IF('[1]Respostas ao formulário 1'!U176=[1]base!$C$6,[1]base!$D$6,IF('[1]Respostas ao formulário 1'!U176=[1]base!$C$7,[1]base!$D$7))))) -> 1
T179: 41 | U179: Muito satisfeito | X179: =IF(U179=[1]base!$C$3,[1]base!$D$3,IF('[1]Respostas ao formulário 1'!U177=[1]base!$C$4,[1]base!$D$4,IF('[1]Respostas ao formulário 1'!U177=[1]base!$C$5,[1]base!$D$5,IF('[1]Respostas ao formulário 1'!U177=[1]base!$C$6,[1]base!$D$6,IF('[1]Respostas ao formulário 1'!U177=[1]base!$C$7,[1]base!$D$7))))) -> 1
T180: 42 | U180: Muito satisfeito | X180: =IF(U180=[1]base!$C$3,[1]base!$D$3,IF('[1]Respostas ao formulário 1'!U178=[1]base!$C$4,[1]base!$D$4,IF('[1]Respostas ao formulário 1'!U178=[1]base!$C$5,[1]base!$D$5,IF('[1]Respostas ao formulário 1'!U178=[1]base!$C$6,[1]base!$D$6,IF('[1]Respostas ao formulário 1'!U178=[1]base!$C$7,[1]base!$D$7))))) -> 1
T181: 43 | U181: Muito satisfeito | X181: =IF(U181=[1]base!$C$3,[1]base!$D$3,IF('[1]Respostas ao formulário 1'!U179=[1]base!$C$4,[1]base!$D$4,IF('[1]Respostas ao formulário 1'!U179=[1]base!$C$5,[1]base!$D$5,IF('[1]Respostas ao formulário 1'!U179=[1]base!$C$6,[1]base!$D$6,IF('[1]Respostas ao formulário 1'!U179=[1]base!$C$7,[1]base!$D$7))))) -> 1
T182: 44 | U182: Muito satisfeito | X182: =IF(U182=[1]base!$C$3,[1]base!$D$3,IF('[1]Respostas ao formulário 1'!U180=[1]base!$C$4,[1]base!$D$4,IF('[1]Respostas ao formulário 1'!U180=[1]base!$C$5,[1]base!$D$5,IF('[1]Respostas ao formulário 1'!U180=[1]base!$C$6,[1]base!$D$6,IF('[1]Respostas ao formulário 1'!U180=[1]base!$C$7,[1]base!$D$7))))) -> 1
T183: 45 | U183: Muito satisfeito | X183: =IF(U183=[1]base!$C$3,[1]base!$D$3,IF('[1]Respostas ao formulário 1'!U181=[1]base!$C$4,[1]base!$D$4,IF('[1]Respostas ao formulário 1'!U181=[1]base!$C$5,[1]base!$D$5,IF('[1]Respostas ao formulário 1'!U181=[1]base!$C$6,[1]base!$D$6,IF('[1]Respostas ao formulário 1'!U181=[1]base!$C$7,[1]base!$D$7))))) -> 1
T184: 46 | U184: Muito satisfeito | X184: =IF(U184=[1]base!$C$3,[1]base!$D$3,IF('[1]Respostas ao formulário 1'!U182=[1]base!$C$4,[1]base!$D$4,IF('[1]Respostas ao formulário 1'!U182=[1]base!$C$5,[1]base!$D$5,IF('[1]Respostas ao formulário 1'!U182=[1]base!$C$6,[1]base!$D$6,IF('[1]Respostas ao formulário 1'!U182=[1]base!$C$7,[1]base!$D$7))))) -> 1
T185: 47 | U185: Muito satisfeito | X185: =IF(U185=[1]base!$C$3,[1]base!$D$3,IF('[1]Respostas ao formulário 1'!U183=[1]base!$C$4,[1]base!$D$4,IF('[1]Respostas ao formulário 1'!U183=[1]base!$C$5,[1]base!$D$5,IF('[1]Respostas ao formulário 1'!U183=[1]base!$C$6,[1]base!$D$6,IF('[1]Respostas ao formulário 1'!U183=[1]base!$C$7,[1]base!$D$7))))) -> 1
T186: 48 | U186: Muito satisfeito | X186: =IF(U186=[1]base!$C$3,[1]base!$D$3,IF('[1]Respostas ao formulário 1'!U184=[1]base!$C$4,[1]base!$D$4,IF('[1]Respostas ao formulário 1'!U184=[1]base!$C$5,[1]base!$D$5,IF('[1]Respostas ao formulário 1'!U184=[1]base!$C$6,[1]base!$D$6,IF('[1]Respostas ao formulário 1'!U184=[1]base!$C$7,[1]base!$D$7))))) -> 1
T187: 49 | U187: Muito satisfeito | X187: =IF(U187=[1]base!$C$3,[1]base!$D$3,IF('[1]Respostas ao formulário 1'!U185=[1]base!$C$4,[1]base!$D$4,IF('[1]Respostas ao formulário 1'!U185=[1]base!$C$5,[1]base!$D$5,IF('[1]Respostas ao formulário 1'!U185=[1]base!$C$6,[1]base!$D$6,IF('[1]Respostas ao formulário 1'!U185=[1]base!$C$7,[1]base!$D$7))))) -> 1
T188: 50 | U188: Muito satisfeito | X188: =IF(U188=[1]base!$C$3,[1]base!$D$3,IF('[1]Respostas ao formulário 1'!U186=[1]base!$C$4,[1]base!$D$4,IF('[1]Respostas ao formulário 1'!U186=[1]base!$C$5,[1]base!$D$5,IF('[1]Respostas ao formulário 1'!U186=[1]base!$C$6,[1]base!$D$6,IF('[1]Respostas ao formulário 1'!U186=[1]base!$C$7,[1]base!$D$7))))) -> 1
T189: 51 | U189: Muito satisfeito | X189: =IF(U189=[1]base!$C$3,[1]base!$D$3,IF('[1]Respostas ao formulário 1'!U187=[1]base!$C$4,[1]base!$D$4,IF('[1]Respostas ao formulário 1'!U187=[1]base!$C$5,[1]base!$D$5,IF('[1]Respostas ao formulário 1'!U187=[1]base!$C$6,[1]base!$D$6,IF('[1]Respostas ao formulário 1'!U187=[1]base!$C$7,[1]base!$D$7))))) -> 1
T190: 52 | U190: Muito satisfeito | X190: =IF(U190=[1]base!$C$3,[1]base!$D$3,IF('[1]Respostas ao formulário 1'!U188=[1]base!$C$4,[1]base!$D$4,IF('[1]Respostas ao formulário 1'!U188=[1]base!$C$5,[1]base!$D$5,IF('[1]Respostas ao formulário 1'!U188=[1]base!$C$6,[1]base!$D$6,IF('[1]Respostas ao formulário 1'!U188=[1]base!$C$7,[1]base!$D$7))))) -> 1
T191: 53 | U191: Muito satisfeito | X191: =IF(U191=[1]base!$C$3,[1]base!$D$3,IF('[1]Respostas ao formulário 1'!U189=[1]base!$C$4,[1]base!$D$4,IF('[1]Respostas ao formulário 1'!U189=[1]base!$C$5,[1]base!$D$5,IF('[1]Respostas ao formulário 1'!U189=[1]base!$C$6,[1]base!$D$6,IF('[1]Respostas ao formulário 1'!U189=[1]base!$C$7,[1]base!$D$7))))) -> 1
T192: 54 | U192: Muito satisfeito | X192: =IF(U192=[1]base!$C$3,[1]base!$D$3,IF('[1]Respostas ao formulário 1'!U190=[1]base!$C$4,[1]base!$D$4,IF('[1]Respostas ao formulário 1'!U190=[1]base!$C$5,[1]base!$D$5,IF('[1]Respostas ao formulário 1'!U190=[1]base!$C$6,[1]base!$D$6,IF('[1]Respostas ao formulário 1'!U190=[1]base!$C$7,[1]base!$D$7))))) -> 1
T193: 55 | U193: Muito satisfeito | X193: =IF(U193=[1]base!$C$3,[1]base!$D$3,IF('[1]Respostas ao formulário 1'!U191=[1]base!$C$4,[1]base!$D$4,IF('[1]Respostas ao formulário 1'!U191=[1]base!$C$5,[1]base!$D$5,IF('[1]Respostas ao formulário 1'!U191=[1]base!$C$6,[1]base!$D$6,IF('[1]Respostas ao formulário 1'!U191=[1]base!$C$7,[1]base!$D$7))))) -> 1
T194: 56 | U194: Muito satisfeito | X194: =IF(U194=[1]base!$C$3,[1]base!$D$3,IF('[1]Respostas ao formulário 1'!U192=[1]base!$C$4,[1]base!$D$4,IF('[1]Respostas ao formulário 1'!U192=[1]base!$C$5,[1]base!$D$5,IF('[1]Respostas ao formulário 1'!U192=[1]base!$C$6,[1]base!$D$6,IF('[1]Respostas ao formulário 1'!U192=[1]base!$C$7,[1]base!$D$7))))) -> 1
T195: 57 | U195: Muito satisfeito | X195: =IF(U195=[1]base!$C$3,[1]base!$D$3,IF('[1]Respostas ao formulário 1'!U193=[1]base!$C$4,[1]base!$D$4,IF('[1]Respostas ao formulário 1'!U193=[1]base!$C$5,[1]base!$D$5,IF('[1]Respostas ao formulário 1'!U193=[1]base!$C$6,[1]base!$D$6,IF('[1]Respostas ao formulário 1'!U193=[1]base!$C$7,[1]base!$D$7))))) -> 1
T196: 58 | U196: Muito satisfeito | X196: =IF(U196=[1]base!$C$3,[1]base!$D$3,IF('[1]Respostas ao formulário 1'!U194=[1]base!$C$4,[1]base!$D$4,IF('[1]Respostas ao formulário 1'!U194=[1]base!$C$5,[1]base!$D$5,IF('[1]Respostas ao formulário 1'!U194=[1]base!$C$6,[1]base!$D$6,IF('[1]Respostas ao formulário 1'!U194=[1]base!$C$7,[1]base!$D$7))))) -> 1
T197: 59 | U197: Muito satisfeito | X197: =IF(U197=[1]base!$C$3,[1]base!$D$3,IF('[1]Respostas ao formulário 1'!U195=[1]base!$C$4,[1]base!$D$4,IF('[1]Respostas ao formulário 1'!U195=[1]base!$C$5,[1]base!$D$5,IF('[1]Respostas ao formulário 1'!U195=[1]base!$C$6,[1]base!$D$6,IF('[1]Respostas ao formulário 1'!U195=[1]base!$C$7,[1]base!$D$7))))) -> 1
T198: 60 | U198: Muito satisfeito | X198: =IF(U198=[1]base!$C$3,[1]base!$D$3,IF('[1]Respostas ao formulário 1'!U196=[1]base!$C$4,[1]base!$D$4,IF('[1]Respostas ao formulário 1'!U196=[1]base!$C$5,[1]base!$D$5,IF('[1]Respostas ao formulário 1'!U196=[1]base!$C$6,[1]base!$D$6,IF('[1]Respostas ao formulário 1'!U196=[1]base!$C$7,[1]base!$D$7))))) -> 1
T199: 61 | U199: Muito satisfeito | X199: =IF(U199=[1]base!$C$3,[1]base!$D$3,IF('[1]Respostas ao formulário 1'!U197=[1]base!$C$4,[1]base!$D$4,IF('[1]Respostas ao formulário 1'!U197=[1]base!$C$5,[1]base!$D$5,IF('[1]Respostas ao formulário 1'!U197=[1]base!$C$6,[1]base!$D$6,IF('[1]Respostas ao formulário 1'!U197=[1]base!$C$7,[1]base!$D$7))))) -> 1
T200: 62 | U200: Muito satisfeito | X200: =IF(U200=[1]base!$C$3,[1]base!$D$3,IF('[1]Respostas ao formulário 1'!U198=[1]base!$C$4,[1]base!$D$4,IF('[1]Respostas ao formulário 1'!U198=[1]base!$C$5,[1]base!$D$5,IF('[1]Respostas ao formulário 1'!U198=[1]base!$C$6,[1]base!$D$6,IF('[1]Respostas ao formulário 1'!U198=[1]base!$C$7,[1]base!$D$7))))) -> 1
T201: 63 | U201: Muito satisfeito | X201: =IF(U201=[1]base!$C$3,[1]base!$D$3,IF('[1]Respostas ao formulário 1'!U199=[1]base!$C$4,[1]base!$D$4,IF('[1]Respostas ao formulário 1'!U199=[1]base!$C$5,[1]base!$D$5,IF('[1]Respostas ao formulário 1'!U199=[1]base!$C$6,[1]base!$D$6,IF('[1]Respostas ao formulário 1'!U199=[1]base!$C$7,[1]base!$D$7))))) -> 1
T202: 64 | U202: Muito satisfeito | X202: =IF(U202=[1]base!$C$3,[1]base!$D$3,IF('[1]Respostas ao formulário 1'!U200=[1]base!$C$4,[1]base!$D$4,IF('[1]Respostas ao formulário 1'!U200=[1]base!$C$5,[1]base!$D$5,IF('[1]Respostas ao formulário 1'!U200=[1]base!$C$6,[1]base!$D$6,IF('[1]Respostas ao formulário 1'!U200=[1]base!$C$7,[1]base!$D$7))))) -> 1
... 57 more rows

Sheet FEM

Sheet WSDL
B145: Beneficiário(a) | D145: Quantidade | F145: Objeto do Contrato | N145: Tipo do Contrato
B146: Antonio José Rivas Vinoles | D146: BRL 16,000 | F146: A comunidade propôs mapear potenciais empreendedores em Boa Vista (Roraima) para criar uma organização sem fins lucrativos com foco no apoio a empreendedores na base da pirâmide. Eles também propuseram a criação de um aplicativo. | N146: Contrato de Concessão (grant)
B147: Movimento Ideológico Revolução - MID | D147: BRL 16,000 | F147: Esta organização local teve como objetivo melhorar a sua atividade existente através da construção de uma plataforma online para conectar as empresas locais que precisam contratar e as pessoas mais vulneráveis, como migrantes e refugiados, que procuram emprego. Também melhorariam as condições e os equipamentos da sala de informática aberta à comunidade local. | N147: Contrato de Concessão (grant)
B148: Associação Movimento Socioambiental, Interativo, Cultural e Organizacional - Coletivo Mosaico | D148: BRL 16,000 | F148: Essa organização formada por moradores e jovens surgiu com a ideia de um evento mais uma campanha de conscientização para o combate à violência e à xenofobia. Eles pretendiam se concentrar em uma escola próxima a um abrigo para refugiados, a fim de treinar outros jovens sobre habilidades sociais, capacitação econômica, bullying e xenofobia. | N148: Contrato de Concessão (grant)
B149: Cooperativa de Empreendimentos Solidários do Município de Boa Vista - COOFEC'S | D149: BRL 16,000 | F149: O projeto “Mulheres Brilhantes - Uma Jornada pela Igualdade e Acabando com a Violência de Gênero” foi organizado por diversos grupos locais com histórico de trabalho com mulheres em Roraima, um dos estados brasileiros mais violentos. Eles organizaram um evento para cerca de 80 mulheres de diferentes grupos (indígenas, negras, com deficiência, jovens e idosas, LGBT +) oferecendo oficinas de empoderamento econômico feminino, artesanato, arte-terapia, direitos e enfrentamento à violência. O evento aconteceu em novembro chamando a atenção para a Agenda de Violência de Gênero e para lembrar o crime de 25 de novembro de 1960 contra a mulher na República Dominicana. | N149: Contrato de Concessão (grant)

Sheet COM

Sheet ACE
D32: Saiba mais sobre os microempreendedores no estado aqui.
A217: Demografia das empresas e estatísticas de empreendedorismo: 2016 / IBGE, Coordenação de Metodologia das Estatísticas de Empresas, Cadastros e Classificações. - Rio de Janeiro : IBGE, 2018. 119p. - (Estudos e pesquisas. Informação econômica, ISSN 1679-480X ; n. 31)

Sheet CPF único (hidden)
A3: NOME | B3: CPF | C3: Gênero | D3: Raça/Etnia | E3: Nacionalidade | F3: Idade | G3: DCHV | H3: IDT | I3: PG | J3: FEM | K3: AC | L3: WSDL | M3: COM | N3: # | O3: % | P3: 60 gráficos | Q3: Gênero | R3: Total | T3: Gênero | AE3: CPF Único RIS (Sem PG)
A4: A. Antonio Martinez | B4: 20170249 | C4: Masculino | D4: Não consta | E4: Não consta | F4: 33 | I4: X | N4: =COUNTIF(G4:K4,"x") -> 1 | O4: =N4/4 -> 0.25 | Q4: Feminino | R4: =COUNTIF(C4:C2143,"Feminino") -> 1107 | T4: Etapas do projeto | U4: Feminino | V4: Masculino | W4: LGBT+ | X4: Não consta | Y4: Total | AE4: NOME | AF4: CPF | AG4: Gênero | AH4: Raça/Etnia | AI4: Nacionalidade | AJ4: Idade
A5: A. Emilia Bolivar | B5: Não consta | C5: Feminino | D5: Não consta | E5: Não consta | F5: 43 | I5: X | N5: =COUNTIF(G5:K5,"x") -> 1 | O5: 0.25 | Q5: Masculino | R5: =COUNTIF(C4:C2143,"Masculino") -> 937 | T5: FG | U5: 74 | V5: 59 | W5: 6 | X5: 1 | Y5: 140 | AE5: Ádria Letícia Rubens Souza | AF5: 00477670229 | AG5: Feminino | AH5: Parda | AI5: Brasileira | AJ5: 20
A6: A. Marin | B6: Não consta | C6: Feminino | D6: Não consta | E6: Não consta | F6: 21 | I6: X | N6: 1 | O6: 0.25 | Q6: LGBT+ | R6: =COUNTIF(C4:C2143,"LGBT+") -> 13 | T6: ID | U6: 42 | V6: 22 | W6: 0 | X6: 6 | Y6: 70 | AE6: Adriana Duarte Bencomo | AF6: 70497784270 | AG6: Feminino | AH6: Branca | AI6: Venezuelana | AJ6: 36
A7: A. Supisri Garcia | B7: 18204174 | C7: Masculino | D7: Não consta | E7: Não consta | F7: Não consta | I7: X | N7: 1 | O7: 0.25 | Q7: Não consta | R7: =COUNTIF(C4:C2143,"Não consta") -> 83 | T7: FE | U7: 37 | V7: 19 | W7: 0 | X7: 18 | Y7: 74 | AE7: Adriana Silva Araújo | AF7: 89274644272 | AG7: Feminino | AH7: Branca | AI7: Brasileira | AJ7: 33
A8: Abner I. | B8: Não consta | C8: Masculino | D8: Não consta | E8: Não consta | F8: 15 | I8: X | N8: 1 | O8: 0.25 | Q8: Total | R8: =SUM(R4:R7) -> 2140 | T8: PG | U8: 1003 | V8: 852 | W8: 8 | X8: 61 | Y8: 1924 | AE8: Alberto Josue Barreto Roberts | AF8: 71222770113 | AG8: Masculino | AH8: Parda | AI8: Venezuelana | AJ8: 20
A9: Abraão C. A. Carvalho | B9: 3374292275 | C9: Masculino | D9: Não consta | E9: Não consta | F9: 17 | I9: X | N9: 1 | O9: 0.25 | T9: AC | U9: 8 | V9: 0 | W9: 0 | X9: 0 | Y9: 8 | AE9: Alberto Luis Ugas Rodríguez | AF9: 70686695224 | AG9: Masculino | AH9: Branca | AI9: Venezuelana | AJ9: 38
A10: Abrão A Rocha | B10: 04882614227 | C10: Masculino | D10: Não consta | E10: Não consta | F10: 16 | I10: X | N10: 1 | O10: 0.25 | Q10: Raça/Cor | R10: Total | T10: Todos | U10: 1091 | V10: 916 | W10: 13 | X10: 84 | Y10: 2104 | AE10: Alejandro Pueyo Grand | AF10: 70779312260 | AG10: Masculino | AH10: Branca | AI10: Venezuelana | AJ10: 36
A11: Adelsi Sanchez | B11: Não consta | C11: Feminino | D11: Não consta | E11: Não consta | F11: 27 | I11: X | N11: 1 | O11: 0.25 | Q11: Parda | R11: =COUNTIF(D4:D2143,"Parda") -> 100 | T11: Raça/Cor | AE11: Alexandre leal do santos | AF11: 88818861204 | AG11: Masculino | AH11: Parda | AI11: Brasileira | AJ11: 32
A12: Adilson M. de Sousa | B12: 03987237245 | C12: Masculino | D12: Não consta | E12: Não consta | F12: 17 | I12: X | N12: 1 | O12: 0.25 | Q12: Branca | R12: =COUNTIF(D4:D2143,"Branca") -> 40 | T12: Etapas do projeto | U12: Parda | V12: Branca | W12: Preta | X12: Indígena | Y12: Amarela | Z12: Não consta | AA12: Total | AE12: Alexei Enrique Aguilar Sánchez | AF12: 70778330206 | AG12: Masculino | AH12: Branca | AI12: Venezuelana | AJ12: 53
A13: Alisson Silva Melo | B13: Não consta | C13: Masculino | D13: Não consta | E13: Não consta | F13: Não consta | M13: X | N13: 1 | O13: 0.25
A14: Adirem Del Valle Lorgart Perez | B14: Não consta | C14: Feminino | D14: Não consta | E14: Não consta | F14: 52 | I14: X | N14: 1 | O14: 0.25 | Q14: Preta | R14: =COUNTIF(D4:D2143,"Preta") -> 16 | T14: FG | U14: 85 | V14: 30 | W14: 13 | X14: 10 | Y14: 1 | Z14: 1 | AA14: 140 | AE14: Alexis Manuel Urquia Salas | AF14: 70805004270 | AG14: Masculino | AH14: Indígena | AI14: Venezuelana | AJ14: 38
A15: Adna Cristyne | B15: 02642014266 | C15: Feminino | D15: Não consta | E15: Não consta | F15: 16 | I15: X | N15: 1 | O15: 0.25 | Q15: Indígena | R15: =COUNTIF(D4:D2143,"Indígena") -> 11 | T15: ID | U15: 34 | V15: 24 | W15: 4 | X15: 2 | Y15: 0 | Z15: 6 | AA15: 70 | AE15: Aluísio Antonio Queiroz | AF15: 28838076634 | AG15: Masculino | AH15: Preta | AI15: Brasileira | AJ15: 62
A16: Adolfo Arona | B16: Não consta | C16: Masculino | D16: Não consta | E16: Não consta | F16: 17 | I16: X | N16: 1 | O16: 0.25 | Q16: Amarela | R16: =COUNTIF(D4:D2143,"Amarela") -> 1 | T16: FE | U16: 33 | V16: 19 | W16: 4 | X16: 0 | Y16: 0 | Z16: 18 | AA16: 74 | AE16: Alvaro Daniel león moreno | AF16: 71306990190 | AG16: Masculino | AH16: Branca | AI16: Venezuelana | AJ16: 29
A17: Ádria Letícia Rubens Souza | B17: 00477670229 | C17: Feminino | D17: Parda | E17: Brasileira | F17: 20 | G17: X | N17: 1 | O17: 0.25 | Q17: Não consta | R17: =COUNTIF(D4:D2143,"Não consta") -> 1972 | T17: PG | U17: 5 | V17: 4 | W17: 2 | X17: 0 | Y17: 0 | Z17: 1913 | AA17: 1924 | AE17: Amanda Batista de souza | AF17: 04793635288 | AG17: Feminino | AH17: Parda | AI17: Brasileira | AJ17: 19
A18: Adria U Alves Roth | B18: Não consta | C18: Feminino | D18: Não consta | E18: Não consta | F18: 14 | I18: X | N18: 1 | O18: 0.25 | Q18: Total | R18: =SUM(R11:R17) -> 2140 | T18: AC | U18: 5 | V18: 1 | W18: 1 | X18: 0 | Y18: 0 | Z18: 1 | AA18: 8 | AE18: Ana Flávia Costa Dos Santos | AF18: 02236154208 | AG18: Feminino | AH18: Parda | AI18: Brasileira | AJ18: 23
A19: Adrian Cedeño | B19: Não consta | C19: Masculino | D19: Não consta | E19: Não consta | F19: 21 | I19: X | N19: 1 | O19: 0.25 | T19: Todos | U19: 100 | V19: 40 | W19: 16 | X19: 11 | Y19: 1 | Z19: 1936 | AA19: 2104 | AE19: Ana Lice Rodrigues de Souza | AF19: 02009100271 | AG19: Feminino | AH19: Parda | AI19: Brasileira | AJ19: 24
A20: Adrián Jose Rivero | B20: Não consta | C20: Masculino | D20: Não consta | E20: Não consta | F20: 15 | I20: X | N20: 1 | O20: 0.25 | Q20: Nacionalidade | R20: Total | T20: Nacionalidade | AE20: Ana Paula Melo da Silva | AF20: 57939063200 | AG20: Feminino | AH20: Parda | AI20: Brasileira | AJ20: 42
A21: Adrian R. Barros | B21: 01238119184 | C21: Masculino | D21: Não consta | E21: Não consta | F21: 17 | I21: X | N21: 1 | O21: 0.25 | Q21: Venezuelana | R21: 98 | T21: Etapas do projeto | U21: Venezuelana | V21: Brasileira | W21: Colombiana | X21: Peruana | Y21: Não consta | Z21: Total | AE21: Anayka Yanuacelis Alfonzo Marcano | AF21: 70760205213 | AG21: Feminino | AH21: Preta | AI21: Venezuelana | AJ21: 44
A22: ADRIANA | B22: Não consta | C22: Feminino | D22: Não consta | E22: Não consta | F22: 49 | I22: X | N22: 1 | O22: 0.25 | Q22: Brasileira | R22: =COUNTIF(E4:E2143,"Brasileira") -> 68 | T22: FG | U22: 77 | V22: 60 | W22: 1 | X22: 1 | Y22: 1 | Z22: 140 | AE22: Andres Eduardo Hernandez Marpica | AF22: 70545085217 | AG22: Masculino | AH22: Parda | AI22: Venezuelana | AJ22: 20
A23: Adriana Colmenarez | B23: Não consta | C23: Feminino | D23: Não consta | E23: Não consta | F23: 22 | I23: X | N23: 1 | O23: 0.25 | Q23: Colombiana | R23: =COUNTIF(E4:E2143,"Colombiana") -> 1 | T23: ID | U23: 43 | V23: 20 | W23: 1 | X23: 0 | Y23: 6 | Z23: 70 | AE23: Andres Rondon | AF23: 70741626209 | AG23: Masculino | AH23: Branca | AI23: Venezuelana | AJ23: 48
A24: Adriana Duarte Bencomo | B24: 70497784270 | C24: Feminino | D24: Branca | E24: Venezuelana | F24: 36 | H24: X | N24: 1 | O24: 0.25 | Q24: Peruana | R24: =COUNTIF(E4:E2143,"Peruana") -> 1 | T24: FE | U24: 37 | V24: 18 | W24: 1 | X24: 0 | Y24: 18 | Z24: 74 | AE24: Anibal Alfonzo Martinez Moros | AF24: 70766049221 | AG24: Masculino | AH24: Parda | AI24: Venezuelana | AJ24: 38
A25: Adriana Silva Araújo | B25: 89274644272 | C25: Feminino | D25: Branca | E25: Brasileira | F25: 33 | G25: X | N25: 1 | O25: 0.25 | Q25: Não consta | R25: =COUNTIF(E4:E2143,"Não consta") -> 1972 | T25: PG | U25: 10 | V25: 1 | W25: 0 | X25: 0 | Y25: 1913 | Z25: 1924 | AE25: Antonia Lúcia Silva Vitor | AF25: 44645929291 | AG25: Feminino | AH25: Parda | AI25: Brasileira | AJ25: 49
A26: Adriane Rodrigues Mota | B26: 3340184208 | C26: Feminino | D26: Não consta | E26: Não consta | F26: 16 | I26: X | N26: 1 | O26: 0.25 | Q26: Total | R26: =SUM(R21:R25) -> 2140 | T26: AC | U26: 7 | V26: 0 | W26: 0 | X26: 0 | Y26: 1 | Z26: 8 | AE26: Antonio Alexander Aguilar Mujica | AF26: 70607040270 | AG26: Masculino | AH26: Preta | AI26: Venezuelana | AJ26: 28
A27: Adriano Cruz | B27: Não consta | C27: Masculino | D27: Não consta | E27: Não consta | F27: 17 | I27: X | N27: 1 | O27: 0.25 | T27: Todos | U27: 98 | V27: 68 | W27: 1 | X27: 1 | Y27: 1936 | Z27: 2104 | AE27: Antonio Luan Barros Veloso | AF27: 03656295298 | AG27: Masculino | AH27: Parda | AI27: Brasileira | AJ27: 21
A28: Adriel Bandeira B. | B28: 3264936226 | C28: Masculino | D28: Não consta | E28: Não consta | F28: 16 | I28: X | N28: 1 | O28: 0.25 | Q28: Faixa Etária | R28: Total | T28: Faixa etária | AE28: Antônio Rivas | AF28: Não consta | AG28: Não consta | AH28: Não consta | AI28: Não consta | AJ28: Não consta
A29: Adriel L. da Costa Silva | B29: 03350515284 | C29: Masculino | D29: Não consta | E29: Não consta | F29: 17 | I29: X | N29: 1 | O29: 0.25 | Q29: até 17 | R29: 587 | T29: Etapas do projeto | U29: até 17 | V29: 18 à 29 | W29: 30 à 41 | X29: 42 à 53 | Y29: 54 à 65 | Z29: 66+ | AA29: Não consta | AB29: Total | AE29: Ariane Soares Rodrigues | AF29: 54936225215 | AG29: Feminino | AH29: Indígena | AI29: Brasileira | AJ29: 23
A30: Adriely P. de A. Silva | B30: 01354114237 | C30: Feminino | D30: Não consta | E30: Não consta | F30: 23 | I30: X | N30: 1 | O30: 0.25 | Q30: 18 à 29 | R30: 785 | T30: FG | U30: 0 | V30: 45 | W30: 54 | X30: 30 | Y30: 10 | Z30: 0 | AA30: 1 | AB30: 140 | AE30: Armando Jose Bolivar | AF30: 70757740260 | AG30: Masculino | AH30: Preta | AI30: Venezuelana | AJ30: 54
A31: Adryano Moraes De Souza | B31: 4392173267 | C31: Masculino | D31: Não consta | E31: Não consta | F31: 16 | I31: X | N31: 1 | O31: 0.25 | Q31: 30 à 41 | R31: 347 | T31: ID | U31: 0 | V31: 8 | W31: 30 | X31: 18 | Y31: 8 | Z31: 0 | AA31: 6 | AB31: 70 | AE31: Aron Evans | AF31: Não consta | AG31: Feminino | AH31: Não consta | AI31: Não consta | AJ31: Não consta
A32: Adryison Pereira | B32: Não consta | C32: Masculino | D32: Não consta | E32: Não consta | F32: 12 | I32: X | N32: 1 | O32: 0.25 | Q32: 42 à 53 | R32: 171 | T32: FE | U32: 0 | V32: 7 | W32: 27 | X32: 14 | Y32: 8 | Z32: 0 | AA32: 18 | AB32: 74 | AE32: Asdrubal Antonio Martinez | AF32: 70782568246 | AG32: Masculino | AH32: Preta | AI32: Venezuelana | AJ32: 33
A33: Adyla G Batista | B33: 2319083260 | C33: Feminino | D33: Não consta | E33: Não consta | F33: 21 | I33: X | N33: 1 | O33: 0.25 | Q33: 54 à 65 | R33: 71 | T33: PG | U33: 587 | V33: 737 | W33: 282 | X33: 138 | Y33: 60 | Z33: 10 | AA33: 110 | AB33: 1924 | AE33: Auristela Heredia | AF33: 70754736202 | AG33: Feminino | AH33: Parda | AI33: Venezuelana | AJ33: 51
A34: Agna Del Valle Centeno | B34: Não consta | C34: Feminino | D34: Não consta | E34: Não consta | F34: 40 | I34: X | N34: 1 | O34: 0.25 | Q34: 66+ | R34: 10 | T34: AC | U34: 0 | V34: 1 | W34: 3 | X34: 2 | Y34: 1 | Z34: 0 | AA34: 1 | AB34: 8 | AE34: Avigail Elias Reinosa Marquina | AF34: 70805002227 | AG34: Masculino | AH34: Indígena | AI34: Venezuelana | AJ34: 35
A35: Ahenzo Jose Vallela | B35: 67078 | C35: Masculino | D35: Não consta | E35: Não consta | F35: Não consta | I35: X | N35: 1 | O35: 0.25 | Q35: Não consta | R35: 133 | T35: Todos | U35: 587 | V35: 785 | W35: 347 | X35: 171 | Y35: 71 | Z35: 10 | AA35: 133 | AB35: 2104 | AE35: Belquiz Indalecia Villasana | AF35: 70748968296 | AG35: Feminino | AH35: Parda | AI35: Venezuelana | AJ35: 55
A36: Ailiana Cedeno | B36: 70408180277 | C36: Feminino | D36: Não consta | E36: Não consta | F36: 29 | I36: X | N36: 1 | O36: 0.25 | Q36: Total | R36: =SUM(R29:R35) -> 2104 | AE36: Beverlyn Isbett Jose Hurtado Acosta | AF36: 71290482128 | AG36: Feminino | AH36: Branca | AI36: Venezuelana | AJ36: 30
